Workbook

Sheet Data (hidden)
C1: Typical DHI Distributor | D1: High Profit DHI Distributor | E1: Sales Under $15 Million | F1: Sales $15-$30 Million | G1: Sales Over $30 Million | H1: Sales Over $30 Million | I1: Major Urban Markets | J1: Secondary & Rural Markets | K1: Rural Market Areas | L1: Northeastern | M1: Southeastern Region | N1: North Central Region | O1: Western | P1: Canada | Q1: Under 70% Contract Jobs | R1: 70% - 80% Contract Jobs | S1: Over 80% Contract Jobs | T1: Lower Quartile | U1: Upper Quartile | V1: =IF($W$1=0,"","") ->  | W1: 0 | AC1: 2014 | AD1: 2016 | AE1: 2017 | AF1: 2018 | AG1: 2019 | AH1: 2020 | AL1: 1234 | AM1: Your Company | AN1: Your Company | AO1: Your Company | AP1: N/A | AQ1: 2016 | AR1: 2017
B2: General
B3: Number of Firms Reporting | C3: 31 | D3: 8 | E3: 12 | F3: 11 | G3: 8 | H3: N/A | I3: 12 | J3: 15 | K3: N/A | L3: N/A | M3: 7 | N3: 15 | O3: 5 | P3: 4 | Q3: 10 | R3: 9 | S3: 12 | AC3: 42 | AD3: 45 | AE3: 38 | AF3: 34 | AG3: 25 | AH3: =C3 -> 31
B4: Typical Sales Volume | C4: 23.2 | D4: 26.4 | E4: 9.9 | F4: 24.5 | G4: 61.4 | H4: N/A | I4: 16.8 | J4: 23 | K4: N/A | L4: N/A | M4: 27.5 | N4: 21 | O4: 12.6 | P4: 77.7 | Q4: 39 | R4: 21 | S4: 21.7 | T4: 10.3 | U4: 30.2 | AC4: 16.3 | AD4: 19.6 | AE4: 18.7 | AF4: 16.6 | AG4: 23.6 | AH4: =C4 -> 23.2 | AM4: 24.5 | AN4: 24.5 | AO4: 25 | AP4: N/A
B5: Sales Growth | C5: -0.054 | D5: 0.013 | E5: -0.092 | F5: -0.065 | G5: 0.013 | H5: N/A | I5: -0.073 | J5: -0.024 | K5: N/A | L5: N/A | M5: -0.065 | N5: -0.074 | O5: 0.045 | P5: 0.014 | Q5: 0.013 | R5: -0.11 | S5: -0.048 | T5: -0.114 | U5: 0.045 | AC5: 0.037 | AD5: 0.049 | AE5: 0.057 | AF5: 0.124 | AG5: 0.058 | AH5: =C5 -> -0.054 | AM5: 0.004 | AN5: 0.004 | AO5: 0.02 | AP5: Secondary
B6: Contract Sales Revenue | C6: 0.75 | D6: 0.74 | E6: 0.75 | F6: 0.8 | G6: 0.642 | H6: N/A | I6: 0.805 | J6: 0.75 | K6: N/A | L6: N/A | M6: 0.84 | N6: 0.72 | O6: 0.95 | P6: 0.644 | Q6: 0.66 | R6: 0.75 | S6: 0.93 | T6: 0.685 | U6: 0.84 | AC6: 0.67 | AD6: 0.68 | AE6: 0.705 | AF6: 0.725 | AG6: 0.7 | AH6: =C6 -> 0.75 | AM6: 0.35 | AN6: 0.35 | AO6: 0.35
B7: Sales by Product Category
B8: Builders Hardware | C8: 0.421 | D8: 0.374 | E8: 0.448 | F8: 0.445 | G8: 0.348 | H8: N/A | I8: 0.433 | J8: 0.418 | K8: N/A | L8: N/A | M8: 0.363 | N8: 0.458 | O8: 0.408 | P8: 0.399 | Q8: 0.402 | R8: 0.507 | S8: 0.373 | T8: 0.35 | U8: 0.486 | AC8: 0.448 | AD8: 0.451 | AE8: 0.445 | AF8: 0.435 | AG8: 0.438 | AH8: =C8 -> 0.421 | AM8: 0.014 | AN8: 0.014 | AO8: 0.034
B9: Electronic Hardware | C9: 6.4 | D9: 9.5 | E9: 5.9 | F9: 7.2 | G9: 5.9 | H9: N/A | I9: 6.4 | J9: 7 | K9: N/A | L9: N/A | M9: 10.6 | N9: 5.2 | O9: 6.6 | P9: 4.3 | Q9: 4.9 | R9: 4.8 | S9: 9 | T9: 2 | U9: 10 | AC9: 4.8 | AD9: 6.2 | AE9: 6.7 | AF9: 6.3 | AG9: 5.4 | AH9: 6.4 | AM9: 2.6 | AN9: 2.6 | AO9: 2.7
B10: Metal Doors & Related Products | C10: 20.7 | D10: 23.5 | E10: 21 | F10: 22.7 | G10: 17.6 | H10: N/A | I10: 20.2 | J10: 21.4 | K10: N/A | L10: N/A | M10: 20.4 | N10: 20.8 | O10: 21.8 | P10: 19.8 | Q10: 20.6 | R10: 19.6 | S10: 21.7 | T10: 18 | U10: 25 | AC10: 21.4 | AD10: 20 | AE10: 19.8 | AF10: 19.5 | AG10: 19.4 | AH10: 20.7 | AM10: 0.036 | AN10: 0.036 | AO10: 0.092
B11: Wood Doors & Frames | C11: 17.7 | D11: 18.1 | E11: 19.5 | F11: 16.6 | G11: 16.8 | H11: N/A | I11: 21.9 | J11: 16.4 | K11: N/A | L11: N/A | M11: 17.4 | N11: 18.7 | O11: 21.4 | P11: 10.2 | Q11: 16.8 | R11: 14.7 | S11: 20.8 | T11: 13.5 | U11: 20 | AC11: 16.2 | AD11: 16.3 | AE11: 15.6 | AF11: 17.1 | AG11: 16.8 | AH11: 17.7 | AM11: 1.8 | AN11: 1.8 | AO11: 1.8
B12: Toilet Accessories & Partitions | C12: 4.9 | D12: 4.5 | E12: 4.7 | F12: 2.6 | G12: 8 | H12: N/A | I12: 1.9 | J12: 5.9 | K12: N/A | L12: N/A | M12: 3.6 | N12: 4.2 | O12: 4.8 | P12: 9.4 | Q12: 6.7 | R12: 3.8 | S12: 4.1 | T12: 0.9 | U12: 7.3 | AC12: 3.3 | AD12: 4.4 | AE12: 3.8 | AF12: 3.2 | AG12: 4.5 | AH12: 4.9 | AM12: 0.065 | AN12: 0.065 | AO12: 0.166
B13: All Other Products | C13: 8.2 | D13: 7 | E13: 4.1 | F13: 6.4 | G13: 16.9 | I13: 6.3 | J13: 7.5 | M13: 11.7 | N13: 5.3 | O13: 4.6 | P13: 16.4 | Q13: 10.8 | R13: 6.4 | S13: 7.1 | T13: 0 | U13: 15 | AC13: 9.5 | AD13: 8 | AE13: 9.6 | AF13: 10.4 | AG13: 10.1 | AH13: 8.2
B14: Total Sales | C14: 1 | D14: 1 | E14: 1 | F14: 1 | G14: 1 | H14: 1 | I14: 1 | J14: 1 | K14: 1 | L14: 1 | M14: 1 | N14: 1 | O14: 1 | P14: 1 | Q14: 1 | R14: 1 | S14: 1 | AC14: 1 | AD14: 1 | AE14: 1 | AF14: 1 | AG14: 1 | AH14: 1 | AM14: 1 | AN14: 1 | AO14: 1 | AP14: 24500000 | AQ14: 24500000 | AR14: 25000000
B15: STRATEGIC PROFIT MODEL RATIOS | AM15: 72.2 | AN15: 72.2 | AO15: 70.8 | AP15: 17700000 | AQ15: 17700000 | AR15: 17700000
B16: Profit Margin (Pre-tax) | C16: 0.05 | D16: 0.102 | E16: 0.042 | F16: 0.04 | G16: 0.052 | H16: N/A | I16: 0.036 | J16: 0.051 | K16: N/A | L16: N/A | M16: 0.05 | N16: 0.051 | O16: 0.014 | P16: 0.055 | Q16: 0.055 | R16: 0.048 | S16: 0.038 | T16: 0.014 | U16: 0.091 | AC16: 0.028 | AD16: 0.05 | AE16: 0.04 | AF16: 0.043 | AG16: 0.055 | AH16: =C16 -> 0.05 | AM16: 27.8 | AN16: 27.8 | AO16: 29.2 | AP16: 6800000 | AQ16: 6800000 | AR16: 7300000
B17: Asset Turnover | C17: 2.4 | D17: 2.7 | E17: 2.5 | F17: 2.4 | G17: 2.2 | H17: N/A | I17: 2.6 | J17: 2.3 | K17: N/A | L17: N/A | M17: 2.5 | N17: 2.3 | O17: 2.4 | P17: 2.5 | Q17: 2.5 | R17: 2.3 | S17: 2.4 | T17: 1.9 | U17: 2.8 | AC17: 2.5 | AD17: 2.8 | AE17: 2.7 | AF17: 2.7 | AG17: 2.5 | AH17: =C17 -> 2.4
B18: Return On Assets (Pre-tax) | C18: 0.12 | D18: 0.275 | E18: 0.105 | F18: 0.096 | G18: 0.114 | I18: 0.094 | J18: 0.117 | M18: 0.125 | N18: 0.117 | O18: 0.034 | P18: 0.138 | Q18: 0.138 | R18: 0.11 | S18: 0.091 | T18: 0.03 | U18: 0.225 | AC18: 0.07 | AD18: 0.14 | AE18: 0.108 | AF18: 0.116 | AG18: 0.138 | AH18: =C18 -> 0.12 | AM18: 14.3 | AN18: 14.3 | AO18: 14 | AP18: 3500000 | AQ18: 3500000 | AR18: 3500000
B19: Financial Leverage | C19: 1.4 | D19: 1.3 | E19: 1.7 | F19: 1.3 | G19: 2 | H19: N/A | I19: 1.6 | J19: 1.3 | K19: N/A | L19: N/A | M19: 1.2 | N19: 1.6 | O19: 1.3 | P19: 1.8 | Q19: 1.5 | R19: 1.8 | S19: 1.4 | T19: 1.2 | U19: 2.3 | AC19: 1.5 | AD19: 1.6 | AE19: 1.6 | AF19: 1.6 | AG19: 1.5 | AH19: =C19 -> 1.4 | AM19: 0.8 | AN19: 0.8 | AO19: 0.8 | AP19: 200000 | AQ19: 200000 | AR19: 200000
B20: Return On Net Worth (Pre-tax) | C20: 0.168 | D20: 0.358 | E20: 0.179 | F20: 0.125 | G20: 0.228 | I20: 0.15 | J20: 0.152 | M20: 0.15 | N20: 0.187 | O20: 0.044 | P20: 0.248 | Q20: 0.207 | R20: 0.198 | S20: 0.127 | T20: 0.056 | U20: 0.31 | AC20: 0.105 | AD20: 0.224 | AE20: 0.173 | AF20: 0.186 | AG20: 0.207 | AH20: =C20 -> 0.168 | AM20: 1.8 | AN20: 1.8 | AO20: 1.8 | AP20: 450000 | AQ20: 450000 | AR20: 450000
B21: INCOME STATEMENT | AM21: 16.9 | AN21: 16.9 | AO21: 16.6 | AP21: 4150000 | AQ21: 4150000 | AR21: 4150000
B22: Net Sales | C22: 1 | D22: 1 | E22: 1 | F22: 1 | G22: 1 | H22: 1 | I22: 1 | J22: 1 | K22: 1 | L22: 1 | M22: 1 | N22: 1 | O22: 1 | P22: 1 | Q22: 1 | R22: 1 | S22: 1 | AC22: 1 | AD22: 1 | AE22: 1 | AF22: 1 | AG22: 1 | AH22: =C22 -> 1 | AM22: 3.6 | AN22: 3.6 | AO22: 3.5 | AP22: 875000 | AQ22: 875000 | AR22: 875000
B23: Cost Of Goods Sold | C23: 68.3 | D23: 66.7 | E23: 68.8 | F23: 68.3 | G23: 66.9 | I23: 68.8 | J23: 66.4 | M23: 66.4 | N23: 68.3 | O23: 70 | P23: 68.1 | Q23: 66.1 | R23: 69.9 | S23: 66.4 | T23: 65.4 | U23: 71.5 | AC23: 69.5 | AD23: 67.7 | AE23: 68.6 | AF23: 67.1 | AG23: 67.6 | AH23: =C23 -> 68.3 | AM23: 5.7 | AN23: 5.7 | AO23: 5.6 | AP23: 1400000 | AQ23: 1400000 | AR23: 1400000
B24: Gross Margin | C24: 31.7 | D24: 33.3 | E24: 31.2 | F24: 31.7 | G24: 33.1 | H24: N/A | I24: 31.2 | J24: 33.6 | K24: N/A | L24: N/A | M24: 33.6 | N24: 31.7 | O24: 30 | P24: 31.9 | Q24: 33.9 | R24: 30.1 | S24: 33.6 | T24: 28.5 | U24: 34.6 | AC24: 30.5 | AD24: 32.3 | AE24: 31.4 | AF24: 32.9 | AG24: 32.4 | AH24: =C24 -> 31.7 | AM24: 26.2 | AN24: 26.2 | AO24: 25.7 | AP24: 6425000 | AQ24: 6425000 | AR24: 6425000
B25: Operating Expenses | AM25: 1.5 | AN25: 1.5 | AO25: 3.5 | AP25: 375000 | AQ25: 375000 | AR25: 875000
B26: Salaries, Wages, Commissions & Bonuses | C26: 17.8 | D26: 15.8 | E26: 18.5 | F26: 17.8 | G26: 15.7 | I26: 18.2 | J26: 19.4 | M26: 18.2 | N26: 18.2 | O26: 19.7 | P26: 15.3 | Q26: 17.3 | R26: 17 | S26: 21.7 | T26: 14.3 | U26: 19.1 | AC26: 16.9 | AD26: 17 | AE26: 17.1 | AF26: 18.5 | AG26: 16.9 | AH26: =C26 -> 17.8 | AM26: 0.3 | AN26: 0.3 | AO26: 0.3 | AP26: 75000 | AQ26: 75000 | AR26: 75000
B27: Payroll Taxes | C27: 1.4 | D27: 1.3 | E27: 1.4 | F27: 1.5 | G27: 1.3 | I27: 1.8 | J27: 1.5 | M27: 1.5 | N27: 1.4 | O27: 1.7 | P27: 0.9 | Q27: 1.3 | R27: 1.2 | S27: 1.8 | T27: 1.1 | U27: 1.6 | AC27: 1.5 | AD27: 1.4 | AE27: 1.4 | AF27: 1.4 | AG27: 1.3 | AH27: 1.4 | AM27: 0.4 | AN27: 0.4 | AO27: 0.4 | AP27: 100000 | AQ27: 100000 | AR27: 100000
B28: Employee Benefits | C28: 1.8 | D28: 1.6 | E28: 1.7 | F28: 2.4 | G28: 2.2 | I28: 2.2 | J28: 2.3 | M28: 2.3 | N28: 2.4 | O28: 1.7 | P28: 1.5 | Q28: 2.1 | R28: 2.3 | S28: 2.1 | T28: 1.2 | U28: 3.1 | AC28: 2 | AD28: 2.2 | AE28: 1.8 | AF28: 1.9 | AG28: 1.6 | AH28: 1.8 | AM28: 0 | AN28: 0 | AO28: 0 | AP28: 0 | AQ28: 0 | AR28: 0
B29: Total Payroll Expenses | C29: 21 | D29: 18.7 | E29: 21.6 | F29: 21.7 | G29: 19.2 | I29: 22.2 | J29: 23.2 | M29: 22 | N29: 22 | O29: 23.1 | P29: 17.7 | Q29: 20.7 | R29: 20.5 | S29: 25.6 | T29: 16.8 | U29: 24.2 | AC29: 20.4 | AD29: 20.6 | AE29: 20.3 | AF29: 21.8 | AG29: 19.8 | AH29: 21 | AM29: 0.014 | AN29: 0.014 | AO29: 0.034 | AP29: 350000 | AQ29: 350000 | AR29: 850000
B30: Occupancy Expenses | C30: 2.3 | D30: 2.5 | E30: 2.1 | F30: 2.3 | G30: 3.5 | I30: 2.1 | J30: 2.4 | M30: 2 | N30: 2.3 | O30: 1.2 | P30: 3.8 | Q30: 2.9 | R30: 2.3 | S30: 2 | T30: 1.5 | U30: 3.4 | AC30: 2.5 | AD30: 2.2 | AE30: 2.3 | AF30: 2.4 | AG30: 2.2 | AH30: 2.3
B31: All Other Operating Expenses | C31: 4.5 | D31: 2.8 | E31: 4 | F31: 4.6 | G31: 4.8 | I31: 5.1 | J31: 4.1 | M31: 4.3 | N31: 4.4 | O31: 3.9 | P31: 4.3 | Q31: 4.5 | R31: 4.3 | S31: 2.4 | T31: 2.2 | U31: 5.9 | AC31: 4.6 | AD31: 4.2 | AE31: 4.5 | AF31: 4.7 | AG31: 4.3 | AH31: 4.5 | AM31: 1 | AN31: 1 | AO31: 1
B32: Total Operating Expenses | C32: 27.8 | D32: 24 | E32: 27.7 | F32: 28.6 | G32: 27.5 | I32: 29.4 | J32: 29.7 | M32: 28.3 | N32: 28.7 | O32: 28.2 | P32: 25.8 | Q32: 28.1 | R32: 27.1 | S32: 30 | T32: 22.7 | U32: 31.5 | AC32: 27.5 | AD32: 27 | AE32: 27.1 | AF32: 28.9 | AG32: 26.3 | AH32: 27.8
B33: Operating Profit | C33: 3.9 | D33: 9.3 | E33: 3.5 | F33: 3.1 | G33: 5.6 | H33: N/A | I33: 1.8 | J33: 3.9 | K33: N/A | L33: N/A | M33: 5.3 | N33: 3 | O33: 1.8 | P33: 6.1 | Q33: 5.8 | R33: 3 | S33: 3.6 | T33: 1.7 | U33: 6.8 | AC33: 3 | AD33: 5.3 | AE33: 4.3 | AF33: 4 | AG33: 6.1 | AH33: 3.9 | AM33: 51.5 | AN33: 51.5 | AO33: 47.9
B34: Other Income | C34: 1.3 | D34: 1.1 | E34: 0.9 | F34: 1 | G34: 0.1 | I34: 1.9 | J34: 1.7 | M34: 0.3 | N34: 2.2 | O34: 0 | P34: -0.2 | Q34: 0.2 | R34: 2.2 | S34: 0.3 | T34: 0 | U34: 2.3 | AC34: 0.2 | AD34: 0 | AE34: 0.1 | AF34: 0.5 | AG34: 0.1 | AH34: 1.3 | AM34: 2.9 | AN34: 2.9 | AO34: 2.7
B35: Interest Expense | C35: 0.2 | D35: 0.2 | E35: 0.2 | F35: 0.1 | G35: 0.5 | H35: N/A | I35: 0.1 | J35: 0.5 | K35: N/A | L35: N/A | M35: 0.2 | N35: 0.1 | O35: 0.3 | P35: 0.4 | Q35: 0.5 | R35: 0.4 | S35: 0.1 | T35: 0.1 | U35: 0.5 | AC35: 0.4 | AD35: 0.3 | AE35: 0.2 | AF35: 0.2 | AG35: 0.3 | AH35: 0.2 | AM35: 6.6 | AN35: 6.6 | AO35: 6.2
B36: Other Non-Operating Expenses | C36: 0 | D36: 0 | E36: 0 | F36: 0 | G36: 0 | H36: N/A | I36: 0 | J36: 0 | K36: N/A | L36: N/A | M36: 0.4 | N36: 0 | O36: 0.1 | P36: 0 | Q36: 0 | R36: 0 | S36: 0 | T36: 0 | U36: 0.2 | AC36: 0 | AD36: 0 | AE36: 0.2 | AF36: 0 | AG36: 0.4 | AH36: 0 | AM36: 61 | AN36: 61 | AO36: 56.8
B37: Profit Before Taxes | C37: 0.05 | D37: 0.102 | E37: 0.042 | F37: 0.04 | G37: 0.052 | I37: 0.036 | J37: 0.051 | M37: 0.05 | N37: 0.051 | O37: 0.014 | P37: 0.055 | Q37: 0.055 | R37: 0.048 | S37: 0.038 | T37: 0.014 | U37: 0.091 | AC37: 0.028 | AD37: 0.05 | AE37: 0.04 | AF37: 0.043 | AG37: 0.055 | AH37: 0.05 | AM37: 12.9 | AN37: 12.9 | AO37: 12
B38: EXPENSES IN RELATION TO GM | AM38: 20.6 | AN38: 20.6 | AO38: 19.2
B39: Gross Margin | C39: 1 | D39: 1 | E39: 1 | F39: 1 | G39: 1 | H39: 1 | I39: 1 | J39: 1 | K39: 1 | L39: 1 | M39: 1 | N39: 1 | O39: 1 | P39: 1 | Q39: 1 | R39: 1 | S39: 1 | AC39: 1 | AD39: 1 | AE39: 1 | AF39: 1 | AG39: 1 | AH39: =C39 -> 1 | AM39: 94.5 | AN39: 94.5 | AO39: 88
B40: Operating Expenses | AM40: 5.5 | AN40: 5.5 | AO40: 12
B41: Salaries, Wages, Commissions & Bonuses | C41: 54.4 | D41: 45.9 | E41: 57.2 | F41: 57.8 | G41: 48.4 | I41: 60.8 | J41: 55 | M41: 52.4 | N41: 55.9 | O41: 66.4 | P41: 48.8 | Q41: 51.5 | R41: 54.2 | S41: 65 | T41: 48.1 | U41: 59.3 | AE41: 55.3 | AF41: 55.8 | AG41: 51 | AH41: =C41 -> 54.4 | AM41: 1.1 | AN41: 1.1 | AO41: 1
B42: Payroll Taxes | C42: 4.2 | D42: 3.9 | E42: 4.4 | F42: 4.7 | G42: 3.7 | I42: 5.4 | J42: 4.2 | M42: 4.8 | N42: 4.2 | O42: 5.9 | P42: 2.8 | Q42: 3.9 | R42: 4.4 | S42: 5.1 | T42: 3.6 | U42: 5 | AE42: 4.4 | AF42: 4 | AG42: 4 | AH42: 4.2 | AM42: 1.5 | AN42: 1.5 | AO42: 1.4
B43: Employee Benefits | C43: 6.3 | D43: 5 | E43: 5.3 | F43: 7.1 | G43: 6.9 | I43: 6.7 | J43: 6.5 | M43: 6.9 | N43: 6.6 | O43: 5.4 | P43: 4.5 | Q43: 6.2 | R43: 6.6 | S43: 6.2 | T43: 3.8 | U43: 8.9 | AE43: 5.8 | AF43: 5.7 | AG43: 4.9 | AH43: 6.3 | AM43: 0 | AN43: 0 | AO43: 0
B44: Total Payroll Expenses | C44: 64.9 | D44: 54.8 | E44: 66.9 | F44: 69.6 | G44: 59 | I44: 72.9 | J44: 65.7 | M44: 64.1 | N44: 66.7 | O44: 77.7 | P44: 56.1 | Q44: 61.6 | R44: 65.2 | S44: 76.3 | T44: 57.4 | U44: 74.2 | AE44: 65.5 | AF44: 65.5 | AG44: 59.9 | AH44: 64.9 | AM44: 0.051 | AN44: 0.051 | AO44: 0.116
A45: Selling, General & Admin. Expenses | B45: Occupancy Expenses | C45: 7.3 | D45: 7.6 | E45: 6.7 | F45: 7.9 | G45: 9.4 | I45: 6.5 | J45: 7 | M45: 5.9 | N45: 7.2 | O45: 3.6 | P45: 12.2 | Q45: 8.5 | R45: 7.4 | S45: 4.9 | T45: 4.4 | U45: 9.9 | AE45: 7.1 | AF45: 7.2 | AG45: 8.1 | AH45: 7.3
B46: All Other Operating Expenses | C46: 12.2 | D46: 8.5 | E46: 12.2 | F46: 12.8 | G46: 13.4 | I46: 14.8 | J46: 11.7 | M46: 12.4 | N46: 13.4 | O46: 12.5 | P46: 12.7 | Q46: 12.7 | R46: 14.7 | S46: 6.3 | T46: 6.9 | U46: 17.1 | AE46: 14.2 | AF46: 14.8 | AG46: 13.3 | AH46: 12.2
B47: Total Operating Expenses | C47: 84.4 | D47: 70.9 | E47: 85.8 | F47: 90.3 | G47: 81.8 | I47: 94.2 | J47: 84.4 | M47: 82.4 | N47: 87.3 | O47: 93.8 | P47: 81 | Q47: 82.8 | R47: 87.3 | S47: 87.5 | T47: 76.2 | U47: 94.3 | AE47: 86.8 | AF47: 87.5 | AG47: 81.3 | AH47: 84.4 | AM47: 0.005 | AN47: 0.005 | AO47: 0.005 | AP47: 50000 | AQ47: 50000 | AR47: 50000
B48: Operating Profit | C48: 15.6 | D48: 29.1 | E48: 14.2 | F48: 9.7 | G48: 18.2 | H48: N/A | I48: 5.8 | J48: 15.6 | K48: N/A | L48: N/A | M48: 17.6 | N48: 12.7 | O48: 6.2 | P48: 19 | Q48: 17.2 | R48: 12.7 | S48: 12.5 | T48: 5.7 | U48: 23.8 | AE48: 13.2 | AF48: 12.5 | AG48: 18.7 | AH48: 15.6 | AM48: 21.6 | AN48: 21.6 | AO48: 21.6 | AP48: 2000000 | AQ48: 2000000 | AR48: 2000000
B49: Other Income | C49: 1 | D49: 2.2 | E49: 1.9 | F49: 6.4 | G49: 0.3 | I49: 6.1 | J49: 1.6 | M49: 1 | N49: 4.5 | O49: -0.2 | P49: -0.4 | Q49: 1.4 | R49: 5.7 | S49: 0.9 | T49: 0.1 | U49: 6.6 | AE49: 0.3 | AF49: 0.4 | AG49: 0.5 | AH49: 1 | AM49: 69 | AN49: 69 | AO49: 69 | AP49: 6400000 | AQ49: 6400000 | AR49: 6400000
B50: Interest Expense | C50: 0.7 | D50: 0.6 | E50: 0.4 | F50: 0.2 | G50: 1.5 | H50: N/A | I50: 0.2 | J50: 1.3 | K50: N/A | L50: N/A | M50: 0.5 | N50: 0.3 | O50: 0.9 | P50: 1.4 | Q50: 1.4 | R50: 1.5 | S50: 0.2 | T50: 0.2 | U50: 1.7 | AE50: 0.6 | AF50: 0.4 | AG50: 0.8 | AH50: 0.7 | AM50: 3.5 | AN50: 3.5 | AO50: 3.5 | AP50: 325000 | AQ50: 325000 | AR50: 325000
B51: Other Non-Operating Expenses | C51: 0 | D51: 0 | E51: 0 | F51: 0 | G51: 0.8 | H51: N/A | I51: 0 | J51: 0 | K51: N/A | L51: N/A | M51: 1.5 | N51: 0 | O51: 0.2 | P51: 0 | Q51: 0 | R51: 0 | S51: 0 | T51: 0 | U51: 0.7 | AE51: 0.3 | AF51: 0.6 | AG51: 3.4 | AH51: 0 | AM51: 94.6 | AN51: 94.6 | AO51: 94.6 | AP51: 8775000 | AQ51: 8775000 | AR51: 8775000
B52: Profit Before Taxes | C52: 0.159 | D52: 0.307 | E52: 0.157 | F52: 0.159 | G52: 0.162 | I52: 0.117 | J52: 0.159 | M52: 0.166 | N52: 0.169 | O52: 0.049 | P52: 0.172 | Q52: 0.172 | R52: 0.169 | S52: 0.132 | T52: 0.05 | U52: 0.27 | AE52: 0.126 | AF52: 0.119 | AG52: 0.15 | AH52: 0.159 | AM52: 5.4 | AN52: 5.4 | AO52: 5.4 | AP52: 500000 | AQ52: 500000 | AR52: 500000
B53: BALANCE SHEET | AM53: 1 | AN53: 1 | AO53: 1 | AP53: 9275000 | AQ53: 9275000 | AR53: 9275000
B54: Assets
B55: Cash & Marketable Securities | C55: 0.071 | D55: 0.151 | E55: 0.184 | F55: 0.166 | G55: 0.005 | I55: 0.191 | J55: 0.075 | M55: 0.218 | N55: 0.047 | O55: 0.133 | P55: 0 | Q55: 0.012 | R55: 0.009 | S55: 0.231 | T55: 0 | U55: 0.325 | AC55: 0.093 | AD55: 0.041 | AE55: 0.014 | AF55: 0.073 | AG55: 0.067 | AH55: =C55 -> 0.071 | AM55: 0.119 | AN55: 0.119 | AO55: 0.119 | AP55: 1100000 | AQ55: 1100000 | AR55: 1100000
B56: Accounts Receivable | C56: 55.9 | D56: 52.5 | E56: 52.7 | F56: 47.2 | G56: 52.1 | I56: 51.3 | J56: 46 | M56: 45.5 | N56: 52.5 | O56: 56.1 | P56: 57.8 | Q56: 53.9 | R56: 63 | S56: 47 | T56: 33.9 | U56: 57.1 | AC56: 47.1 | AD56: 55.6 | AE56: 60.8 | AF56: 55.4 | AG56: 53.7 | AH56: 55.9 | AM56: 27 | AN56: 27 | AO56: 27 | AP56: 2500000 | AQ56: 2500000 | AR56: 2500000
B57: Inventory | C57: 22.8 | D57: 22.8 | E57: 19.7 | F57: 18 | G57: 27.7 | I57: 18.6 | J57: 26.5 | M57: 23.5 | N57: 22.9 | O57: 20.4 | P57: 33.8 | Q57: 34 | R57: 22.7 | S57: 16.1 | T57: 13.1 | U57: 28.8 | AC57: 28.7 | AD57: 28.7 | AE57: 26.3 | AF57: 22.9 | AG57: 24.1 | AH57: 22.8 | AM57: 1.1 | AN57: 1.1 | AO57: 1.1 | AP57: 100000 | AQ57: 100000 | AR57: 100000
B58: Other Current Assets | C58: 2 | D58: 1.5 | E58: 0.7 | F58: 2.5 | G58: 2.5 | I58: 1.3 | J58: 2.1 | M58: 0.7 | N58: 2.3 | O58: 0.9 | P58: 2.2 | Q58: 2.2 | R58: 1.2 | S58: 1.1 | T58: 0.5 | U58: 2.6 | AC58: 1.9 | AD58: 1.7 | AE58: 1.5 | AF58: 1.7 | AG58: 2.5 | AH58: 2 | AM58: 39.9 | AN58: 39.9 | AO58: 39.9 | AP58: 3700000 | AQ58: 3700000 | AR58: 3700000
B59: Total Current Assets | C59: 87.8 | D59: 91.9 | E59: 91.5 | F59: 84.3 | G59: 82.8 | I59: 90.3 | J59: 82.1 | M59: 91.5 | N59: 82.4 | O59: 90.7 | P59: 93.8 | Q59: 91.3 | R59: 87.8 | S59: 87.3 | T59: 82.7 | U59: 93.5 | AC59: 87 | AD59: 90.1 | AE59: 90 | AF59: 87.3 | AG59: 87 | AH59: 87.8 | AM59: 4.5 | AN59: 4.5 | AO59: 4.5 | AP59: 417375 | AQ59: 417375 | AR59: 417375
B60: Fixed Assets & Noncurrent Assets | C60: 12.2 | D60: 8.1 | E60: 8.5 | F60: 15.7 | G60: 17.2 | I60: 9.7 | J60: 17.9 | M60: 8.5 | N60: 17.6 | O60: 9.3 | P60: 6.2 | Q60: 8.7 | R60: 12.2 | S60: 12.7 | T60: 6.5 | U60: 17.3 | AC60: 13 | AD60: 9.9 | AE60: 10 | AF60: 12.7 | AG60: 13 | AH60: 12.2 | AM60: 55.6 | AN60: 55.6 | AO60: 55.6 | AP60: 5157625 | AQ60: 5157625 | AR60: 5157625
B61: Total Assets | C61: 1 | D61: 1 | E61: 1 | F61: 1 | G61: 1 | H61: 1 | I61: 1 | J61: 1 | K61: 1 | L61: 1 | M61: 1 | N61: 1 | O61: 1 | P61: 1 | Q61: 1 | R61: 1 | S61: 1 | AC61: 1 | AD61: 1 | AE61: 1 | AF61: 1 | AG61: 1 | AH61: 1 | AM61: 1 | AN61: 1 | AO61: 1 | AP61: 9275000 | AQ61: 9275000 | AR61: 9275000
B62: Liabilities and Net Worth
B63: Accounts Payable | C63: 0.08 | D63: 0.106 | E63: 0.129 | F63: 0.066 | G63: 0.136 | I63: 0.06 | J63: 0.093 | M63: 0.07 | N63: 0.076 | O63: 0.06 | P63: 0.232 | Q63: 0.087 | R63: 0.147 | S63: 0.064 | T63: 0.05 | U63: 0.182 | AC63: 0.196 | AD63: 0.133 | AE63: 0.126 | AF63: 0.11 | AG63: 0.105 | AH63: =C63 -> 0.08 | AM63: 2.4 | AN63: 2.4 | AO63: 2.4
B64: Notes Payable | C64: 2.3 | D64: 0.9 | E64: 0.6 | F64: 0 | G64: 11.8 | I64: 1.6 | J64: 4.4 | M64: 1.8 | N64: 2.6 | P64: 7.5 | Q64: 6.4 | R64: 2.5 | S64: 1.4 | T64: 0 | U64: 10.6 | AC64: 3.6 | AD64: 8.7 | AE64: 5.9 | AF64: 2.4 | AG64: 12.9 | AH64: 2.3 | AM64: 0.6 | AN64: 0.6 | AO64: 0.6
B65: Other Current Liabilities | C65: 8.5 | D65: 7.9 | E65: 9.6 | F65: 8 | G65: 8.2 | I65: 12.1 | J65: 7.3 | M65: 8.8 | N65: 9.5 | O65: 3.6 | P65: 4.6 | Q65: 7.7 | R65: 11.6 | S65: 8 | T65: 3.6 | U65: 12 | AC65: 8.4 | AD65: 9.5 | AE65: 8.2 | AF65: 17.7 | AG65: 5.8 | AH65: 8.5 | AM65: 0.014 | AN65: 0.014 | AO65: 0.014
B66: Total Current Liabilities | C66: 18.8 | D66: 19.4 | E66: 23.1 | F66: 14.6 | G66: 33.6 | I66: 19.7 | J66: 21 | M66: 17.6 | N66: 19.7 | P66: 35.3 | Q66: 22.8 | R66: 28.8 | S66: 15.8 | T66: 16.1 | U66: 38.3 | AC66: 31.6 | AD66: 31.5 | AE66: 26.7 | AF66: 31.1 | AG66: 29.2 | AH66: 18.8 | AM66: 0.172 | AN66: 0.172 | AO66: 0.172
B67: Long Term Liabilities | C67: 5.7 | D67: 0.8 | E67: 7 | F67: 1 | G67: 9.8 | I67: 11.1 | J67: 0.9 | K67: N/A | M67: 0.9 | N67: 7.4 | O67: 13.3 | P67: 4.6 | Q67: 5 | R67: 5.6 | S67: 9.3 | T67: 0 | U67: 15.6 | AC67: 3.1 | AD67: 4.8 | AE67: 1.8 | AF67: 2.1 | AG67: 4.6 | AH67: 5.7 | AM67: 22.7 | AN67: 22.7 | AO67: 22.7
B68: Net Worth or Owner Equity | C68: 75.5 | D68: 79.8 | E68: 69.9 | F68: 84.4 | G68: 56.6 | I68: 69.2 | J68: 78.1 | M68: 81.5 | N68: 72.9 | P68: 60.1 | Q68: 72.2 | R68: 65.6 | S68: 74.9 | T68: 43.7 | U68: 80.4 | AC68: 65.3 | AD68: 63.7 | AE68: 71.5 | AF68: 66.8 | AG68: 66.2 | AH68: 75.5 | AM68: 0.8 | AN68: 0.8 | AO68: 0.8
B69: Total Liabilities and Net Worth | C69: 1 | D69: 1 | E69: 1 | F69: 1 | G69: 1 | H69: 1 | I69: 1 | J69: 1 | K69: 1 | L69: 1 | M69: 1 | N69: 1 | O69: 1 | P69: 1 | Q69: 1 | R69: 1 | S69: 1 | AC69: 1 | AD69: 1 | AE69: 1 | AF69: 1 | AG69: 1 | AH69: 1 | AM69: 0.018 | AN69: 0.018 | AO69: 0.038
B70: FINANCIAL RATIOS | AM70: 0.049 | AN70: 0.049 | AO70: 0.102
B71: Current Ratio | C71: 3.3 | D71: 4.4 | E71: 3.5 | F71: 4.4 | G71: 2.5 | H71: N/A | I71: 3.7 | J71: 3.7 | K71: N/A | L71: N/A | M71: 4.8 | N71: 2.5 | O71: 7.2 | P71: 2.3 | Q71: 3.3 | R71: 1.8 | S71: 4.4 | T71: 2.2 | U71: 5.7 | AC71: 3.1 | AD71: 3.1 | AE71: 2.9 | AF71: 3.1 | AG71: 2.9 | AH71: =C71 -> 3.3 | AM71: 4.5 | AN71: 4.5 | AO71: 9.5
B72: Quick Ratio | C72: 2.6 | D72: 3.6 | E72: 2.8 | F72: 3.6 | G72: 1.4 | H72: N/A | I72: 3.1 | J72: 2.8 | K72: N/A | L72: N/A | M72: 4 | N72: 2.1 | O72: 6.3 | P72: 1.4 | Q72: 2 | R72: 1.3 | S72: 3.5 | T72: 1.3 | U72: 4.1 | AC72: 1.9 | AD72: 2.1 | AE72: 1.7 | AF72: 2 | AG72: 1.9 | AH72: 2.6
B73: Cash To Current Liabilities | C73: 0.645 | D73: 0.74 | E73: 0.654 | F73: 1.004 | G73: 0.039 | H73: N/A | I73: 0.693 | J73: 0.409 | K73: N/A | L73: N/A | M73: 0.948 | N73: 0.1 | O73: 2.415 | P73: N/A | Q73: 0.044 | R73: 0.046 | S73: 1.059 | T73: 0.039 | U73: 1.956 | AC73: 0.125 | AD73: 0.111 | AE73: 0.101 | AF73: 0.292 | AG73: 0.339 | AH73: 0.645 | AM73: 2.7 | AN73: 2.7 | AO73: 2.7
B74: Accounts Payable To Inventory | C74: 0.461 | D74: 0.554 | E74: 0.506 | F74: 0.302 | G74: 0.551 | H74: N/A | I74: 0.295 | J74: 0.461 | K74: N/A | L74: N/A | M74: 0.288 | N74: 0.461 | O74: 0.202 | P74: 0.713 | Q74: 0.375 | R74: 0.464 | S74: 0.61 | T74: 0.202 | U74: 0.784 | AC74: 0.583 | AD74: 0.397 | AE74: 0.454 | AF74: 0.465 | AG74: 0.459 | AH74: 0.461 | AM74: 3.7 | AN74: 3.7 | AO74: 3.8
B75: Accounts Payable Payout Period (Days) | C75: 19.1 | D75: 19.5 | E75: 21.6 | F75: 13.1 | G75: 27.7 | H75: N/A | I75: 12.6 | J75: 24.2 | K75: N/A | L75: N/A | M75: 14 | N75: 15.6 | O75: 13.1 | P75: 48.7 | Q75: 19.9 | R75: 28.3 | S75: 16.1 | T75: 11.1 | U75: 34.9 | AC75: 23.5 | AD75: 17.9 | AE75: 22.9 | AF75: 20.6 | AG75: 20.5 | AH75: 19.1 | AM75: 1.02 | AN75: 1.02 | AO75: 1.095
B76: Debt to Equity | C76: 0.4 | D76: 0.3 | E76: 0.7 | F76: 0.3 | G76: 1 | H76: N/A | I76: 0.6 | J76: 0.3 | K76: N/A | L76: N/A | M76: 0.2 | N76: 0.6 | O76: 0.3 | P76: 0.8 | Q76: 0.5 | R76: 0.8 | S76: 0.4 | T76: 0.2 | U76: 1.3 | AC76: 0.5 | AD76: 0.6 | AE76: 0.7 | AF76: 0.6 | AG76: 0.5 | AH76: 0.4 | AM76: 0.045 | AN76: 0.045 | AO76: 0.045
B77: EBIT | C77: 0.053 | D77: 0.104 | E77: 0.044 | F77: 0.04 | G77: 0.058 | H77: N/A | I77: 0.036 | J77: 0.063 | K77: N/A | L77: N/A | M77: 0.053 | N77: 0.054 | O77: 0.018 | P77: 0.058 | Q77: 0.061 | R77: 0.048 | S77: 0.038 | T77: 0.018 | U77: 0.094 | AC77: N/A | AD77: N/A | AE77: 0.045 | AF77: 0.045 | AG77: 0.056 | AH77: 0.053 | AM77: 0.001 | AN77: 0.001 | AO77: 0.001
B78: EBIT To Total Assets | C78: 0.101 | D78: 0.275 | E78: 0.11 | F78: 0.067 | G78: 0.125 | H78: N/A | I78: 0.084 | J78: 0.124 | K78: N/A | L78: N/A | M78: 0.101 | N78: 0.102 | O78: 0.04 | P78: 0.162 | Q78: 0.162 | R78: 0.102 | S78: 0.069 | T78: 0.042 | U78: 0.236 | AC78: 0.084 | AD78: 0.128 | AE78: 0.118 | AF78: 0.12 | AG78: 0.13 | AH78: 0.101 | AM78: 0.025 | AN78: 0.025 | AO78: 0.025
B79: Times Interest Earned | C79: 11 | D79: 46.1 | E79: 16 | F79: 8.6 | G79: 11.5 | H79: N/A | I79: 15.5 | J79: 8.8 | K79: N/A | L79: N/A | M79: 53.2 | N79: 8.9 | O79: 4.5 | P79: 16.3 | Q79: 11.5 | R79: 7.5 | S79: 15.5 | T79: 5.5 | U79: 41.9 | AC79: 12.8 | AD79: 15 | AE79: 7.8 | AF79: 11.7 | AG79: 13.5 | AH79: 11
B80: INVENTORY | AM80: 0.14 | AN80: 0.14 | AO80: 0.14
A81: Selling Expenses | B81: Warehouse % of Sales | C81: 0.95 | D81: 0.935 | E81: 0.95 | F81: 0.982 | G81: 0.95 | H81: N/A | I81: 0.95 | J81: 0.95 | K81: N/A | L81: N/A | M81: 0.99 | N81: 0.95 | O81: 0.95 | P81: 0.993 | Q81: 0.955 | R81: 0.95 | S81: 0.95 | T81: 0.9 | U81: 0.99 | AC81: N/A | AD81: N/A | AE81: 0.938 | AF81: 0.95 | AG81: 0.95 | AH81: =C81 -> 0.95
B82: Inventory Turnover | C82: 6.5 | D82: 7.1 | E82: 7.4 | F82: 7.4 | G82: 6 | H82: N/A | I82: 8 | J82: 6.3 | K82: N/A | L82: N/A | M82: 7.4 | N82: 6.6 | O82: 8.2 | P82: 5.4 | Q82: 5.1 | R82: 7.4 | S82: 10.2 | T82: 5.3 | U82: 12.2 | AC82: 6.8 | AD82: 6.7 | AE82: 6.8 | AF82: 7.9 | AG82: 6.4 | AH82: 6.5
B83: Inventory Holding Period (Days) | C83: 56.4 | D83: 52.2 | E83: 49.4 | F83: 49.1 | G83: 61 | H83: N/A | I83: 45.9 | J83: 57.9 | K83: N/A | L83: N/A | M83: 49.1 | N83: 55.4 | O83: 44.8 | P83: 68.5 | Q83: 71.9 | R83: 49.1 | S83: 37.4 | T83: 30 | U83: 68.7 | AC83: 53.8 | AD83: 54.2 | AE83: 53.9 | AF83: 46.4 | AG83: 56.6 | AH83: 56.4 | AM83: 34.6 | AN83: 34.6 | AO83: 34
A84: Inventory Holding Period (Days) | B84: Sales To Inventory Ratio | C84: 10 | D84: 10.6 | E84: 11.2 | F84: 11.4 | G84: 8.5 | H84: N/A | I84: 11.4 | J84: 8.4 | K84: N/A | L84: N/A | M84: 11.1 | N84: 10.1 | O84: 11.3 | P84: 7.8 | Q84: 7.8 | R84: 11.1 | S84: 14.3 | T84: 7.7 | U84: 17.3 | AC84: 10.1 | AD84: 9.6 | AE84: 9.9 | AF84: 11.5 | AG84: 10 | AH84: 10 | AM84: 135.2 | AN84: 135.2 | AO84: 135.2
B85: Gross Margin Return On Inventory | C85: 3.149 | D85: 3.48 | E85: 3.083 | F85: 3.934 | G85: 2.526 | H85: N/A | I85: 3.715 | J85: 2.921 | K85: N/A | L85: N/A | M85: 3.496 | N85: 3.381 | O85: 3.149 | P85: 2.364 | Q85: 2.526 | R85: 2.921 | S85: 4.345 | T85: 2.32 | U85: 5.194 | AC85: 2.892 | AD85: 3.207 | AE85: 3.183 | AF85: 4.26 | AG85: 3.215 | AH85: 3.149 | AM85: 169.8 | AN85: 169.8 | AO85: 169.2
B86: Average Accounts Receivable (Days) | C86: 73.6 | D86: 70.6 | E86: 74.8 | F86: 67.6 | G86: 83.9 | H86: N/A | I86: 71.7 | J86: 71.4 | K86: N/A | L86: N/A | M86: 81 | N86: 63.5 | O86: 75.8 | P86: 85 | Q86: 66.8 | R86: 81 | S86: 72.6 | T86: 61.1 | U86: 84 | AC86: 68.9 | AD86: 66.5 | AE86: 69.5 | AF86: 68.3 | AG86: 66.4 | AH86: 73.6 | AM86: 22.7 | AN86: 22.7 | AO86: 22.7
B87: Gross Cash Flow | C87: 128.9 | D87: 117.2 | E87: 112.1 | F87: 124 | G87: 144.8 | H87: N/A | I87: 113.1 | J87: 139.1 | K87: N/A | L87: N/A | M87: 128.9 | N87: 112.1 | O87: 146.6 | P87: 153.2 | Q87: 140.7 | R87: 128.9 | S87: 113.1 | T87: 98.9 | U87: 146.8 | AG87: 122.7 | AM87: 147.1 | AN87: 147.1 | AO87: 146.5
B88: Cash Cycle | C88: 99 | D88: 93.7 | E88: 96.8 | F88: 85.5 | G88: 104.1 | H88: N/A | I88: 97 | J88: 94.5 | K88: N/A | L88: N/A | M88: 112 | N88: 87.6 | O88: 99.9 | P88: 104.1 | Q88: 104.1 | R88: 99 | S88: 87.3 | T88: 79.9 | U88: 120.2 | AG88: 97.4
A89: General & Administrative Expenses | B89: Sales To Working Capital | C89: 4 | D89: 4.2 | E89: 4.2 | F89: 3.6 | G89: 4.6 | H89: N/A | I89: 3.9 | J89: 4.2 | K89: N/A | L89: N/A | M89: 3.6 | N89: 4.4 | O89: 3 | P89: 5.4 | Q89: 4.2 | R89: 5.6 | S89: 3.5 | T89: 3.1 | U89: 5.6 | AC89: 4.9 | AD89: 4.9 | AE89: 4.9 | AF89: 4.8 | AG89: 4.5 | AH89: =C89 -> 4 | AM89: 0.048 | AN89: 0.048 | AO89: 0.116
B90: Warehouse COGS | C90: 14988936 | D90: 16791215 | E90: 5905176 | F90: 16218001 | G90: 39942100 | H90: N/A | I90: 11194260 | J90: 12981222 | K90: N/A | L90: N/A | M90: 17027167 | N90: 13776770 | O90: 8050000 | P90: 50157751 | Q90: 21330452 | R90: 13776770 | S90: 10796486 | T90: 6698504 | U90: 20833551 | AC90: N/A | AD90: N/A | AE90: 10516018 | AF90: 9700218 | AG90: 15008444 | AH90: =C90 -> 14988936
B91: CASH FLOW CYCLE | AM91: 4.8 | AN91: 4.8 | AO91: 4.9
B92: Average Collection Period (Days) | C92: 73.6 | D92: 70.6 | E92: 74.8 | F92: 67.6 | G92: 83.9 | H92: N/A | I92: 71.7 | J92: 71.4 | K92: N/A | L92: N/A | M92: 81 | N92: 63.5 | O92: 75.8 | P92: 85 | Q92: 66.8 | R92: 81 | S92: 72.6 | T92: 61.1 | U92: 84 | AC92: 68.9 | AD92: 66.5 | AE92: 69.5 | AF92: 68.3 | AG92: 66.4 | AH92: =C92 -> 73.6
B93: Plus Inventory Holding Period | C93: 56.4 | D93: 52.2 | E93: 49.4 | F93: 49.1 | G93: 61 | H93: N/A | I93: 45.9 | J93: 57.9 | K93: N/A | L93: N/A | M93: 49.1 | N93: 55.4 | O93: 44.8 | P93: 68.5 | Q93: 71.9 | R93: 49.1 | S93: 37.4 | T93: 30 | U93: 68.7 | AC93: 53.8 | AD93: 54.2 | AE93: 53.9 | AF93: 46.4 | AG93: 56.6 | AH93: 56.4 | AM93: 2500 | AN93: 2500 | AO93: 2500
B94: Gross Cash Flow | C94: 130 | D94: 122.8 | E94: 124.2 | F94: 116.7 | G94: 144.9 | H94: 0 | I94: 117.6 | J94: 129.3 | K94: 0 | L94: 0 | M94: 130.1 | N94: 118.9 | O94: 120.6 | P94: 153.5 | Q94: 138.7 | R94: 130.1 | S94: 110 | T94: 91.1 | U94: 152.7 | AC94: 122.7 | AD94: 120.7 | AE94: 123.4 | AF94: 114.7 | AG94: 123 | AH94: 130 | AM94: 9408 | AN94: 9408 | AO94: 10000
B95: Minus A/P Payout Period | C95: 19.1 | D95: 19.5 | E95: 21.6 | F95: 13.1 | G95: 27.7 | H95: N/A | I95: 12.6 | J95: 24.2 | K95: N/A | L95: N/A | M95: 14 | N95: 15.6 | O95: 13.1 | P95: 48.7 | Q95: 19.9 | R95: 28.3 | S95: 16.1 | T95: 11.1 | U95: 34.9 | AC95: 23.5 | AD95: 17.9 | AE95: 22.9 | AF95: 20.6 | AG95: 20.5 | AH95: 19.1 | AM95: 2560 | AN95: 2560 | AO95: 2560
B96: Cash Cycle | C96: 110.9 | D96: 103.3 | E96: 102.6 | F96: 103.6 | G96: 117.2 | I96: 105 | J96: 105.1 | M96: 116.1 | N96: 103.3 | O96: 107.5 | P96: 104.8 | Q96: 118.8 | R96: 101.8 | S96: 93.9 | T96: 80 | U96: 117.8 | AC96: 99.2 | AD96: 102.8 | AE96: 100.5 | AF96: 94.1 | AG96: 102.5 | AH96: 110.9
B97: Employee Productivity | AE97: 0 | AF97: 0 | AH97: 0 | AM97: 700 | AN97: 700 | AO97: 700
B98: Sales Per Employee | C98: 355701 | D98: 381552 | E98: 381552 | F98: 383333 | G98: 336657 | H98: N/A | I98: 390588 | J98: 343584 | K98: N/A | L98: N/A | M98: 332729 | N98: 361346 | O98: 383333 | P98: 348120 | Q98: 342062 | R98: 361346 | S98: 391246 | T98: 305544 | U98: 419788 | AC98: 318745 | AD98: 333914 | AE98: 331567 | AF98: 323781 | AG98: 385752 | AH98: 355701 | AM98: 35000 | AN98: 35000 | AO98: 35714.29
B99: Gross Profit Per Employee | C99: 113933 | D99: 124546 | E99: 124546 | F99: 108767 | G99: 113484 | H99: N/A | I99: 112870 | J99: 114974 | K99: N/A | L99: N/A | M99: 105766 | N99: 114974 | O99: 115000 | P99: 111202 | Q99: 113484 | R99: 108767 | S99: 122139 | T99: 96284 | U99: 138700 | AC99: 97775 | AD99: 106343 | AE99: 103260 | AF99: 107249 | AG99: 114305 | AH99: 113933
B100: Salary Per Employee | C100: 59357 | D100: 58962 | E100: 67759 | F100: 60042 | G100: 55305 | H100: N/A | I100: 60840 | J100: 60927 | K100: N/A | L100: N/A | M100: 61920 | N100: 58135 | O100: 101088 | P100: 54748 | Q100: 58375 | R100: 59760 | S100: 65794 | T100: 52977 | U100: 72571 | AC100: 56028 | AD100: 67753 | AE100: 56064 | AF100: 58716 | AG100: 60478 | AH100: 59357 | AM100: 0.075 | AN100: 0.075 | AO100: 0.075
B101: Payroll, including benefits Per Employee | C101: 74630 | D101: 71638 | E101: 81347 | F101: 75462 | G101: 66627 | H101: N/A | I101: 75955 | J101: 77892 | K101: N/A | L101: N/A | M101: 74434 | N101: 77085 | O101: 124833 | P101: 62972 | Q101: 72785 | R101: 72862 | S101: 77218 | T101: 66227 | U101: 83162 | AC101: 69518 | AD101: 78949 | AE101: 70573 | AF101: 70869 | AG101: 71526 | AH101: 74630 | AM101: 2.5 | AN101: 2.5 | AO101: 2.5
B102: Personnel Productivity Ratio | C102: 0.649 | D102: 0.548 | E102: 0.669 | F102: 0.696 | G102: 0.59 | I102: 0.729 | J102: 0.657 | M102: 0.641 | N102: 0.667 | O102: 0.777 | P102: 0.561 | Q102: 0.616 | R102: 0.652 | S102: 0.763 | T102: 0.574 | U102: 0.742 | AC102: 0.669 | AD102: 0.638 | AE102: 0.655 | AF102: 0.655 | AG102: 0.599 | AH102: 0.649 | AM102: 7.5 | AN102: 7.5 | AO102: 7.5
B103: Average Number of Employees | C103: 59 | D103: 61 | E103: 28 | F103: 63 | G103: 206 | H103: N/A | I103: 48 | J103: 59 | K103: N/A | L103: N/A | M103: 63 | N103: 58 | O103: 38 | P103: 251 | Q103: 123 | R103: 68 | S103: 48 | T103: 30 | U103: 102 | AC103: N/A | AD103: N/A | AE103: 55 | AF103: 47 | AG103: 59 | AH103: 59 | AM103: 5 | AN103: 5 | AO103: 5
AM104: 2 | AN104: 2 | AO104: 2
B105: =C1 -> Typical DHI Distributor | AM105: 10 | AN105: 10 | AO105: 10
B106: =D1 -> High Profit DHI Distributor | AM106: 5 | AN106: 5 | AO106: 5
B107: =Q1 -> Under 70% Contract Jobs | AM107: 1 | AN107: 1 | AO107: 1
B108: =R1 -> 70% - 80% Contract Jobs | AM108: 15 | AN108: 15 | AO108: 15
B109: =S1 -> Over 80% Contract Jobs | AM109: 25 | AN109: 25 | AO109: 25
B110: =E1 -> Sales Under $15 Million | AM110: 10 | AN110: 10 | AO110: 10
B111: =F1 -> Sales $15-$30 Million | AM111: 5 | AN111: 5 | AO111: 5
B112: =H1 -> Sales Over $30 Million | AM112: 4 | AN112: 4 | AO112: 4
B113: =M1 -> Southeastern Region | AM113: 0.5 | AN113: 0.5 | AO113: 0.5
B114: =N1 -> North Central Region | AM114: 1 | AN114: 1 | AO114: 1
B115: =T1 -> Lower Quartile
B116: =U1 -> Upper Quartile | AM116: 612500 | AN116: 612500 | AO116: 625000
AM117: 170000 | AN117: 170000 | AO117: 182500
AM118: 87500 | AN118: 87500 | AO118: 87500
AM119: 103750 | AN119: 103750 | AO119: 103750
AM120: 61 | AN120: 61 | AO120: 56.8
AM121: 40 | AN121: 40 | AO121: 40
AM124: 0.22 | AN124: 0.22 | AO124: 0.73
AM125: 0.22 | AN125: 0.22 | AO125: 0.18
AM126: 0.19 | AN126: 0.19 | AO126: 0.59
AM127: 0.37 | AN127: 0.37 | AO127: 0.45
AM128: 0.26 | AN128: 0.26 | AO128: 0.41
AM129: 0.11 | AN129: 0.11 | AO129: 0.05
AM130: 0.85 | AN130: 0.85 | AO130: 0.91
AM131: 0.79 | AN131: 0.79 | AO131: 0.89
AM132: 0.22 | AN132: 0.22 | AO132: 0.5
AM133: 0.79 | AN133: 0.79 | AO133: 0.74
AM134: 0.79 | AN134: 0.79 | AO134: 0.89
AM135: 0.75 | AN135: 0.75 | AO135: 0.68
AM136: 0.5 | AN136: 0.5 | AO136: 0.55
AM137: 0.89 | AN137: 0.89 | AO137: 0.91
AM138: 0.33 | AN138: 0.33 | AO138: 0.68
AM139: 0.59 | AN139: 0.59 | AO139: 0.55
AM140: 0.33 | AN140: 0.33 | AO140: 0.36
AM141: 0.38 | AN141: 0.38 | AO141: 0.73
AM142: 0.41 | AN142: 0.41 | AO142: 0.55
AM143: 0.07 | AN143: 0.07 | AO143: 0.05
AM144: 0.07 | AN144: 0.07 | AO144: 0.27
AM145: 0.56 | AN145: 0.56 | AO145: 0.52

Sheet Graph Ref (hidden)
A1: FPR Data | B1: =Data!C1 -> Typical DHI Distributor | C1: =Data!D1 -> High Profit DHI Distributor | D1: =Data!E1 -> Sales Under $15 Million | E1: =Data!F1 -> Sales $15-$30 Million | F1: =Data!G1 -> Sales Over $30 Million | G1: =Data!H1 -> Sales Over $30 Million | H1: =Data!I1 -> Major Urban Markets | I1: =Data!J1 -> Secondary & Rural Markets | J1: =Data!K1 -> Rural Market Areas | K1: =Data!L1 -> Northeastern | L1: =Data!M1 -> Southeastern Region | M1: =Data!N1 -> North Central Region | N1: =Data!O1 -> Western | O1: =Data!P1 -> Canada | P1: =Data!Q1 -> Under 70% Contract Jobs | Q1: =Data!R1 -> 70% - 80% Contract Jobs | R1: =Data!S1 -> Over 80% Contract Jobs | S1: =Data!T1 -> Lower Quartile | T1: =Data!U1 -> Upper Quartile | V1: =#REF! -> 
A2: RATIOS
A3: Sales Growth (%) | B3: =IFERROR(Data!C5*100,"B") -> -5.4 | C3: =IFERROR(Data!D5*100,"B") -> 1.3 | D3: =IFERROR(Data!E5*100,"B") -> -9.2 | E3: =IFERROR(Data!F5*100,"B") -> -6.5 | F3: =IFERROR(Data!G5*100,"B") -> 1.3 | G3: =IFERROR(Data!H5*100,"B") -> B | H3: =IFERROR(Data!I5*100,"B") -> -7.3 | I3: =IFERROR(Data!J5*100,"B") -> -2.4 | J3: =IFERROR(Data!K5*100,"B") -> B | K3: =IFERROR(Data!L5*100,"B") -> B | L3: =IFERROR(Data!M5*100,"B") -> -6.5 | M3: =IFERROR(Data!N5*100,"B") -> -7.4 | N3: =IFERROR(Data!O5*100,"B") -> 4.5 | O3: =IFERROR(Data!P5*100,"B") -> 1.4 | P3: =IFERROR(Data!Q5*100,"B") -> 1.3 | Q3: =IFERROR(Data!R5*100,"B") -> -11 | R3: =IFERROR(Data!S5*100,"B") -> -4.8 | S3: =IFERROR(Data!T5*100,"B") -> -11.4 | T3: =IFERROR(Data!U5*100,"B") -> 4.5 | V3: =IFERROR(#REF!*100,"B") -> B
A4: Profit Margin (%) | B4: =IFERROR(Data!C16*100,"B") -> 5 | C4: =IFERROR(Data!D16*100,"B") -> 10.2 | D4: =IFERROR(Data!E16*100,"B") -> 4.2 | E4: =IFERROR(Data!F16*100,"B") -> 4 | F4: =IFERROR(Data!G16*100,"B") -> 5.2 | G4: =IFERROR(Data!H16*100,"B") -> B | H4: =IFERROR(Data!I16*100,"B") -> 3.6 | I4: =IFERROR(Data!J16*100,"B") -> 5.1 | J4: =IFERROR(Data!K16*100,"B") -> B | K4: =IFERROR(Data!L16*100,"B") -> B | L4: =IFERROR(Data!M16*100,"B") -> 5 | M4: =IFERROR(Data!N16*100,"B") -> 5.1 | N4: =IFERROR(Data!O16*100,"B") -> 1.4 | O4: =IFERROR(Data!P16*100,"B") -> 5.5 | P4: =IFERROR(Data!Q16*100,"B") -> 5.5 | Q4: =IFERROR(Data!R16*100,"B") -> 4.8 | R4: =IFERROR(Data!S16*100,"B") -> 3.8 | S4: =IFERROR(Data!T16*100,"B") -> 1.4 | T4: =IFERROR(Data!U16*100,"B") -> 9.1 | V4: =IFERROR(#REF!*100,"B") -> B
A5: Asset Turnover | B5: =IFERROR(Data!C17,"B") -> 2.4 | C5: =IFERROR(Data!D17,"B") -> 2.7 | D5: =IFERROR(Data!E17,"B") -> 2.5 | E5: =IFERROR(Data!F17,"B") -> 2.4 | F5: =IFERROR(Data!G17,"B") -> 2.2 | G5: =IFERROR(Data!H17,"B") -> N/A | H5: =IFERROR(Data!I17,"B") -> 2.6 | I5: =IFERROR(Data!J17,"B") -> 2.3 | J5: =IFERROR(Data!K17,"B") -> N/A | K5: =IFERROR(Data!L17,"B") -> N/A | L5: =IFERROR(Data!M17,"B") -> 2.5 | M5: =IFERROR(Data!N17,"B") -> 2.3 | N5: =IFERROR(Data!O17,"B") -> 2.4 | O5: =IFERROR(Data!P17,"B") -> 2.5 | P5: =IFERROR(Data!Q17,"B") -> 2.5 | Q5: =IFERROR(Data!R17,"B") -> 2.3 | R5: =IFERROR(Data!S17,"B") -> 2.4 | S5: =IFERROR(Data!T17,"B") -> 1.9 | T5: =IFERROR(Data!U17,"B") -> 2.8 | V5: =IFERROR(#REF!,"B") -> B
A6: Return On Assets (%) | B6: =IFERROR(Data!C18*100,"B") -> 12 | C6: =IFERROR(Data!D18*100,"B") -> 27.5 | D6: =IFERROR(Data!E18*100,"B") -> 10.5 | E6: =IFERROR(Data!F18*100,"B") -> 9.6 | F6: =IFERROR(Data!G18*100,"B") -> 11.4 | G6: =IFERROR(Data!H18*100,"B") -> B | H6: =IFERROR(Data!I18*100,"B") -> 9.4 | I6: =IFERROR(Data!J18*100,"B") -> 11.7 | J6: =IFERROR(Data!K18*100,"B") -> B | K6: =IFERROR(Data!L18*100,"B") -> B | L6: =IFERROR(Data!M18*100,"B") -> 12.5 | M6: =IFERROR(Data!N18*100,"B") -> 11.7 | N6: =IFERROR(Data!O18*100,"B") -> 3.4 | O6: =IFERROR(Data!P18*100,"B") -> 13.8 | P6: =IFERROR(Data!Q18*100,"B") -> 13.8 | Q6: =IFERROR(Data!R18*100,"B") -> 11 | R6: =IFERROR(Data!S18*100,"B") -> 9.1 | S6: =IFERROR(Data!T18*100,"B") -> 3 | T6: =IFERROR(Data!U18*100,"B") -> 22.5 | V6: =IFERROR(#REF!*100,"B") -> B
A7: Financial Leverage | B7: =IFERROR(Data!C19,"B") -> 1.4 | C7: =IFERROR(Data!D19,"B") -> 1.3 | D7: =IFERROR(Data!E19,"B") -> 1.7 | E7: =IFERROR(Data!F19,"B") -> 1.3 | F7: =IFERROR(Data!G19,"B") -> 2 | G7: =IFERROR(Data!H19,"B") -> N/A | H7: =IFERROR(Data!I19,"B") -> 1.6 | I7: =IFERROR(Data!J19,"B") -> 1.3 | J7: =IFERROR(Data!K19,"B") -> N/A | K7: =IFERROR(Data!L19,"B") -> N/A | L7: =IFERROR(Data!M19,"B") -> 1.2 | M7: =IFERROR(Data!N19,"B") -> 1.6 | N7: =IFERROR(Data!O19,"B") -> 1.3 | O7: =IFERROR(Data!P19,"B") -> 1.8 | P7: =IFERROR(Data!Q19,"B") -> 1.5 | Q7: =IFERROR(Data!R19,"B") -> 1.8 | R7: =IFERROR(Data!S19,"B") -> 1.4 | S7: =IFERROR(Data!T19,"B") -> 1.2 | T7: =IFERROR(Data!U19,"B") -> 2.3 | V7: =IFERROR(#REF!,"B") -> B
A8: Return On Net Worth (%) | B8: =IFERROR(Data!C20*100,"B") -> 16.8 | C8: =IFERROR(Data!D20*100,"B") -> 35.8 | D8: =IFERROR(Data!E20*100,"B") -> 17.9 | E8: =IFERROR(Data!F20*100,"B") -> 12.5 | F8: =IFERROR(Data!G20*100,"B") -> 22.8 | G8: =IFERROR(Data!H20*100,"B") -> B | H8: =IFERROR(Data!I20*100,"B") -> 15 | I8: =IFERROR(Data!J20*100,"B") -> 15.2 | J8: =IFERROR(Data!K20*100,"B") -> B | K8: =IFERROR(Data!L20*100,"B") -> B | L8: =IFERROR(Data!M20*100,"B") -> 15 | M8: =IFERROR(Data!N20*100,"B") -> 18.7 | N8: =IFERROR(Data!O20*100,"B") -> 4.4 | O8: =IFERROR(Data!P20*100,"B") -> 24.8 | P8: =IFERROR(Data!Q20*100,"B") -> 20.7 | Q8: =IFERROR(Data!R20*100,"B") -> 19.8 | R8: =IFERROR(Data!S20*100,"B") -> 12.7 | S8: =IFERROR(Data!T20*100,"B") -> 5.6 | T8: =IFERROR(Data!U20*100,"B") -> 31 | V8: =IFERROR(#REF!*100,"B") -> B
A9: Current Ratio | B9: =IFERROR(Data!C71,"B") -> 3.3 | C9: =IFERROR(Data!D71,"B") -> 4.4 | D9: =IFERROR(Data!E71,"B") -> 3.5 | E9: =IFERROR(Data!F71,"B") -> 4.4 | F9: =IFERROR(Data!G71,"B") -> 2.5 | G9: =IFERROR(Data!H71,"B") -> N/A | H9: =IFERROR(Data!I71,"B") -> 3.7 | I9: =IFERROR(Data!J71,"B") -> 3.7 | J9: =IFERROR(Data!K71,"B") -> N/A | K9: =IFERROR(Data!L71,"B") -> N/A | L9: =IFERROR(Data!M71,"B") -> 4.8 | M9: =IFERROR(Data!N71,"B") -> 2.5 | N9: =IFERROR(Data!O71,"B") -> 7.2 | O9: =IFERROR(Data!P71,"B") -> 2.3 | P9: =IFERROR(Data!Q71,"B") -> 3.3 | Q9: =IFERROR(Data!R71,"B") -> 1.8 | R9: =IFERROR(Data!S71,"B") -> 4.4 | S9: =IFERROR(Data!T71,"B") -> 2.2 | T9: =IFERROR(Data!U71,"B") -> 5.7 | V9: =IFERROR(#REF!,"B") -> B
A10: Quick Ratio | B10: =IFERROR(Data!C72,"B") -> 2.6 | C10: =IFERROR(Data!D72,"B") -> 3.6 | D10: =IFERROR(Data!E72,"B") -> 2.8 | E10: =IFERROR(Data!F72,"B") -> 3.6 | F10: =IFERROR(Data!G72,"B") -> 1.4 | G10: =IFERROR(Data!H72,"B") -> N/A | H10: =IFERROR(Data!I72,"B") -> 3.1 | I10: =IFERROR(Data!J72,"B") -> 2.8 | J10: =IFERROR(Data!K72,"B") -> N/A | K10: =IFERROR(Data!L72,"B") -> N/A | L10: =IFERROR(Data!M72,"B") -> 4 | M10: =IFERROR(Data!N72,"B") -> 2.1 | N10: =IFERROR(Data!O72,"B") -> 6.3 | O10: =IFERROR(Data!P72,"B") -> 1.4 | P10: =IFERROR(Data!Q72,"B") -> 2 | Q10: =IFERROR(Data!R72,"B") -> 1.3 | R10: =IFERROR(Data!S72,"B") -> 3.5 | S10: =IFERROR(Data!T72,"B") -> 1.3 | T10: =IFERROR(Data!U72,"B") -> 4.1 | V10: =IFERROR(#REF!,"B") -> B
A11: Cash To Current Liabilities | B11: =IFERROR(Data!C73*100,"B") -> 64.5 | C11: =IFERROR(Data!D73*100,"B") -> 74 | D11: =IFERROR(Data!E73*100,"B") -> 65.4 | E11: =IFERROR(Data!F73*100,"B") -> 100.4 | F11: =IFERROR(Data!G73*100,"B") -> 3.9 | G11: =IFERROR(Data!H73*100,"B") -> B | H11: =IFERROR(Data!I73*100,"B") -> 69.3 | I11: =IFERROR(Data!J73*100,"B") -> 40.9 | J11: =IFERROR(Data!K73*100,"B") -> B | K11: =IFERROR(Data!L73*100,"B") -> B | L11: =IFERROR(Data!M73*100,"B") -> 94.8 | M11: =IFERROR(Data!N73*100,"B") -> 10 | N11: =IFERROR(Data!O73*100,"B") -> 241.5 | O11: =IFERROR(Data!P73*100,"B") -> B | P11: =IFERROR(Data!Q73*100,"B") -> 4.4 | Q11: =IFERROR(Data!R73*100,"B") -> 4.6 | R11: =IFERROR(Data!S73*100,"B") -> 105.9 | S11: =IFERROR(Data!T73*100,"B") -> 3.9 | T11: =IFERROR(Data!U73*100,"B") -> 195.6 | V11: =IFERROR(#REF!*100,"B") -> B
A12: Average Collection Period (Days) | B12: =IFERROR(Data!C92,"B") -> 73.6 | C12: =IFERROR(Data!D92,"B") -> 70.6 | D12: =IFERROR(Data!E92,"B") -> 74.8 | E12: =IFERROR(Data!F92,"B") -> 67.6 | F12: =IFERROR(Data!G92,"B") -> 83.9 | G12: =IFERROR(Data!H92,"B") -> N/A | H12: =IFERROR(Data!I92,"B") -> 71.7 | I12: =IFERROR(Data!J92,"B") -> 71.4 | J12: =IFERROR(Data!K92,"B") -> N/A | K12: =IFERROR(Data!L92,"B") -> N/A | L12: =IFERROR(Data!M92,"B") -> 81 | M12: =IFERROR(Data!N92,"B") -> 63.5 | N12: =IFERROR(Data!O92,"B") -> 75.8 | O12: =IFERROR(Data!P92,"B") -> 85 | P12: =IFERROR(Data!Q92,"B") -> 66.8 | Q12: =IFERROR(Data!R92,"B") -> 81 | R12: =IFERROR(Data!S92,"B") -> 72.6 | S12: =IFERROR(Data!T92,"B") -> 61.1 | T12: =IFERROR(Data!U92,"B") -> 84 | V12: =IFERROR(#REF!,"B") -> B
A13: Inventory Holding Period | B13: =IFERROR(Data!C93,"B") -> 56.4 | C13: =IFERROR(Data!D93,"B") -> 52.2 | D13: =IFERROR(Data!E93,"B") -> 49.4 | E13: =IFERROR(Data!F93,"B") -> 49.1 | F13: =IFERROR(Data!G93,"B") -> 61 | G13: =IFERROR(Data!H93,"B") -> N/A | H13: =IFERROR(Data!I93,"B") -> 45.9 | I13: =IFERROR(Data!J93,"B") -> 57.9 | J13: =IFERROR(Data!K93,"B") -> N/A | K13: =IFERROR(Data!L93,"B") -> N/A | L13: =IFERROR(Data!M93,"B") -> 49.1 | M13: =IFERROR(Data!N93,"B") -> 55.4 | N13: =IFERROR(Data!O93,"B") -> 44.8 | O13: =IFERROR(Data!P93,"B") -> 68.5 | P13: =IFERROR(Data!Q93,"B") -> 71.9 | Q13: =IFERROR(Data!R93,"B") -> 49.1 | R13: =IFERROR(Data!S93,"B") -> 37.4 | S13: =IFERROR(Data!T93,"B") -> 30 | T13: =IFERROR(Data!U93,"B") -> 68.7 | V13: =IFERROR(#REF!,"B") -> B
A14: Gross Cash Flow | B14: =IFERROR(Data!C94,"B") -> 130 | C14: =IFERROR(Data!D94,"B") -> 122.8 | D14: =IFERROR(Data!E94,"B") -> 124.2 | E14: =IFERROR(Data!F94,"B") -> 116.7 | F14: =IFERROR(Data!G94,"B") -> 144.9 | G14: =IFERROR(Data!H94,"B") -> 0 | H14: =IFERROR(Data!I94,"B") -> 117.6 | I14: =IFERROR(Data!J94,"B") -> 129.3 | J14: =IFERROR(Data!K94,"B") -> 0 | K14: =IFERROR(Data!L94,"B") -> 0 | L14: =IFERROR(Data!M94,"B") -> 130.1 | M14: =IFERROR(Data!N94,"B") -> 118.9 | N14: =IFERROR(Data!O94,"B") -> 120.6 | O14: =IFERROR(Data!P94,"B") -> 153.5 | P14: =IFERROR(Data!Q94,"B") -> 138.7 | Q14: =IFERROR(Data!R94,"B") -> 130.1 | R14: =IFERROR(Data!S94,"B") -> 110 | S14: =IFERROR(Data!T94,"B") -> 91.1 | T14: =IFERROR(Data!U94,"B") -> 152.7 | V14: =IFERROR(#REF!,"B") -> B
A15: A/P Payout Period | B15: =IFERROR(Data!C95,"B") -> 19.1 | C15: =IFERROR(Data!D95,"B") -> 19.5 | D15: =IFERROR(Data!E95,"B") -> 21.6 | E15: =IFERROR(Data!F95,"B") -> 13.1 | F15: =IFERROR(Data!G95,"B") -> 27.7 | G15: =IFERROR(Data!H95,"B") -> N/A | H15: =IFERROR(Data!I95,"B") -> 12.6 | I15: =IFERROR(Data!J95,"B") -> 24.2 | J15: =IFERROR(Data!K95,"B") -> N/A | K15: =IFERROR(Data!L95,"B") -> N/A | L15: =IFERROR(Data!M95,"B") -> 14 | M15: =IFERROR(Data!N95,"B") -> 15.6 | N15: =IFERROR(Data!O95,"B") -> 13.1 | O15: =IFERROR(Data!P95,"B") -> 48.7 | P15: =IFERROR(Data!Q95,"B") -> 19.9 | Q15: =IFERROR(Data!R95,"B") -> 28.3 | R15: =IFERROR(Data!S95,"B") -> 16.1 | S15: =IFERROR(Data!T95,"B") -> 11.1 | T15: =IFERROR(Data!U95,"B") -> 34.9 | V15: =IFERROR(#REF!,"B") -> B
A16: Cash Cycle (Days) | B16: =IFERROR(Data!C96,"B") -> 110.9 | C16: =IFERROR(Data!D96,"B") -> 103.3 | D16: =IFERROR(Data!E96,"B") -> 102.6 | E16: =IFERROR(Data!F96,"B") -> 103.6 | F16: =IFERROR(Data!G96,"B") -> 117.2 | G16: =IFERROR(Data!H96,"B") -> B | H16: =IFERROR(Data!I96,"B") -> 105 | I16: =IFERROR(Data!J96,"B") -> 105.1 | J16: =IFERROR(Data!K96,"B") -> B | K16: =IFERROR(Data!L96,"B") -> B | L16: =IFERROR(Data!M96,"B") -> 116.1 | M16: =IFERROR(Data!N96,"B") -> 103.3 | N16: =IFERROR(Data!O96,"B") -> 107.5 | O16: =IFERROR(Data!P96,"B") -> 104.8 | P16: =IFERROR(Data!Q96,"B") -> 118.8 | Q16: =IFERROR(Data!R96,"B") -> 101.8 | R16: =IFERROR(Data!S96,"B") -> 93.9 | S16: =IFERROR(Data!T96,"B") -> 80 | T16: =IFERROR(Data!U96,"B") -> 117.8 | V16: =IFERROR(#REF!,"B") -> B
A17: Accounts Payable To Inventory | B17: =IFERROR(Data!C74*100,"B") -> 46.1 | C17: =IFERROR(Data!D74*100,"B") -> 55.4 | D17: =IFERROR(Data!E74*100,"B") -> 50.6 | E17: =IFERROR(Data!F74*100,"B") -> 30.2 | F17: =IFERROR(Data!G74*100,"B") -> 55.1 | G17: =IFERROR(Data!H74*100,"B") -> B | H17: =IFERROR(Data!I74*100,"B") -> 29.5 | I17: =IFERROR(Data!J74*100,"B") -> 46.1 | J17: =IFERROR(Data!K74*100,"B") -> B | K17: =IFERROR(Data!L74*100,"B") -> B | L17: =IFERROR(Data!M74*100,"B") -> 28.8 | M17: =IFERROR(Data!N74*100,"B") -> 46.1 | N17: =IFERROR(Data!O74*100,"B") -> 20.2 | O17: =IFERROR(Data!P74*100,"B") -> 71.3 | P17: =IFERROR(Data!Q74*100,"B") -> 37.5 | Q17: =IFERROR(Data!R74*100,"B") -> 46.4 | R17: =IFERROR(Data!S74*100,"B") -> 61 | S17: =IFERROR(Data!T74*100,"B") -> 20.2 | T17: =IFERROR(Data!U74*100,"B") -> 78.4 | V17: =IFERROR(#REF!*100,"B") -> B
A18: Accounts Payable Payout Period | B18: =IFERROR(Data!C75,"B") -> 19.1 | C18: =IFERROR(Data!D75,"B") -> 19.5 | D18: =IFERROR(Data!E75,"B") -> 21.6 | E18: =IFERROR(Data!F75,"B") -> 13.1 | F18: =IFERROR(Data!G75,"B") -> 27.7 | G18: =IFERROR(Data!H75,"B") -> N/A | H18: =IFERROR(Data!I75,"B") -> 12.6 | I18: =IFERROR(Data!J75,"B") -> 24.2 | J18: =IFERROR(Data!K75,"B") -> N/A | K18: =IFERROR(Data!L75,"B") -> N/A | L18: =IFERROR(Data!M75,"B") -> 14 | M18: =IFERROR(Data!N75,"B") -> 15.6 | N18: =IFERROR(Data!O75,"B") -> 13.1 | O18: =IFERROR(Data!P75,"B") -> 48.7 | P18: =IFERROR(Data!Q75,"B") -> 19.9 | Q18: =IFERROR(Data!R75,"B") -> 28.3 | R18: =IFERROR(Data!S75,"B") -> 16.1 | S18: =IFERROR(Data!T75,"B") -> 11.1 | T18: =IFERROR(Data!U75,"B") -> 34.9 | V18: =IFERROR(#REF!,"B") -> B
A19: Debt To Equity | B19: =IFERROR(Data!C76,"B") -> 0.4 | C19: =IFERROR(Data!D76,"B") -> 0.3 | D19: =IFERROR(Data!E76,"B") -> 0.7 | E19: =IFERROR(Data!F76,"B") -> 0.3 | F19: =IFERROR(Data!G76,"B") -> 1 | G19: =IFERROR(Data!H76,"B") -> N/A | H19: =IFERROR(Data!I76,"B") -> 0.6 | I19: =IFERROR(Data!J76,"B") -> 0.3 | J19: =IFERROR(Data!K76,"B") -> N/A | K19: =IFERROR(Data!L76,"B") -> N/A | L19: =IFERROR(Data!M76,"B") -> 0.2 | M19: =IFERROR(Data!N76,"B") -> 0.6 | N19: =IFERROR(Data!O76,"B") -> 0.3 | O19: =IFERROR(Data!P76,"B") -> 0.8 | P19: =IFERROR(Data!Q76,"B") -> 0.5 | Q19: =IFERROR(Data!R76,"B") -> 0.8 | R19: =IFERROR(Data!S76,"B") -> 0.4 | S19: =IFERROR(Data!T76,"B") -> 0.2 | T19: =IFERROR(Data!U76,"B") -> 1.3 | V19: =IFERROR(#REF!,"B") -> B
A20: EBIT | B20: =IFERROR(Data!C77*100,"B") -> 5.3 | C20: =IFERROR(Data!D77*100,"B") -> 10.4 | D20: =IFERROR(Data!E77*100,"B") -> 4.4 | E20: =IFERROR(Data!F77*100,"B") -> 4 | F20: =IFERROR(Data!G77*100,"B") -> 5.8 | G20: =IFERROR(Data!H77*100,"B") -> B | H20: =IFERROR(Data!I77*100,"B") -> 3.6 | I20: =IFERROR(Data!J77*100,"B") -> 6.3 | J20: =IFERROR(Data!K77*100,"B") -> B | K20: =IFERROR(Data!L77*100,"B") -> B | L20: =IFERROR(Data!M77*100,"B") -> 5.3 | M20: =IFERROR(Data!N77*100,"B") -> 5.4 | N20: =IFERROR(Data!O77*100,"B") -> 1.8 | O20: =IFERROR(Data!P77*100,"B") -> 5.8 | P20: =IFERROR(Data!Q77*100,"B") -> 6.1 | Q20: =IFERROR(Data!R77*100,"B") -> 4.8 | R20: =IFERROR(Data!S77*100,"B") -> 3.8 | S20: =IFERROR(Data!T77*100,"B") -> 1.8 | T20: =IFERROR(Data!U77*100,"B") -> 9.4 | V20: =IFERROR(#REF!*100,"B") -> B
A21: EBIT To Total Assets | B21: =IFERROR(Data!C78*100,"B") -> 10.1 | C21: =IFERROR(Data!D78*100,"B") -> 27.5 | D21: =IFERROR(Data!E78*100,"B") -> 11 | E21: =IFERROR(Data!F78*100,"B") -> 6.7 | F21: =IFERROR(Data!G78*100,"B") -> 12.5 | G21: =IFERROR(Data!H78*100,"B") -> B | H21: =IFERROR(Data!I78*100,"B") -> 8.4 | I21: =IFERROR(Data!J78*100,"B") -> 12.4 | J21: =IFERROR(Data!K78*100,"B") -> B | K21: =IFERROR(Data!L78*100,"B") -> B | L21: =IFERROR(Data!M78*100,"B") -> 10.1 | M21: =IFERROR(Data!N78*100,"B") -> 10.2 | N21: =IFERROR(Data!O78*100,"B") -> 4 | O21: =IFERROR(Data!P78*100,"B") -> 16.2 | P21: =IFERROR(Data!Q78*100,"B") -> 16.2 | Q21: =IFERROR(Data!R78*100,"B") -> 10.2 | R21: =IFERROR(Data!S78*100,"B") -> 6.9 | S21: =IFERROR(Data!T78*100,"B") -> 4.2 | T21: =IFERROR(Data!U78*100,"B") -> 23.6 | V21: =IFERROR(#REF!*100,"B") -> B
A22: Times Interest Earned | B22: =IFERROR(Data!C79,"B") -> 11 | C22: =IFERROR(Data!D79,"B") -> 46.1 | D22: =IFERROR(Data!E79,"B") -> 16 | E22: =IFERROR(Data!F79,"B") -> 8.6 | F22: =IFERROR(Data!G79,"B") -> 11.5 | G22: =IFERROR(Data!H79,"B") -> N/A | H22: =IFERROR(Data!I79,"B") -> 15.5 | I22: =IFERROR(Data!J79,"B") -> 8.8 | J22: =IFERROR(Data!K79,"B") -> N/A | K22: =IFERROR(Data!L79,"B") -> N/A | L22: =IFERROR(Data!M79,"B") -> 53.2 | M22: =IFERROR(Data!N79,"B") -> 8.9 | N22: =IFERROR(Data!O79,"B") -> 4.5 | O22: =IFERROR(Data!P79,"B") -> 16.3 | P22: =IFERROR(Data!Q79,"B") -> 11.5 | Q22: =IFERROR(Data!R79,"B") -> 7.5 | R22: =IFERROR(Data!S79,"B") -> 15.5 | S22: =IFERROR(Data!T79,"B") -> 5.5 | T22: =IFERROR(Data!U79,"B") -> 41.9 | V22: =IFERROR(#REF!,"B") -> B
A23: Inventory Turnover | B23: =IFERROR(Data!C82,"B") -> 6.5 | C23: =IFERROR(Data!D82,"B") -> 7.1 | D23: =IFERROR(Data!E82,"B") -> 7.4 | E23: =IFERROR(Data!F82,"B") -> 7.4 | F23: =IFERROR(Data!G82,"B") -> 6 | G23: =IFERROR(Data!H82,"B") -> N/A | H23: =IFERROR(Data!I82,"B") -> 8 | I23: =IFERROR(Data!J82,"B") -> 6.3 | J23: =IFERROR(Data!K82,"B") -> N/A | K23: =IFERROR(Data!L82,"B") -> N/A | L23: =IFERROR(Data!M82,"B") -> 7.4 | M23: =IFERROR(Data!N82,"B") -> 6.6 | N23: =IFERROR(Data!O82,"B") -> 8.2 | O23: =IFERROR(Data!P82,"B") -> 5.4 | P23: =IFERROR(Data!Q82,"B") -> 5.1 | Q23: =IFERROR(Data!R82,"B") -> 7.4 | R23: =IFERROR(Data!S82,"B") -> 10.2 | S23: =IFERROR(Data!T82,"B") -> 5.3 | T23: =IFERROR(Data!U82,"B") -> 12.2 | V23: =IFERROR(#REF!,"B") -> B
A24: Sales to Inventory Ratio | B24: =IFERROR(Data!C84,"B") -> 10 | C24: =IFERROR(Data!D84,"B") -> 10.6 | D24: =IFERROR(Data!E84,"B") -> 11.2 | E24: =IFERROR(Data!F84,"B") -> 11.4 | F24: =IFERROR(Data!G84,"B") -> 8.5 | G24: =IFERROR(Data!H84,"B") -> N/A | H24: =IFERROR(Data!I84,"B") -> 11.4 | I24: =IFERROR(Data!J84,"B") -> 8.4 | J24: =IFERROR(Data!K84,"B") -> N/A | K24: =IFERROR(Data!L84,"B") -> N/A | L24: =IFERROR(Data!M84,"B") -> 11.1 | M24: =IFERROR(Data!N84,"B") -> 10.1 | N24: =IFERROR(Data!O84,"B") -> 11.3 | O24: =IFERROR(Data!P84,"B") -> 7.8 | P24: =IFERROR(Data!Q84,"B") -> 7.8 | Q24: =IFERROR(Data!R84,"B") -> 11.1 | R24: =IFERROR(Data!S84,"B") -> 14.3 | S24: =IFERROR(Data!T84,"B") -> 7.7 | T24: =IFERROR(Data!U84,"B") -> 17.3 | V24: =IFERROR(#REF!,"B") -> B
A25: GMROI | B25: =IFERROR(Data!C85*100,"B") -> 314.9 | C25: =IFERROR(Data!D85*100,"B") -> 348 | D25: =IFERROR(Data!E85*100,"B") -> 308.3 | E25: =IFERROR(Data!F85*100,"B") -> 393.4 | F25: =IFERROR(Data!G85*100,"B") -> 252.6 | G25: =IFERROR(Data!H85*100,"B") -> B | H25: =IFERROR(Data!I85*100,"B") -> 371.5 | I25: =IFERROR(Data!J85*100,"B") -> 292.1 | J25: =IFERROR(Data!K85*100,"B") -> B | K25: =IFERROR(Data!L85*100,"B") -> B | L25: =IFERROR(Data!M85*100,"B") -> 349.6 | M25: =IFERROR(Data!N85*100,"B") -> 338.1 | N25: =IFERROR(Data!O85*100,"B") -> 314.9 | O25: =IFERROR(Data!P85*100,"B") -> 236.4 | P25: =IFERROR(Data!Q85*100,"B") -> 252.6 | Q25: =IFERROR(Data!R85*100,"B") -> 292.1 | R25: =IFERROR(Data!S85*100,"B") -> 434.5 | S25: =IFERROR(Data!T85*100,"B") -> 232 | T25: =IFERROR(Data!U85*100,"B") -> 519.4 | V25: =IFERROR(#REF!*100,"B") -> B
A27: Cost Of Goods Sold | B27: =IFERROR(Data!C23,"B") -> 68.3 | C27: =IFERROR(Data!D23,"B") -> 66.7 | D27: =IFERROR(Data!E23,"B") -> 68.8 | E27: =IFERROR(Data!F23,"B") -> 68.3 | F27: =IFERROR(Data!G23,"B") -> 66.9 | G27: =IFERROR(Data!H23,"B") -> B | H27: =IFERROR(Data!I23,"B") -> 68.8 | I27: =IFERROR(Data!J23,"B") -> 66.4 | J27: =IFERROR(Data!K23,"B") -> B | K27: =IFERROR(Data!L23,"B") -> B | L27: =IFERROR(Data!M23,"B") -> 66.4 | M27: =IFERROR(Data!N23,"B") -> 68.3 | N27: =IFERROR(Data!O23,"B") -> 70 | O27: =IFERROR(Data!P23,"B") -> 68.1 | P27: =IFERROR(Data!Q23,"B") -> 66.1 | Q27: =IFERROR(Data!R23,"B") -> 69.9 | R27: =IFERROR(Data!S23,"B") -> 66.4 | S27: =IFERROR(Data!T23,"B") -> 65.4 | T27: =IFERROR(Data!U23,"B") -> 71.5 | V27: =IFERROR(#REF!,"B") -> B
A28: Gross Margin | B28: =IFERROR(Data!C24,"B") -> 31.7 | C28: =IFERROR(Data!D24,"B") -> 33.3 | D28: =IFERROR(Data!E24,"B") -> 31.2 | E28: =IFERROR(Data!F24,"B") -> 31.7 | F28: =IFERROR(Data!G24,"B") -> 33.1 | G28: =IFERROR(Data!H24,"B") -> N/A | H28: =IFERROR(Data!I24,"B") -> 31.2 | I28: =IFERROR(Data!J24,"B") -> 33.6 | J28: =IFERROR(Data!K24,"B") -> N/A | K28: =IFERROR(Data!L24,"B") -> N/A | L28: =IFERROR(Data!M24,"B") -> 33.6 | M28: =IFERROR(Data!N24,"B") -> 31.7 | N28: =IFERROR(Data!O24,"B") -> 30 | O28: =IFERROR(Data!P24,"B") -> 31.9 | P28: =IFERROR(Data!Q24,"B") -> 33.9 | Q28: =IFERROR(Data!R24,"B") -> 30.1 | R28: =IFERROR(Data!S24,"B") -> 33.6 | S28: =IFERROR(Data!T24,"B") -> 28.5 | T28: =IFERROR(Data!U24,"B") -> 34.6 | V28: =IFERROR(#REF!,"B") -> B
A29: Salaries, Wages, Commissions & Bonuses | B29: =IFERROR(Data!C26,"B") -> 17.8 | C29: =IFERROR(Data!D26,"B") -> 15.8 | D29: =IFERROR(Data!E26,"B") -> 18.5 | E29: =IFERROR(Data!F26,"B") -> 17.8 | F29: =IFERROR(Data!G26,"B") -> 15.7 | G29: =IFERROR(Data!H26,"B") -> B | H29: =IFERROR(Data!I26,"B") -> 18.2 | I29: =IFERROR(Data!J26,"B") -> 19.4 | J29: =IFERROR(Data!K26,"B") -> B | K29: =IFERROR(Data!L26,"B") -> B | L29: =IFERROR(Data!M26,"B") -> 18.2 | M29: =IFERROR(Data!N26,"B") -> 18.2 | N29: =IFERROR(Data!O26,"B") -> 19.7 | O29: =IFERROR(Data!P26,"B") -> 15.3 | P29: =IFERROR(Data!Q26,"B") -> 17.3 | Q29: =IFERROR(Data!R26,"B") -> 17 | R29: =IFERROR(Data!S26,"B") -> 21.7 | S29: =IFERROR(Data!T26,"B") -> 14.3 | T29: =IFERROR(Data!U26,"B") -> 19.1 | V29: =IFERROR(#REF!,"B") -> B
A30: Payroll Taxes | B30: =IFERROR(Data!C27,"B") -> 1.4 | C30: =IFERROR(Data!D27,"B") -> 1.3 | D30: =IFERROR(Data!E27,"B") -> 1.4 | E30: =IFERROR(Data!F27,"B") -> 1.5 | F30: =IFERROR(Data!G27,"B") -> 1.3 | G30: =IFERROR(Data!H27,"B") -> B | H30: =IFERROR(Data!I27,"B") -> 1.8 | I30: =IFERROR(Data!J27,"B") -> 1.5 | J30: =IFERROR(Data!K27,"B") -> B | K30: =IFERROR(Data!L27,"B") -> B | L30: =IFERROR(Data!M27,"B") -> 1.5 | M30: =IFERROR(Data!N27,"B") -> 1.4 | N30: =IFERROR(Data!O27,"B") -> 1.7 | O30: =IFERROR(Data!P27,"B") -> 0.9 | P30: =IFERROR(Data!Q27,"B") -> 1.3 | Q30: =IFERROR(Data!R27,"B") -> 1.2 | R30: =IFERROR(Data!S27,"B") -> 1.8 | S30: =IFERROR(Data!T27,"B") -> 1.1 | T30: =IFERROR(Data!U27,"B") -> 1.6 | V30: =IFERROR(#REF!,"B") -> B
A31: Employee Benefits | B31: =IFERROR(Data!C28,"B") -> 1.8 | C31: =IFERROR(Data!D28,"B") -> 1.6 | D31: =IFERROR(Data!E28,"B") -> 1.7 | E31: =IFERROR(Data!F28,"B") -> 2.4 | F31: =IFERROR(Data!G28,"B") -> 2.2 | G31: =IFERROR(Data!H28,"B") -> B | H31: =IFERROR(Data!I28,"B") -> 2.2 | I31: =IFERROR(Data!J28,"B") -> 2.3 | J31: =IFERROR(Data!K28,"B") -> B | K31: =IFERROR(Data!L28,"B") -> B | L31: =IFERROR(Data!M28,"B") -> 2.3 | M31: =IFERROR(Data!N28,"B") -> 2.4 | N31: =IFERROR(Data!O28,"B") -> 1.7 | O31: =IFERROR(Data!P28,"B") -> 1.5 | P31: =IFERROR(Data!Q28,"B") -> 2.1 | Q31: =IFERROR(Data!R28,"B") -> 2.3 | R31: =IFERROR(Data!S28,"B") -> 2.1 | S31: =IFERROR(Data!T28,"B") -> 1.2 | T31: =IFERROR(Data!U28,"B") -> 3.1 | V31: =IFERROR(#REF!,"B") -> B
A32: Total Payroll Expenses | B32: =IFERROR(Data!C29,"B") -> 21 | C32: =IFERROR(Data!D29,"B") -> 18.7 | D32: =IFERROR(Data!E29,"B") -> 21.6 | E32: =IFERROR(Data!F29,"B") -> 21.7 | F32: =IFERROR(Data!G29,"B") -> 19.2 | G32: =IFERROR(Data!H29,"B") -> B | H32: =IFERROR(Data!I29,"B") -> 22.2 | I32: =IFERROR(Data!J29,"B") -> 23.2 | J32: =IFERROR(Data!K29,"B") -> B | K32: =IFERROR(Data!L29,"B") -> B | L32: =IFERROR(Data!M29,"B") -> 22 | M32: =IFERROR(Data!N29,"B") -> 22 | N32: =IFERROR(Data!O29,"B") -> 23.1 | O32: =IFERROR(Data!P29,"B") -> 17.7 | P32: =IFERROR(Data!Q29,"B") -> 20.7 | Q32: =IFERROR(Data!R29,"B") -> 20.5 | R32: =IFERROR(Data!S29,"B") -> 25.6 | S32: =IFERROR(Data!T29,"B") -> 16.8 | T32: =IFERROR(Data!U29,"B") -> 24.2 | V32: =IFERROR(#REF!,"B") -> B
A33: Occupancy Expenses | B33: =IFERROR(Data!C30,"B") -> 2.3 | C33: =IFERROR(Data!D30,"B") -> 2.5 | D33: =IFERROR(Data!E30,"B") -> 2.1 | E33: =IFERROR(Data!F30,"B") -> 2.3 | F33: =IFERROR(Data!G30,"B") -> 3.5 | G33: =IFERROR(Data!H30,"B") -> B | H33: =IFERROR(Data!I30,"B") -> 2.1 | I33: =IFERROR(Data!J30,"B") -> 2.4 | J33: =IFERROR(Data!K30,"B") -> B | K33: =IFERROR(Data!L30,"B") -> B | L33: =IFERROR(Data!M30,"B") -> 2 | M33: =IFERROR(Data!N30,"B") -> 2.3 | N33: =IFERROR(Data!O30,"B") -> 1.2 | O33: =IFERROR(Data!P30,"B") -> 3.8 | P33: =IFERROR(Data!Q30,"B") -> 2.9 | Q33: =IFERROR(Data!R30,"B") -> 2.3 | R33: =IFERROR(Data!S30,"B") -> 2 | S33: =IFERROR(Data!T30,"B") -> 1.5 | T33: =IFERROR(Data!U30,"B") -> 3.4 | V33: =IFERROR(#REF!,"B") -> B
A34: All Other Operating Expenses | B34: =IFERROR(Data!C31,"B") -> 4.5 | C34: =IFERROR(Data!D31,"B") -> 2.8 | D34: =IFERROR(Data!E31,"B") -> 4 | E34: =IFERROR(Data!F31,"B") -> 4.6 | F34: =IFERROR(Data!G31,"B") -> 4.8 | G34: =IFERROR(Data!H31,"B") -> B | H34: =IFERROR(Data!I31,"B") -> 5.1 | I34: =IFERROR(Data!J31,"B") -> 4.1 | J34: =IFERROR(Data!K31,"B") -> B | K34: =IFERROR(Data!L31,"B") -> B | L34: =IFERROR(Data!M31,"B") -> 4.3 | M34: =IFERROR(Data!N31,"B") -> 4.4 | N34: =IFERROR(Data!O31,"B") -> 3.9 | O34: =IFERROR(Data!P31,"B") -> 4.3 | P34: =IFERROR(Data!Q31,"B") -> 4.5 | Q34: =IFERROR(Data!R31,"B") -> 4.3 | R34: =IFERROR(Data!S31,"B") -> 2.4 | S34: =IFERROR(Data!T31,"B") -> 2.2 | T34: =IFERROR(Data!U31,"B") -> 5.9 | V34: =IFERROR(#REF!,"B") -> B
A35: Total Operating Expenses | B35: =IFERROR(Data!C32,"B") -> 27.8 | C35: =IFERROR(Data!D32,"B") -> 24 | D35: =IFERROR(Data!E32,"B") -> 27.7 | E35: =IFERROR(Data!F32,"B") -> 28.6 | F35: =IFERROR(Data!G32,"B") -> 27.5 | G35: =IFERROR(Data!H32,"B") -> B | H35: =IFERROR(Data!I32,"B") -> 29.4 | I35: =IFERROR(Data!J32,"B") -> 29.7 | J35: =IFERROR(Data!K32,"B") -> B | K35: =IFERROR(Data!L32,"B") -> B | L35: =IFERROR(Data!M32,"B") -> 28.3 | M35: =IFERROR(Data!N32,"B") -> 28.7 | N35: =IFERROR(Data!O32,"B") -> 28.2 | O35: =IFERROR(Data!P32,"B") -> 25.8 | P35: =IFERROR(Data!Q32,"B") -> 28.1 | Q35: =IFERROR(Data!R32,"B") -> 27.1 | R35: =IFERROR(Data!S32,"B") -> 30 | S35: =IFERROR(Data!T32,"B") -> 22.7 | T35: =IFERROR(Data!U32,"B") -> 31.5 | V35: =IFERROR(#REF!,"B") -> B
A36: Operating Profit | B36: =IFERROR(Data!C33,"B") -> 3.9 | C36: =IFERROR(Data!D33,"B") -> 9.3 | D36: =IFERROR(Data!E33,"B") -> 3.5 | E36: =IFERROR(Data!F33,"B") -> 3.1 | F36: =IFERROR(Data!G33,"B") -> 5.6 | G36: =IFERROR(Data!H33,"B") -> N/A | H36: =IFERROR(Data!I33,"B") -> 1.8 | I36: =IFERROR(Data!J33,"B") -> 3.9 | J36: =IFERROR(Data!K33,"B") -> N/A | K36: =IFERROR(Data!L33,"B") -> N/A | L36: =IFERROR(Data!M33,"B") -> 5.3 | M36: =IFERROR(Data!N33,"B") -> 3 | N36: =IFERROR(Data!O33,"B") -> 1.8 | O36: =IFERROR(Data!P33,"B") -> 6.1 | P36: =IFERROR(Data!Q33,"B") -> 5.8 | Q36: =IFERROR(Data!R33,"B") -> 3 | R36: =IFERROR(Data!S33,"B") -> 3.6 | S36: =IFERROR(Data!T33,"B") -> 1.7 | T36: =IFERROR(Data!U33,"B") -> 6.8 | V36: =IFERROR(#REF!,"B") -> B
A37: Other Income | B37: =IFERROR(Data!C34,"B") -> 1.3 | C37: =IFERROR(Data!D34,"B") -> 1.1 | D37: =IFERROR(Data!E34,"B") -> 0.9 | E37: =IFERROR(Data!F34,"B") -> 1 | F37: =IFERROR(Data!G34,"B") -> 0.1 | G37: =IFERROR(Data!H34,"B") -> B | H37: =IFERROR(Data!I34,"B") -> 1.9 | I37: =IFERROR(Data!J34,"B") -> 1.7 | J37: =IFERROR(Data!K34,"B") -> B | K37: =IFERROR(Data!L34,"B") -> B | L37: =IFERROR(Data!M34,"B") -> 0.3 | M37: =IFERROR(Data!N34,"B") -> 2.2 | N37: =IFERROR(Data!O34,"B") -> 0 | O37: =IFERROR(Data!P34,"B") -> -0.2 | P37: =IFERROR(Data!Q34,"B") -> 0.2 | Q37: =IFERROR(Data!R34,"B") -> 2.2 | R37: =IFERROR(Data!S34,"B") -> 0.3 | S37: =IFERROR(Data!T34,"B") -> 0 | T37: =IFERROR(Data!U34,"B") -> 2.3 | V37: =IFERROR(#REF!,"B") -> B
A38: Interest Expense | B38: =IFERROR(Data!C35,"B") -> 0.2 | C38: =IFERROR(Data!D35,"B") -> 0.2 | D38: =IFERROR(Data!E35,"B") -> 0.2 | E38: =IFERROR(Data!F35,"B") -> 0.1 | F38: =IFERROR(Data!G35,"B") -> 0.5 | G38: =IFERROR(Data!H35,"B") -> N/A | H38: =IFERROR(Data!I35,"B") -> 0.1 | I38: =IFERROR(Data!J35,"B") -> 0.5 | J38: =IFERROR(Data!K35,"B") -> N/A | K38: =IFERROR(Data!L35,"B") -> N/A | L38: =IFERROR(Data!M35,"B") -> 0.2 | M38: =IFERROR(Data!N35,"B") -> 0.1 | N38: =IFERROR(Data!O35,"B") -> 0.3 | O38: =IFERROR(Data!P35,"B") -> 0.4 | P38: =IFERROR(Data!Q35,"B") -> 0.5 | Q38: =IFERROR(Data!R35,"B") -> 0.4 | R38: =IFERROR(Data!S35,"B") -> 0.1 | S38: =IFERROR(Data!T35,"B") -> 0.1 | T38: =IFERROR(Data!U35,"B") -> 0.5 | V38: =IFERROR(#REF!,"B") -> B
A39: Other Non-Operating Expenses | B39: =IFERROR(Data!C36,"B") -> 0 | C39: =IFERROR(Data!D36,"B") -> 0 | D39: =IFERROR(Data!E36,"B") -> 0 | E39: =IFERROR(Data!F36,"B") -> 0 | F39: =IFERROR(Data!G36,"B") -> 0 | G39: =IFERROR(Data!H36,"B") -> N/A | H39: =IFERROR(Data!I36,"B") -> 0 | I39: =IFERROR(Data!J36,"B") -> 0 | J39: =IFERROR(Data!K36,"B") -> N/A | K39: =IFERROR(Data!L36,"B") -> N/A | L39: =IFERROR(Data!M36,"B") -> 0.4 | M39: =IFERROR(Data!N36,"B") -> 0 | N39: =IFERROR(Data!O36,"B") -> 0.1 | O39: =IFERROR(Data!P36,"B") -> 0 | P39: =IFERROR(Data!Q36,"B") -> 0 | Q39: =IFERROR(Data!R36,"B") -> 0 | R39: =IFERROR(Data!S36,"B") -> 0 | S39: =IFERROR(Data!T36,"B") -> 0 | T39: =IFERROR(Data!U36,"B") -> 0.2 | V39: =IFERROR(#REF!,"B") -> B
A40: Profit Before Taxes | B40: =IFERROR(Data!C37*100,"B") -> 5 | C40: =IFERROR(Data!D37*100,"B") -> 10.2 | D40: =IFERROR(Data!E37*100,"B") -> 4.2 | E40: =IFERROR(Data!F37*100,"B") -> 4 | F40: =IFERROR(Data!G37*100,"B") -> 5.2 | G40: =IFERROR(Data!H37*100,"B") -> B | H40: =IFERROR(Data!I37*100,"B") -> 3.6 | I40: =IFERROR(Data!J37*100,"B") -> 5.1 | J40: =IFERROR(Data!K37*100,"B") -> B | K40: =IFERROR(Data!L37*100,"B") -> B | L40: =IFERROR(Data!M37*100,"B") -> 5 | M40: =IFERROR(Data!N37*100,"B") -> 5.1 | N40: =IFERROR(Data!O37*100,"B") -> 1.4 | O40: =IFERROR(Data!P37*100,"B") -> 5.5 | P40: =IFERROR(Data!Q37*100,"B") -> 5.5 | Q40: =IFERROR(Data!R37*100,"B") -> 4.8 | R40: =IFERROR(Data!S37*100,"B") -> 3.8 | S40: =IFERROR(Data!T37*100,"B") -> 1.4 | T40: =IFERROR(Data!U37*100,"B") -> 9.1 | V40: =IFERROR(#REF!*100,"B") -> B
A54: Cash & Marketable Securities | B54: =IFERROR(Data!C55*100,"B") -> 7.1 | C54: =IFERROR(Data!D55*100,"B") -> 15.1 | D54: =IFERROR(Data!E55*100,"B") -> 18.4 | E54: =IFERROR(Data!F55*100,"B") -> 16.6 | F54: =IFERROR(Data!G55*100,"B") -> 0.5 | G54: =IFERROR(Data!H55*100,"B") -> B | H54: =IFERROR(Data!I55*100,"B") -> 19.1 | I54: =IFERROR(Data!J55*100,"B") -> 7.5 | J54: =IFERROR(Data!K55*100,"B") -> B | K54: =IFERROR(Data!L55*100,"B") -> B | L54: =IFERROR(Data!M55*100,"B") -> 21.8 | M54: =IFERROR(Data!N55*100,"B") -> 4.7 | N54: =IFERROR(Data!O55*100,"B") -> 13.3 | O54: =IFERROR(Data!P55*100,"B") -> 0 | P54: =IFERROR(Data!Q55*100,"B") -> 1.2 | Q54: =IFERROR(Data!R55*100,"B") -> 0.9 | R54: =IFERROR(Data!S55*100,"B") -> 23.1 | S54: =IFERROR(Data!T55*100,"B") -> 0 | T54: =IFERROR(Data!U55*100,"B") -> 32.5 | V54: =IFERROR(#REF!*100,"B") -> B
A55: Accounts Receivable | B55: =IFERROR(Data!C56,"B") -> 55.9 | C55: =IFERROR(Data!D56,"B") -> 52.5 | D55: =IFERROR(Data!E56,"B") -> 52.7 | E55: =IFERROR(Data!F56,"B") -> 47.2 | F55: =IFERROR(Data!G56,"B") -> 52.1 | G55: =IFERROR(Data!H56,"B") -> B | H55: =IFERROR(Data!I56,"B") -> 51.3 | I55: =IFERROR(Data!J56,"B") -> 46 | J55: =IFERROR(Data!K56,"B") -> B | K55: =IFERROR(Data!L56,"B") -> B | L55: =IFERROR(Data!M56,"B") -> 45.5 | M55: =IFERROR(Data!N56,"B") -> 52.5 | N55: =IFERROR(Data!O56,"B") -> 56.1 | O55: =IFERROR(Data!P56,"B") -> 57.8 | P55: =IFERROR(Data!Q56,"B") -> 53.9 | Q55: =IFERROR(Data!R56,"B") -> 63 | R55: =IFERROR(Data!S56,"B") -> 47 | S55: =IFERROR(Data!T56,"B") -> 33.9 | T55: =IFERROR(Data!U56,"B") -> 57.1 | V55: =IFERROR(#REF!,"B") -> B
A56: Inventory | B56: =IFERROR(Data!C57,"B") -> 22.8 | C56: =IFERROR(Data!D57,"B") -> 22.8 | D56: =IFERROR(Data!E57,"B") -> 19.7 | E56: =IFERROR(Data!F57,"B") -> 18 | F56: =IFERROR(Data!G57,"B") -> 27.7 | G56: =IFERROR(Data!H57,"B") -> B | H56: =IFERROR(Data!I57,"B") -> 18.6 | I56: =IFERROR(Data!J57,"B") -> 26.5 | J56: =IFERROR(Data!K57,"B") -> B | K56: =IFERROR(Data!L57,"B") -> B | L56: =IFERROR(Data!M57,"B") -> 23.5 | M56: =IFERROR(Data!N57,"B") -> 22.9 | N56: =IFERROR(Data!O57,"B") -> 20.4 | O56: =IFERROR(Data!P57,"B") -> 33.8 | P56: =IFERROR(Data!Q57,"B") -> 34 | Q56: =IFERROR(Data!R57,"B") -> 22.7 | R56: =IFERROR(Data!S57,"B") -> 16.1 | S56: =IFERROR(Data!T57,"B") -> 13.1 | T56: =IFERROR(Data!U57,"B") -> 28.8 | V56: =IFERROR(#REF!,"B") -> B
A57: Other Current Assets | B57: =IFERROR(Data!C58,"B") -> 2 | C57: =IFERROR(Data!D58,"B") -> 1.5 | D57: =IFERROR(Data!E58,"B") -> 0.7 | E57: =IFERROR(Data!F58,"B") -> 2.5 | F57: =IFERROR(Data!G58,"B") -> 2.5 | G57: =IFERROR(Data!H58,"B") -> B | H57: =IFERROR(Data!I58,"B") -> 1.3 | I57: =IFERROR(Data!J58,"B") -> 2.1 | J57: =IFERROR(Data!K58,"B") -> B | K57: =IFERROR(Data!L58,"B") -> B | L57: =IFERROR(Data!M58,"B") -> 0.7 | M57: =IFERROR(Data!N58,"B") -> 2.3 | N57: =IFERROR(Data!O58,"B") -> 0.9 | O57: =IFERROR(Data!P58,"B") -> 2.2 | P57: =IFERROR(Data!Q58,"B") -> 2.2 | Q57: =IFERROR(Data!R58,"B") -> 1.2 | R57: =IFERROR(Data!S58,"B") -> 1.1 | S57: =IFERROR(Data!T58,"B") -> 0.5 | T57: =IFERROR(Data!U58,"B") -> 2.6 | V57: =IFERROR(#REF!,"B") -> B
A58: Total Current Assets | B58: =IFERROR(Data!C59,"B") -> 87.8 | C58: =IFERROR(Data!D59,"B") -> 91.9 | D58: =IFERROR(Data!E59,"B") -> 91.5 | E58: =IFERROR(Data!F59,"B") -> 84.3 | F58: =IFERROR(Data!G59,"B") -> 82.8 | G58: =IFERROR(Data!H59,"B") -> B | H58: =IFERROR(Data!I59,"B") -> 90.3 | I58: =IFERROR(Data!J59,"B") -> 82.1 | J58: =IFERROR(Data!K59,"B") -> B | K58: =IFERROR(Data!L59,"B") -> B | L58: =IFERROR(Data!M59,"B") -> 91.5 | M58: =IFERROR(Data!N59,"B") -> 82.4 | N58: =IFERROR(Data!O59,"B") -> 90.7 | O58: =IFERROR(Data!P59,"B") -> 93.8 | P58: =IFERROR(Data!Q59,"B") -> 91.3 | Q58: =IFERROR(Data!R59,"B") -> 87.8 | R58: =IFERROR(Data!S59,"B") -> 87.3 | S58: =IFERROR(Data!T59,"B") -> 82.7 | T58: =IFERROR(Data!U59,"B") -> 93.5 | V58: =IFERROR(#REF!,"B") -> B
A59: Fixed Assets Original Value | B59: =IFERROR(Data!C60,"B") -> 12.2 | C59: =IFERROR(Data!D60,"B") -> 8.1 | D59: =IFERROR(Data!E60,"B") -> 8.5 | E59: =IFERROR(Data!F60,"B") -> 15.7 | F59: =IFERROR(Data!G60,"B") -> 17.2 | G59: =IFERROR(Data!H60,"B") -> B | H59: =IFERROR(Data!I60,"B") -> 9.7 | I59: =IFERROR(Data!J60,"B") -> 17.9 | J59: =IFERROR(Data!K60,"B") -> B | K59: =IFERROR(Data!L60,"B") -> B | L59: =IFERROR(Data!M60,"B") -> 8.5 | M59: =IFERROR(Data!N60,"B") -> 17.6 | N59: =IFERROR(Data!O60,"B") -> 9.3 | O59: =IFERROR(Data!P60,"B") -> 6.2 | P59: =IFERROR(Data!Q60,"B") -> 8.7 | Q59: =IFERROR(Data!R60,"B") -> 12.2 | R59: =IFERROR(Data!S60,"B") -> 12.7 | S59: =IFERROR(Data!T60,"B") -> 6.5 | T59: =IFERROR(Data!U60,"B") -> 17.3 | V59: =IFERROR(#REF!,"B") -> B
A60: Accounts Payable | B60: =IFERROR(Data!C63*100,"B") -> 8 | C60: =IFERROR(Data!D63*100,"B") -> 10.6 | D60: =IFERROR(Data!E63*100,"B") -> 12.9 | E60: =IFERROR(Data!F63*100,"B") -> 6.6 | F60: =IFERROR(Data!G63*100,"B") -> 13.6 | G60: =IFERROR(Data!H63*100,"B") -> B | H60: =IFERROR(Data!I63*100,"B") -> 6 | I60: =IFERROR(Data!J63*100,"B") -> 9.3 | J60: =IFERROR(Data!K63*100,"B") -> B | K60: =IFERROR(Data!L63*100,"B") -> B | L60: =IFERROR(Data!M63*100,"B") -> 7 | M60: =IFERROR(Data!N63*100,"B") -> 7.6 | N60: =IFERROR(Data!O63*100,"B") -> 6 | O60: =IFERROR(Data!P63*100,"B") -> 23.2 | P60: =IFERROR(Data!Q63*100,"B") -> 8.7 | Q60: =IFERROR(Data!R63*100,"B") -> 14.7 | R60: =IFERROR(Data!S63*100,"B") -> 6.4 | S60: =IFERROR(Data!T63*100,"B") -> 5 | T60: =IFERROR(Data!U63*100,"B") -> 18.2 | V60: =IFERROR(#REF!*100,"B") -> B
A61: Notes Payable | B61: =IFERROR(Data!C64,"B") -> 2.3 | C61: =IFERROR(Data!D64,"B") -> 0.9 | D61: =IFERROR(Data!E64,"B") -> 0.6 | E61: =IFERROR(Data!F64,"B") -> 0 | F61: =IFERROR(Data!G64,"B") -> 11.8 | G61: =IFERROR(Data!H64,"B") -> B | H61: =IFERROR(Data!I64,"B") -> 1.6 | I61: =IFERROR(Data!J64,"B") -> 4.4 | J61: =IFERROR(Data!K64,"B") -> B | K61: =IFERROR(Data!L64,"B") -> B | L61: =IFERROR(Data!M64,"B") -> 1.8 | M61: =IFERROR(Data!N64,"B") -> 2.6 | N61: =IFERROR(Data!O64,"B") -> B | O61: =IFERROR(Data!P64,"B") -> 7.5 | P61: =IFERROR(Data!Q64,"B") -> 6.4 | Q61: =IFERROR(Data!R64,"B") -> 2.5 | R61: =IFERROR(Data!S64,"B") -> 1.4 | S61: =IFERROR(Data!T64,"B") -> 0 | T61: =IFERROR(Data!U64,"B") -> 10.6 | V61: =IFERROR(#REF!,"B") -> B
A62: Other Current Liabilities | B62: =IFERROR(Data!C65,"B") -> 8.5 | C62: =IFERROR(Data!D65,"B") -> 7.9 | D62: =IFERROR(Data!E65,"B") -> 9.6 | E62: =IFERROR(Data!F65,"B") -> 8 | F62: =IFERROR(Data!G65,"B") -> 8.2 | G62: =IFERROR(Data!H65,"B") -> B | H62: =IFERROR(Data!I65,"B") -> 12.1 | I62: =IFERROR(Data!J65,"B") -> 7.3 | J62: =IFERROR(Data!K65,"B") -> B | K62: =IFERROR(Data!L65,"B") -> B | L62: =IFERROR(Data!M65,"B") -> 8.8 | M62: =IFERROR(Data!N65,"B") -> 9.5 | N62: =IFERROR(Data!O65,"B") -> 3.6 | O62: =IFERROR(Data!P65,"B") -> 4.6 | P62: =IFERROR(Data!Q65,"B") -> 7.7 | Q62: =IFERROR(Data!R65,"B") -> 11.6 | R62: =IFERROR(Data!S65,"B") -> 8 | S62: =IFERROR(Data!T65,"B") -> 3.6 | T62: =IFERROR(Data!U65,"B") -> 12 | V62: =IFERROR(#REF!,"B") -> B
A63: Total Current Liabilities | B63: =IFERROR(Data!C66,"B") -> 18.8 | C63: =IFERROR(Data!D66,"B") -> 19.4 | D63: =IFERROR(Data!E66,"B") -> 23.1 | E63: =IFERROR(Data!F66,"B") -> 14.6 | F63: =IFERROR(Data!G66,"B") -> 33.6 | G63: =IFERROR(Data!H66,"B") -> B | H63: =IFERROR(Data!I66,"B") -> 19.7 | I63: =IFERROR(Data!J66,"B") -> 21 | J63: =IFERROR(Data!K66,"B") -> B | K63: =IFERROR(Data!L66,"B") -> B | L63: =IFERROR(Data!M66,"B") -> 17.6 | M63: =IFERROR(Data!N66,"B") -> 19.7 | N63: =IFERROR(Data!O66,"B") -> B | O63: =IFERROR(Data!P66,"B") -> 35.3 | P63: =IFERROR(Data!Q66,"B") -> 22.8 | Q63: =IFERROR(Data!R66,"B") -> 28.8 | R63: =IFERROR(Data!S66,"B") -> 15.8 | S63: =IFERROR(Data!T66,"B") -> 16.1 | T63: =IFERROR(Data!U66,"B") -> 38.3 | V63: =IFERROR(#REF!,"B") -> B
A64: Long Term Liabilities | B64: =IFERROR(Data!C67,"B") -> 5.7 | C64: =IFERROR(Data!D67,"B") -> 0.8 | D64: =IFERROR(Data!E67,"B") -> 7 | E64: =IFERROR(Data!F67,"B") -> 1 | F64: =IFERROR(Data!G67,"B") -> 9.8 | G64: =IFERROR(Data!H67,"B") -> B | H64: =IFERROR(Data!I67,"B") -> 11.1 | I64: =IFERROR(Data!J67,"B") -> 0.9 | J64: =IFERROR(Data!K67,"B") -> N/A | K64: =IFERROR(Data!L67,"B") -> B | L64: =IFERROR(Data!M67,"B") -> 0.9 | M64: =IFERROR(Data!N67,"B") -> 7.4 | N64: =IFERROR(Data!O67,"B") -> 13.3 | O64: =IFERROR(Data!P67,"B") -> 4.6 | P64: =IFERROR(Data!Q67,"B") -> 5 | Q64: =IFERROR(Data!R67,"B") -> 5.6 | R64: =IFERROR(Data!S67,"B") -> 9.3 | S64: =IFERROR(Data!T67,"B") -> 0 | T64: =IFERROR(Data!U67,"B") -> 15.6 | V64: =IFERROR(#REF!,"B") -> B
A65: Net Worth or Owner Equity | B65: =IFERROR(Data!C68,"B") -> 75.5 | C65: =IFERROR(Data!D68,"B") -> 79.8 | D65: =IFERROR(Data!E68,"B") -> 69.9 | E65: =IFERROR(Data!F68,"B") -> 84.4 | F65: =IFERROR(Data!G68,"B") -> 56.6 | G65: =IFERROR(Data!H68,"B") -> B | H65: =IFERROR(Data!I68,"B") -> 69.2 | I65: =IFERROR(Data!J68,"B") -> 78.1 | J65: =IFERROR(Data!K68,"B") -> B | K65: =IFERROR(Data!L68,"B") -> B | L65: =IFERROR(Data!M68,"B") -> 81.5 | M65: =IFERROR(Data!N68,"B") -> 72.9 | N65: =IFERROR(Data!O68,"B") -> B | O65: =IFERROR(Data!P68,"B") -> 60.1 | P65: =IFERROR(Data!Q68,"B") -> 72.2 | Q65: =IFERROR(Data!R68,"B") -> 65.6 | R65: =IFERROR(Data!S68,"B") -> 74.9 | S65: =IFERROR(Data!T68,"B") -> 43.7 | T65: =IFERROR(Data!U68,"B") -> 80.4 | V65: =IFERROR(#REF!,"B") -> B
J66: B

Sheet Introduction
J8: 2021 DHI Financial Benchmarking Report
J9: Figures Based on 2020 Financial Data
E21: The 2021 DHI Financial Benchmarking Excel© dashboard offers an interactive, dynamic look at the columns
E22: of data you want to use for benchmarking. This management tool is 100% customizable. You can select any of the
E23: data columns in the analysis to build a report that examines the industry benchmarks that interest you.
E25: The 2021 DHI Financial Benchmarking Dashboard provides detailed financial results of DHI member distributors.
E26: Results profiled in this report are based on income statement, balance sheet, and operating data provided by 31
E27: distributors. The tables and graphs contained in this report are designed to provide comprehensive, yet
E28: straightforward guidelines for analyzing profitability among floor covering distributors. This management tool
E29: is intended to supply the resources that enable DHI members to evaluate, plan, and better manage their businesses.
E31: The benchmark columns include the following segment options :
G33: Typical, High Profit, Lower Quartile & Upper Quartile Results
G34: Contract Jobs Analysis
G35: Sales Volume Analysis
G36: Regional Analysis
E39: Market Size Analysis—This section of the report reviews performance by market size of company.
E40: Metropolitan Statistical Areas are geographic entities defined by the U.S. Office of Management and
E41: Budget for use by Federal statistical agencies in collecting, tabulating, and publishing Federal statistics.
E43: Median – This report profiles the median number for most variables and calculations. The median is
E44: the middle number of all values reported arrayed from lowest to highest. The median represents the
E45: typical company's results. In comparison to the average or the mean, the median is not influenced
E46: by any extremely high or low values reported. Thus, the median is the preferred statistic for this analysis.
E48: Quartile – The word quartile means that something is divided into quarters, or segments of twenty-five
E49: percent each. The first quartile is the figure halfway between the median and the lowest reported value.
E50: The third quartile is the figure between the median and the highest value. Therefore, the values between the
E51: first and third quartiles profile the middle fifty percent of the performance statistic. The purpose of showing
E52: the first and third quartile values is to show the “range of common experience” in the industry. Where
E53: provided, readers can develop an understanding of the variability of the data without having to consider
E54: extreme results.
E56: High Profit Firm – To determine the group of high profit firms, all participating firms are ranked on the basis
E57: of pre-tax return on assets (ROA). The high profit category includes the top one-third of the firms based
E58: on ROA. The figures reported for the high profit firms represent a median for this group.
E60: No One "Typical" Firm – There is no single median or “typical” firm profiled in this report. The firm whose
E61: performance is the median value for one measure is probably different from the firm whose result is the
E62: median for another measure. This occurs because medians are calculated independently for each
E63: performance measure.
E65: Please note that throughout the report, "N/A" designates numbers that are not available due to limited sample size.

Sheet Summary
I8: Typical DHI Distributor | J8: High Profit DHI Distributor | K8: Under 70% Contract Jobs | L8: 70% - 80% Contract Jobs | M8: Over 80% Contract Jobs | N8: Your Company
G15: Executive Summary
I16: =IF(I8=0,"",I8) -> Typical DHI Distributor | J16: =IF(J8=0,"",J8) -> High Profit DHI Distributor | K16: Under 70% Contract Jobs | L16: 70% - 80% Contract Jobs | M16: Over 80% Contract Jobs | N16: =N8 -> Your Company
G21: Number of Firms Reporting | I21: =IFERROR(INDEX(Data!$C3:$U3,MATCH($G21,Data!$B3:$B3,0),MATCH($I$8,Data!$C$1:$U$1,0)),"") -> 31 | J21: =IFERROR(INDEX(Data!$C3:$U3,MATCH($G21,Data!$B3:$B3,0),MATCH($J$8,Data!$C$1:$U$1,0)),"") -> 8 | K21: =IFERROR(INDEX(Data!$C3:$U3,MATCH($G21,Data!$B3:$B3,0),MATCH($K$8,Data!$C$1:$U$1,0)),"") -> 10 | L21: =IFERROR(INDEX(Data!$C3:$U3,MATCH($G21,Data!$B3:$B3,0),MATCH($L$8,Data!$C$1:$U$1,0)),"") -> 9 | M21: =IFERROR(INDEX(Data!$C3:$U3,MATCH($G21,Data!$B3:$B3,0),MATCH($M$8,Data!$C$1:$U$1,0)),"") -> 12
G22: Typical Sales Volume | I22: =IFERROR(INDEX(Data!$C4:$U4,MATCH($G22,Data!$B4:$B4,0),MATCH($I$8,Data!$C$1:$U$1,0)),"") -> 23.2 | J22: =IFERROR(INDEX(Data!$C4:$U4,MATCH($G22,Data!$B4:$B4,0),MATCH($J$8,Data!$C$1:$U$1,0)),"") -> 26.4 | K22: =IFERROR(INDEX(Data!$C4:$U4,MATCH($G22,Data!$B4:$B4,0),MATCH($K$8,Data!$C$1:$U$1,0)),"") -> 39 | L22: =IFERROR(INDEX(Data!$C4:$U4,MATCH($G22,Data!$B4:$B4,0),MATCH($L$8,Data!$C$1:$U$1,0)),"") -> 21 | M22: =IFERROR(INDEX(Data!$C4:$U4,MATCH($G22,Data!$B4:$B4,0),MATCH($M$8,Data!$C$1:$U$1,0)),"") -> 21.7 | N22: =IFERROR(INDEX(#REF!,MATCH($G22,#REF!,0),MATCH(#REF!,#REF!,0)),"") -> 
G23: Sales Growth | I23: =IFERROR(INDEX(Data!$C5:$U5,MATCH($G23,Data!$B5:$B5,0),MATCH($I$8,Data!$C$1:$U$1,0)),"") -> -0.054 | J23: =IFERROR(INDEX(Data!$C5:$U5,MATCH($G23,Data!$B5:$B5,0),MATCH($J$8,Data!$C$1:$U$1,0)),"") -> 0.013 | K23: =IFERROR(INDEX(Data!$C5:$U5,MATCH($G23,Data!$B5:$B5,0),MATCH($K$8,Data!$C$1:$U$1,0)),"") -> 0.013 | L23: =IFERROR(INDEX(Data!$C5:$U5,MATCH($G23,Data!$B5:$B5,0),MATCH($L$8,Data!$C$1:$U$1,0)),"") -> -0.11 | M23: =IFERROR(INDEX(Data!$C5:$U5,MATCH($G23,Data!$B5:$B5,0),MATCH($M$8,Data!$C$1:$U$1,0)),"") -> -0.048 | N23: =IFERROR(INDEX(#REF!,MATCH($G23,#REF!,0),MATCH(#REF!,#REF!,0)),"") -> 
G26: RETURN ON INVESTMENT
G27: Profit Margin (Pre-tax) | I27: =IFERROR(INDEX(Data!$C16:$U16,MATCH($G27,Data!$B16:$B16,0),MATCH($I$16,Data!$C$1:$U$1,0)),"") -> 0.05 | J27: =IFERROR(INDEX(Data!$C16:$U16,MATCH($G27,Data!$B16:$B16,0),MATCH($J$16,Data!$C$1:$U$1,0)),"") -> 0.102 | K27: =IFERROR(INDEX(Data!$C16:$U16,MATCH($G27,Data!$B16:$B16,0),MATCH($K$16,Data!$C$1:$U$1,0)),"") -> 0.055 | L27: =IFERROR(INDEX(Data!$C16:$U16,MATCH($G27,Data!$B16:$B16,0),MATCH($L$16,Data!$C$1:$U$1,0)),"") -> 0.048 | M27: =IFERROR(INDEX(Data!$C16:$U16,MATCH($G27,Data!$B16:$B16,0),MATCH($M$16,Data!$C$1:$U$1,0)),"") -> 0.038 | N27: =IFERROR(INDEX(#REF!,MATCH($G27,#REF!,0),MATCH(#REF!,#REF!,0)),"") -> 
G28: Asset Turnover | I28: =IFERROR(INDEX(Data!$C17:$U17,MATCH($G28,Data!$B17:$B17,0),MATCH($I$16,Data!$C$1:$U$1,0)),"") -> 2.4 | J28: =IFERROR(INDEX(Data!$C17:$U17,MATCH($G28,Data!$B17:$B17,0),MATCH($J$16,Data!$C$1:$U$1,0)),"") -> 2.7 | K28: =IFERROR(INDEX(Data!$C17:$U17,MATCH($G28,Data!$B17:$B17,0),MATCH($K$16,Data!$C$1:$U$1,0)),"") -> 2.5 | L28: =IFERROR(INDEX(Data!$C17:$U17,MATCH($G28,Data!$B17:$B17,0),MATCH($L$16,Data!$C$1:$U$1,0)),"") -> 2.3 | M28: =IFERROR(INDEX(Data!$C17:$U17,MATCH($G28,Data!$B17:$B17,0),MATCH($M$16,Data!$C$1:$U$1,0)),"") -> 2.4 | N28: =IFERROR(INDEX(#REF!,MATCH($G28,#REF!,0),MATCH(#REF!,#REF!,0)),"") -> 
G29: Return On Assets (Pre-tax) | I29: =IFERROR(INDEX(Data!$C18:$U18,MATCH($G29,Data!$B18:$B18,0),MATCH($I$16,Data!$C$1:$U$1,0)),"") -> 0.12 | J29: =IFERROR(INDEX(Data!$C18:$U18,MATCH($G29,Data!$B18:$B18,0),MATCH($J$16,Data!$C$1:$U$1,0)),"") -> 0.275 | K29: =IFERROR(INDEX(Data!$C18:$U18,MATCH($G29,Data!$B18:$B18,0),MATCH($K$16,Data!$C$1:$U$1,0)),"") -> 0.138 | L29: =IFERROR(INDEX(Data!$C18:$U18,MATCH($G29,Data!$B18:$B18,0),MATCH($L$16,Data!$C$1:$U$1,0)),"") -> 0.11 | M29: =IFERROR(INDEX(Data!$C18:$U18,MATCH($G29,Data!$B18:$B18,0),MATCH($M$16,Data!$C$1:$U$1,0)),"") -> 0.091 | N29: =IFERROR(INDEX(#REF!,MATCH($G29,#REF!,0),MATCH(#REF!,#REF!,0)),"") -> 
G30: Financial Leverage | I30: =IFERROR(INDEX(Data!$C19:$U19,MATCH($G30,Data!$B19:$B19,0),MATCH($I$16,Data!$C$1:$U$1,0)),"") -> 1.4 | J30: =IFERROR(INDEX(Data!$C19:$U19,MATCH($G30,Data!$B19:$B19,0),MATCH($J$16,Data!$C$1:$U$1,0)),"") -> 1.3 | K30: =IFERROR(INDEX(Data!$C19:$U19,MATCH($G30,Data!$B19:$B19,0),MATCH($K$16,Data!$C$1:$U$1,0)),"") -> 1.5 | L30: =IFERROR(INDEX(Data!$C19:$U19,MATCH($G30,Data!$B19:$B19,0),MATCH($L$16,Data!$C$1:$U$1,0)),"") -> 1.8 | M30: =IFERROR(INDEX(Data!$C19:$U19,MATCH($G30,Data!$B19:$B19,0),MATCH($M$16,Data!$C$1:$U$1,0)),"") -> 1.4 | N30: =IFERROR(INDEX(#REF!,MATCH($G30,#REF!,0),MATCH(#REF!,#REF!,0)),"") -> 
G31: Return On Net Worth (Pre-tax) | I31: =IFERROR(INDEX(Data!$C20:$U20,MATCH($G31,Data!$B20:$B20,0),MATCH($I$16,Data!$C$1:$U$1,0)),"") -> 0.168 | J31: =IFERROR(INDEX(Data!$C20:$U20,MATCH($G31,Data!$B20:$B20,0),MATCH($J$16,Data!$C$1:$U$1,0)),"") -> 0.358 | K31: =IFERROR(INDEX(Data!$C20:$U20,MATCH($G31,Data!$B20:$B20,0),MATCH($K$16,Data!$C$1:$U$1,0)),"") -> 0.207 | L31: =IFERROR(INDEX(Data!$C20:$U20,MATCH($G31,Data!$B20:$B20,0),MATCH($L$16,Data!$C$1:$U$1,0)),"") -> 0.198 | M31: =IFERROR(INDEX(Data!$C20:$U20,MATCH($G31,Data!$B20:$B20,0),MATCH($M$16,Data!$C$1:$U$1,0)),"") -> 0.127 | N31: =IFERROR(INDEX(#REF!,MATCH($G31,#REF!,0),MATCH(#REF!,#REF!,0)),"") -> 
I33: =IFERROR(INDEX(Data!$C21:$U21,MATCH($G33,Data!$B21:$B21,0),MATCH($I$16,Data!$C$1:$U$1,0)),"") ->  | J33: =IFERROR(INDEX(Data!$C21:$U21,MATCH($G33,Data!$B21:$B21,0),MATCH($J$16,Data!$C$1:$U$1,0)),"") ->  | K33: =IFERROR(INDEX(Data!$C21:$U21,MATCH($G33,Data!$B21:$B21,0),MATCH($K$16,Data!$C$1:$U$1,0)),"") ->  | L33: =IFERROR(INDEX(Data!$C21:$U21,MATCH($G33,Data!$B21:$B21,0),MATCH($L$16,Data!$C$1:$U$1,0)),"") ->  | M33: =IFERROR(INDEX(Data!$C21:$U21,MATCH($G33,Data!$B21:$B21,0),MATCH($M$16,Data!$C$1:$U$1,0)),"") ->  | N33: =IFERROR(INDEX(#REF!,MATCH($G33,#REF!,0),MATCH(#REF!,#REF!,0)),"") -> 
G34: INCOME STATEMENT
G35: Net Sales | I35: =IFERROR(INDEX(Data!$C22:$U22,MATCH($G35,Data!$B22:$B22,0),MATCH($I$8,Data!$C$1:$U$1,0)),"") -> 1 | J35: =IFERROR(INDEX(Data!$C22:$U22,MATCH($G35,Data!$B22:$B22,0),MATCH($J$8,Data!$C$1:$U$1,0)),"") -> 1 | K35: =IFERROR(INDEX(Data!$C22:$U22,MATCH($G35,Data!$B22:$B22,0),MATCH($K$8,Data!$C$1:$U$1,0)),"") -> 1 | L35: =IFERROR(INDEX(Data!$C22:$U22,MATCH($G35,Data!$B22:$B22,0),MATCH($L$8,Data!$C$1:$U$1,0)),"") -> 1 | M35: =IFERROR(INDEX(Data!$C22:$U22,MATCH($G35,Data!$B22:$B22,0),MATCH($M$8,Data!$C$1:$U$1,0)),"") -> 1 | N35: =IFERROR(INDEX(#REF!,MATCH($G35,#REF!,0),MATCH(#REF!,#REF!,0)),"") -> 
G36: Cost Of Goods Sold | I36: =IFERROR(INDEX(Data!$C23:$U23,MATCH($G36,Data!$B23:$B23,0),MATCH($I$8,Data!$C$1:$U$1,0)),"") -> 68.3 | J36: =IFERROR(INDEX(Data!$C23:$U23,MATCH($G36,Data!$B23:$B23,0),MATCH($J$8,Data!$C$1:$U$1,0)),"") -> 66.7 | K36: =IFERROR(INDEX(Data!$C23:$U23,MATCH($G36,Data!$B23:$B23,0),MATCH($K$8,Data!$C$1:$U$1,0)),"") -> 66.1 | L36: =IFERROR(INDEX(Data!$C23:$U23,MATCH($G36,Data!$B23:$B23,0),MATCH($L$8,Data!$C$1:$U$1,0)),"") -> 69.9 | M36: =IFERROR(INDEX(Data!$C23:$U23,MATCH($G36,Data!$B23:$B23,0),MATCH($M$8,Data!$C$1:$U$1,0)),"") -> 66.4 | N36: =IFERROR(INDEX(#REF!,MATCH($G36,#REF!,0),MATCH(#REF!,#REF!,0)),"") -> 
G37: Gross Margin | I37: =IFERROR(INDEX(Data!$C24:$U24,MATCH($G37,Data!$B24:$B24,0),MATCH($I$8,Data!$C$1:$U$1,0)),"") -> 31.7 | J37: =IFERROR(INDEX(Data!$C24:$U24,MATCH($G37,Data!$B24:$B24,0),MATCH($J$8,Data!$C$1:$U$1,0)),"") -> 33.3 | K37: =IFERROR(INDEX(Data!$C24:$U24,MATCH($G37,Data!$B24:$B24,0),MATCH($K$8,Data!$C$1:$U$1,0)),"") -> 33.9 | L37: =IFERROR(INDEX(Data!$C24:$U24,MATCH($G37,Data!$B24:$B24,0),MATCH($L$8,Data!$C$1:$U$1,0)),"") -> 30.1 | M37: =IFERROR(INDEX(Data!$C24:$U24,MATCH($G37,Data!$B24:$B24,0),MATCH($M$8,Data!$C$1:$U$1,0)),"") -> 33.6 | N37: =IFERROR(INDEX(#REF!,MATCH($G37,#REF!,0),MATCH(#REF!,#REF!,0)),"") -> 
G38: Operating Expenses
G39: Salaries, Wages, Commissions & Bonuses | I39: =IFERROR(INDEX(Data!$C26:$U26,MATCH($G39,Data!$B26:$B26,0),MATCH($I$8,Data!$C$1:$U$1,0)),"") -> 17.8 | J39: =IFERROR(INDEX(Data!$C26:$U26,MATCH($G39,Data!$B26:$B26,0),MATCH($J$8,Data!$C$1:$U$1,0)),"") -> 15.8 | K39: =IFERROR(INDEX(Data!$C26:$U26,MATCH($G39,Data!$B26:$B26,0),MATCH($K$8,Data!$C$1:$U$1,0)),"") -> 17.3 | L39: =IFERROR(INDEX(Data!$C26:$U26,MATCH($G39,Data!$B26:$B26,0),MATCH($L$8,Data!$C$1:$U$1,0)),"") -> 17 | M39: =IFERROR(INDEX(Data!$C26:$U26,MATCH($G39,Data!$B26:$B26,0),MATCH($M$8,Data!$C$1:$U$1,0)),"") -> 21.7 | N39: =IFERROR(INDEX(#REF!,MATCH($G39,#REF!,0),MATCH(#REF!,#REF!,0)),"") -> 
G40: Payroll Taxes | I40: =IFERROR(INDEX(Data!$C27:$U27,MATCH($G40,Data!$B27:$B27,0),MATCH($I$8,Data!$C$1:$U$1,0)),"") -> 1.4 | J40: =IFERROR(INDEX(Data!$C27:$U27,MATCH($G40,Data!$B27:$B27,0),MATCH($J$8,Data!$C$1:$U$1,0)),"") -> 1.3 | K40: =IFERROR(INDEX(Data!$C27:$U27,MATCH($G40,Data!$B27:$B27,0),MATCH($K$8,Data!$C$1:$U$1,0)),"") -> 1.3 | L40: =IFERROR(INDEX(Data!$C27:$U27,MATCH($G40,Data!$B27:$B27,0),MATCH($L$8,Data!$C$1:$U$1,0)),"") -> 1.2 | M40: =IFERROR(INDEX(Data!$C27:$U27,MATCH($G40,Data!$B27:$B27,0),MATCH($M$8,Data!$C$1:$U$1,0)),"") -> 1.8 | N40: =IFERROR(INDEX(#REF!,MATCH($G40,#REF!,0),MATCH(#REF!,#REF!,0)),"") -> 
G41: Employee Benefits | I41: =IFERROR(INDEX(Data!$C28:$U28,MATCH($G41,Data!$B28:$B28,0),MATCH($I$8,Data!$C$1:$U$1,0)),"") -> 1.8 | J41: =IFERROR(INDEX(Data!$C28:$U28,MATCH($G41,Data!$B28:$B28,0),MATCH($J$8,Data!$C$1:$U$1,0)),"") -> 1.6 | K41: =IFERROR(INDEX(Data!$C28:$U28,MATCH($G41,Data!$B28:$B28,0),MATCH($K$8,Data!$C$1:$U$1,0)),"") -> 2.1 | L41: =IFERROR(INDEX(Data!$C28:$U28,MATCH($G41,Data!$B28:$B28,0),MATCH($L$8,Data!$C$1:$U$1,0)),"") -> 2.3 | M41: =IFERROR(INDEX(Data!$C28:$U28,MATCH($G41,Data!$B28:$B28,0),MATCH($M$8,Data!$C$1:$U$1,0)),"") -> 2.1 | N41: =IFERROR(INDEX(#REF!,MATCH($G41,#REF!,0),MATCH(#REF!,#REF!,0)),"") -> 
G42: Total Payroll Expenses | I42: =IFERROR(INDEX(Data!$C29:$U29,MATCH($G42,Data!$B29:$B29,0),MATCH($I$8,Data!$C$1:$U$1,0)),"") -> 21 | J42: =IFERROR(INDEX(Data!$C29:$U29,MATCH($G42,Data!$B29:$B29,0),MATCH($J$8,Data!$C$1:$U$1,0)),"") -> 18.7 | K42: =IFERROR(INDEX(Data!$C29:$U29,MATCH($G42,Data!$B29:$B29,0),MATCH($K$8,Data!$C$1:$U$1,0)),"") -> 20.7 | L42: =IFERROR(INDEX(Data!$C29:$U29,MATCH($G42,Data!$B29:$B29,0),MATCH($L$8,Data!$C$1:$U$1,0)),"") -> 20.5 | M42: =IFERROR(INDEX(Data!$C29:$U29,MATCH($G42,Data!$B29:$B29,0),MATCH($M$8,Data!$C$1:$U$1,0)),"") -> 25.6 | N42: =IFERROR(INDEX(#REF!,MATCH($G42,#REF!,0),MATCH(#REF!,#REF!,0)),"") -> 
G43: Occupancy Expenses | I43: =IFERROR(INDEX(Data!$C30:$U30,MATCH($G43,Data!$B30:$B30,0),MATCH($I$8,Data!$C$1:$U$1,0)),"") -> 2.3 | J43: =IFERROR(INDEX(Data!$C30:$U30,MATCH($G43,Data!$B30:$B30,0),MATCH($J$8,Data!$C$1:$U$1,0)),"") -> 2.5 | K43: =IFERROR(INDEX(Data!$C30:$U30,MATCH($G43,Data!$B30:$B30,0),MATCH($K$8,Data!$C$1:$U$1,0)),"") -> 2.9 | L43: =IFERROR(INDEX(Data!$C30:$U30,MATCH($G43,Data!$B30:$B30,0),MATCH($L$8,Data!$C$1:$U$1,0)),"") -> 2.3 | M43: =IFERROR(INDEX(Data!$C30:$U30,MATCH($G43,Data!$B30:$B30,0),MATCH($M$8,Data!$C$1:$U$1,0)),"") -> 2 | N43: =IFERROR(INDEX(#REF!,MATCH($G43,#REF!,0),MATCH(#REF!,#REF!,0)),"") -> 
G44: All Other Operating Expenses | I44: =IFERROR(INDEX(Data!$C31:$U31,MATCH($G44,Data!$B31:$B31,0),MATCH($I$8,Data!$C$1:$U$1,0)),"") -> 4.5 | J44: =IFERROR(INDEX(Data!$C31:$U31,MATCH($G44,Data!$B31:$B31,0),MATCH($J$8,Data!$C$1:$U$1,0)),"") -> 2.8 | K44: =IFERROR(INDEX(Data!$C31:$U31,MATCH($G44,Data!$B31:$B31,0),MATCH($K$8,Data!$C$1:$U$1,0)),"") -> 4.5 | L44: =IFERROR(INDEX(Data!$C31:$U31,MATCH($G44,Data!$B31:$B31,0),MATCH($L$8,Data!$C$1:$U$1,0)),"") -> 4.3 | M44: =IFERROR(INDEX(Data!$C31:$U31,MATCH($G44,Data!$B31:$B31,0),MATCH($M$8,Data!$C$1:$U$1,0)),"") -> 2.4 | N44: =IFERROR(INDEX(#REF!,MATCH($G44,#REF!,0),MATCH(#REF!,#REF!,0)),"") -> 
G45: Total Operating Expenses | I45: =IFERROR(INDEX(Data!$C32:$U32,MATCH($G45,Data!$B32:$B32,0),MATCH($I$8,Data!$C$1:$U$1,0)),"") -> 27.8 | J45: =IFERROR(INDEX(Data!$C32:$U32,MATCH($G45,Data!$B32:$B32,0),MATCH($J$8,Data!$C$1:$U$1,0)),"") -> 24 | K45: =IFERROR(INDEX(Data!$C32:$U32,MATCH($G45,Data!$B32:$B32,0),MATCH($K$8,Data!$C$1:$U$1,0)),"") -> 28.1 | L45: =IFERROR(INDEX(Data!$C32:$U32,MATCH($G45,Data!$B32:$B32,0),MATCH($L$8,Data!$C$1:$U$1,0)),"") -> 27.1 | M45: =IFERROR(INDEX(Data!$C32:$U32,MATCH($G45,Data!$B32:$B32,0),MATCH($M$8,Data!$C$1:$U$1,0)),"") -> 30 | N45: =IFERROR(INDEX(#REF!,MATCH($G45,#REF!,0),MATCH(#REF!,#REF!,0)),"") -> 
G46: Operating Profit | I46: =IFERROR(INDEX(Data!$C33:$U33,MATCH($G46,Data!$B33:$B33,0),MATCH($I$8,Data!$C$1:$U$1,0)),"") -> 3.9 | J46: =IFERROR(INDEX(Data!$C33:$U33,MATCH($G46,Data!$B33:$B33,0),MATCH($J$8,Data!$C$1:$U$1,0)),"") -> 9.3 | K46: =IFERROR(INDEX(Data!$C33:$U33,MATCH($G46,Data!$B33:$B33,0),MATCH($K$8,Data!$C$1:$U$1,0)),"") -> 5.8 | L46: =IFERROR(INDEX(Data!$C33:$U33,MATCH($G46,Data!$B33:$B33,0),MATCH($L$8,Data!$C$1:$U$1,0)),"") -> 3 | M46: =IFERROR(INDEX(Data!$C33:$U33,MATCH($G46,Data!$B33:$B33,0),MATCH($M$8,Data!$C$1:$U$1,0)),"") -> 3.6 | N46: =IFERROR(INDEX(#REF!,MATCH($G46,#REF!,0),MATCH(#REF!,#REF!,0)),"") -> 
G47: Other Income | I47: =IFERROR(INDEX(Data!$C34:$U34,MATCH($G47,Data!$B34:$B34,0),MATCH($I$8,Data!$C$1:$U$1,0)),"") -> 1.3 | J47: =IFERROR(INDEX(Data!$C34:$U34,MATCH($G47,Data!$B34:$B34,0),MATCH($J$8,Data!$C$1:$U$1,0)),"") -> 1.1 | K47: =IFERROR(INDEX(Data!$C34:$U34,MATCH($G47,Data!$B34:$B34,0),MATCH($K$8,Data!$C$1:$U$1,0)),"") -> 0.2 | L47: =IFERROR(INDEX(Data!$C34:$U34,MATCH($G47,Data!$B34:$B34,0),MATCH($L$8,Data!$C$1:$U$1,0)),"") -> 2.2 | M47: =IFERROR(INDEX(Data!$C34:$U34,MATCH($G47,Data!$B34:$B34,0),MATCH($M$8,Data!$C$1:$U$1,0)),"") -> 0.3 | N47: =IFERROR(INDEX(#REF!,MATCH($G47,#REF!,0),MATCH(#REF!,#REF!,0)),"") -> 
G48: Interest Expense | I48: =IFERROR(INDEX(Data!$C35:$U35,MATCH($G48,Data!$B35:$B35,0),MATCH($I$8,Data!$C$1:$U$1,0)),"") -> 0.2 | J48: =IFERROR(INDEX(Data!$C35:$U35,MATCH($G48,Data!$B35:$B35,0),MATCH($J$8,Data!$C$1:$U$1,0)),"") -> 0.2 | K48: =IFERROR(INDEX(Data!$C35:$U35,MATCH($G48,Data!$B35:$B35,0),MATCH($K$8,Data!$C$1:$U$1,0)),"") -> 0.5 | L48: =IFERROR(INDEX(Data!$C35:$U35,MATCH($G48,Data!$B35:$B35,0),MATCH($L$8,Data!$C$1:$U$1,0)),"") -> 0.4 | M48: =IFERROR(INDEX(Data!$C35:$U35,MATCH($G48,Data!$B35:$B35,0),MATCH($M$8,Data!$C$1:$U$1,0)),"") -> 0.1 | N48: =IFERROR(INDEX(#REF!,MATCH($G48,#REF!,0),MATCH(#REF!,#REF!,0)),"") -> 
G49: Other Non-Operating Expenses | I49: =IFERROR(INDEX(Data!$C36:$U36,MATCH($G49,Data!$B36:$B36,0),MATCH($I$8,Data!$C$1:$U$1,0)),"") -> 0 | J49: =IFERROR(INDEX(Data!$C36:$U36,MATCH($G49,Data!$B36:$B36,0),MATCH($J$8,Data!$C$1:$U$1,0)),"") -> 0 | K49: =IFERROR(INDEX(Data!$C36:$U36,MATCH($G49,Data!$B36:$B36,0),MATCH($K$8,Data!$C$1:$U$1,0)),"") -> 0 | L49: =IFERROR(INDEX(Data!$C36:$U36,MATCH($G49,Data!$B36:$B36,0),MATCH($L$8,Data!$C$1:$U$1,0)),"") -> 0 | M49: =IFERROR(INDEX(Data!$C36:$U36,MATCH($G49,Data!$B36:$B36,0),MATCH($M$8,Data!$C$1:$U$1,0)),"") -> 0 | N49: =IFERROR(INDEX(#REF!,MATCH($G49,#REF!,0),MATCH(#REF!,#REF!,0)),"") -> 
G50: Profit Before Taxes | I50: =IFERROR(INDEX(Data!$C37:$U37,MATCH($G50,Data!$B37:$B37,0),MATCH($I$8,Data!$C$1:$U$1,0)),"") -> 0.05 | J50: =IFERROR(INDEX(Data!$C37:$U37,MATCH($G50,Data!$B37:$B37,0),MATCH($J$8,Data!$C$1:$U$1,0)),"") -> 0.102 | K50: =IFERROR(INDEX(Data!$C37:$U37,MATCH($G50,Data!$B37:$B37,0),MATCH($K$8,Data!$C$1:$U$1,0)),"") -> 0.055 | L50: =IFERROR(INDEX(Data!$C37:$U37,MATCH($G50,Data!$B37:$B37,0),MATCH($L$8,Data!$C$1:$U$1,0)),"") -> 0.048 | M50: =IFERROR(INDEX(Data!$C37:$U37,MATCH($G50,Data!$B37:$B37,0),MATCH($M$8,Data!$C$1:$U$1,0)),"") -> 0.038 | N50: =IFERROR(INDEX(#REF!,MATCH($G50,#REF!,0),MATCH(#REF!,#REF!,0)),"") -> 
G53: FINANCIAL RATIOS
G54: Current Ratio | I54: =IFERROR(INDEX(Data!$C71:$U71,MATCH($G54,Data!$B71:$B71,0),MATCH($I$8,Data!$C$1:$U$1,0)),"") -> 3.3 | J54: =IFERROR(INDEX(Data!$C71:$U71,MATCH($G54,Data!$B71:$B71,0),MATCH($J$8,Data!$C$1:$U$1,0)),"") -> 4.4 | K54: =IFERROR(INDEX(Data!$C71:$U71,MATCH($G54,Data!$B71:$B71,0),MATCH($K$8,Data!$C$1:$U$1,0)),"") -> 3.3 | L54: =IFERROR(INDEX(Data!$C71:$U71,MATCH($G54,Data!$B71:$B71,0),MATCH($L$8,Data!$C$1:$U$1,0)),"") -> 1.8 | M54: =IFERROR(INDEX(Data!$C71:$U71,MATCH($G54,Data!$B71:$B71,0),MATCH($M$8,Data!$C$1:$U$1,0)),"") -> 4.4 | N54: =IFERROR(INDEX(#REF!,MATCH($G54,#REF!,0),MATCH(#REF!,#REF!,0)),"") -> 
G55: Quick Ratio | I55: =IFERROR(INDEX(Data!$C72:$U72,MATCH($G55,Data!$B72:$B72,0),MATCH($I$8,Data!$C$1:$U$1,0)),"") -> 2.6 | J55: =IFERROR(INDEX(Data!$C72:$U72,MATCH($G55,Data!$B72:$B72,0),MATCH($J$8,Data!$C$1:$U$1,0)),"") -> 3.6 | K55: =IFERROR(INDEX(Data!$C72:$U72,MATCH($G55,Data!$B72:$B72,0),MATCH($K$8,Data!$C$1:$U$1,0)),"") -> 2 | L55: =IFERROR(INDEX(Data!$C72:$U72,MATCH($G55,Data!$B72:$B72,0),MATCH($L$8,Data!$C$1:$U$1,0)),"") -> 1.3 | M55: =IFERROR(INDEX(Data!$C72:$U72,MATCH($G55,Data!$B72:$B72,0),MATCH($M$8,Data!$C$1:$U$1,0)),"") -> 3.5 | N55: =IFERROR(INDEX(#REF!,MATCH($G55,#REF!,0),MATCH(#REF!,#REF!,0)),"") -> 
G56: Cash To Current Liabilities | I56: =IFERROR(INDEX(Data!$C73:$U73,MATCH($G56,Data!$B73:$B73,0),MATCH($I$8,Data!$C$1:$U$1,0)),"") -> 0.645 | J56: =IFERROR(INDEX(Data!$C73:$U73,MATCH($G56,Data!$B73:$B73,0),MATCH($J$8,Data!$C$1:$U$1,0)),"") -> 0.74 | K56: =IFERROR(INDEX(Data!$C73:$U73,MATCH($G56,Data!$B73:$B73,0),MATCH($K$8,Data!$C$1:$U$1,0)),"") -> 0.044 | L56: =IFERROR(INDEX(Data!$C73:$U73,MATCH($G56,Data!$B73:$B73,0),MATCH($L$8,Data!$C$1:$U$1,0)),"") -> 0.046 | M56: =IFERROR(INDEX(Data!$C73:$U73,MATCH($G56,Data!$B73:$B73,0),MATCH($M$8,Data!$C$1:$U$1,0)),"") -> 1.059 | N56: =IFERROR(INDEX(#REF!,MATCH($G56,#REF!,0),MATCH(#REF!,#REF!,0)),"") -> 
G57: Accounts Payable To Inventory | I57: =IFERROR(INDEX(Data!$C74:$U74,MATCH($G57,Data!$B74:$B74,0),MATCH($I$8,Data!$C$1:$U$1,0)),"") -> 0.461 | J57: =IFERROR(INDEX(Data!$C74:$U74,MATCH($G57,Data!$B74:$B74,0),MATCH($J$8,Data!$C$1:$U$1,0)),"") -> 0.554 | K57: =IFERROR(INDEX(Data!$C74:$U74,MATCH($G57,Data!$B74:$B74,0),MATCH($K$8,Data!$C$1:$U$1,0)),"") -> 0.375 | L57: =IFERROR(INDEX(Data!$C74:$U74,MATCH($G57,Data!$B74:$B74,0),MATCH($L$8,Data!$C$1:$U$1,0)),"") -> 0.464 | M57: =IFERROR(INDEX(Data!$C74:$U74,MATCH($G57,Data!$B74:$B74,0),MATCH($M$8,Data!$C$1:$U$1,0)),"") -> 0.61 | N57: =IFERROR(INDEX(#REF!,MATCH($G57,#REF!,0),MATCH(#REF!,#REF!,0)),"") -> 
G58: Accounts Payable Payout Period (Days) | I58: =IFERROR(INDEX(Data!$C75:$U75,MATCH($G58,Data!$B75:$B75,0),MATCH($I$8,Data!$C$1:$U$1,0)),"") -> 19.1 | J58: =IFERROR(INDEX(Data!$C75:$U75,MATCH($G58,Data!$B75:$B75,0),MATCH($J$8,Data!$C$1:$U$1,0)),"") -> 19.5 | K58: =IFERROR(INDEX(Data!$C75:$U75,MATCH($G58,Data!$B75:$B75,0),MATCH($K$8,Data!$C$1:$U$1,0)),"") -> 19.9 | L58: =IFERROR(INDEX(Data!$C75:$U75,MATCH($G58,Data!$B75:$B75,0),MATCH($L$8,Data!$C$1:$U$1,0)),"") -> 28.3 | M58: =IFERROR(INDEX(Data!$C75:$U75,MATCH($G58,Data!$B75:$B75,0),MATCH($M$8,Data!$C$1:$U$1,0)),"") -> 16.1 | N58: =IFERROR(INDEX(#REF!,MATCH($G58,#REF!,0),MATCH(#REF!,#REF!,0)),"") -> 
G59: Debt to Equity | I59: =IFERROR(INDEX(Data!$C76:$U76,MATCH($G59,Data!$B76:$B76,0),MATCH($I$8,Data!$C$1:$U$1,0)),"") -> 0.4 | J59: =IFERROR(INDEX(Data!$C76:$U76,MATCH($G59,Data!$B76:$B76,0),MATCH($J$8,Data!$C$1:$U$1,0)),"") -> 0.3 | K59: =IFERROR(INDEX(Data!$C76:$U76,MATCH($G59,Data!$B76:$B76,0),MATCH($K$8,Data!$C$1:$U$1,0)),"") -> 0.5 | L59: =IFERROR(INDEX(Data!$C76:$U76,MATCH($G59,Data!$B76:$B76,0),MATCH($L$8,Data!$C$1:$U$1,0)),"") -> 0.8 | M59: =IFERROR(INDEX(Data!$C76:$U76,MATCH($G59,Data!$B76:$B76,0),MATCH($M$8,Data!$C$1:$U$1,0)),"") -> 0.4 | N59: =IFERROR(INDEX(#REF!,MATCH($G59,#REF!,0),MATCH(#REF!,#REF!,0)),"") -> 
G60: EBIT | I60: =IFERROR(INDEX(Data!$C77:$U77,MATCH($G60,Data!$B77:$B77,0),MATCH($I$8,Data!$C$1:$U$1,0)),"") -> 0.053 | J60: =IFERROR(INDEX(Data!$C77:$U77,MATCH($G60,Data!$B77:$B77,0),MATCH($J$8,Data!$C$1:$U$1,0)),"") -> 0.104 | K60: =IFERROR(INDEX(Data!$C77:$U77,MATCH($G60,Data!$B77:$B77,0),MATCH($K$8,Data!$C$1:$U$1,0)),"") -> 0.061 | L60: =IFERROR(INDEX(Data!$C77:$U77,MATCH($G60,Data!$B77:$B77,0),MATCH($L$8,Data!$C$1:$U$1,0)),"") -> 0.048 | M60: =IFERROR(INDEX(Data!$C77:$U77,MATCH($G60,Data!$B77:$B77,0),MATCH($M$8,Data!$C$1:$U$1,0)),"") -> 0.038 | N60: =IFERROR(INDEX(#REF!,MATCH($G60,#REF!,0),MATCH(#REF!,#REF!,0)),"") -> 
G61: EBIT To Total Assets | I61: =IFERROR(INDEX(Data!$C78:$U78,MATCH($G61,Data!$B78:$B78,0),MATCH($I$8,Data!$C$1:$U$1,0)),"") -> 0.101 | J61: =IFERROR(INDEX(Data!$C78:$U78,MATCH($G61,Data!$B78:$B78,0),MATCH($J$8,Data!$C$1:$U$1,0)),"") -> 0.275 | K61: =IFERROR(INDEX(Data!$C78:$U78,MATCH($G61,Data!$B78:$B78,0),MATCH($K$8,Data!$C$1:$U$1,0)),"") -> 0.162 | L61: =IFERROR(INDEX(Data!$C78:$U78,MATCH($G61,Data!$B78:$B78,0),MATCH($L$8,Data!$C$1:$U$1,0)),"") -> 0.102 | M61: =IFERROR(INDEX(Data!$C78:$U78,MATCH($G61,Data!$B78:$B78,0),MATCH($M$8,Data!$C$1:$U$1,0)),"") -> 0.069 | N61: =IFERROR(INDEX(#REF!,MATCH($G61,#REF!,0),MATCH(#REF!,#REF!,0)),"") -> 
G62: Times Interest Earned | I62: =IFERROR(INDEX(Data!$C79:$U79,MATCH($G62,Data!$B79:$B79,0),MATCH($I$8,Data!$C$1:$U$1,0)),"") -> 11 | J62: =IFERROR(INDEX(Data!$C79:$U79,MATCH($G62,Data!$B79:$B79,0),MATCH($J$8,Data!$C$1:$U$1,0)),"") -> 46.1 | K62: =IFERROR(INDEX(Data!$C79:$U79,MATCH($G62,Data!$B79:$B79,0),MATCH($K$8,Data!$C$1:$U$1,0)),"") -> 11.5 | L62: =IFERROR(INDEX(Data!$C79:$U79,MATCH($G62,Data!$B79:$B79,0),MATCH($L$8,Data!$C$1:$U$1,0)),"") -> 7.5 | M62: =IFERROR(INDEX(Data!$C79:$U79,MATCH($G62,Data!$B79:$B79,0),MATCH($M$8,Data!$C$1:$U$1,0)),"") -> 15.5 | N62: =IFERROR(INDEX(#REF!,MATCH($G62,#REF!,0),MATCH(#REF!,#REF!,0)),"") -> 
G65: ASSET PRODUCTIVITY
G66: Average Collection Period (Days) | I66: =IFERROR(INDEX(Data!$C92:$U92,MATCH($G66,Data!$B92:$B92,0),MATCH($I$8,Data!$C$1:$U$1,0)),"") -> 73.6 | J66: =IFERROR(INDEX(Data!$C92:$U92,MATCH($G66,Data!$B92:$B92,0),MATCH($J$8,Data!$C$1:$U$1,0)),"") -> 70.6 | K66: =IFERROR(INDEX(Data!$C92:$U92,MATCH($G66,Data!$B92:$B92,0),MATCH($K$8,Data!$C$1:$U$1,0)),"") -> 66.8 | L66: =IFERROR(INDEX(Data!$C92:$U92,MATCH($G66,Data!$B92:$B92,0),MATCH($L$8,Data!$C$1:$U$1,0)),"") -> 81 | M66: =IFERROR(INDEX(Data!$C92:$U92,MATCH($G66,Data!$B92:$B92,0),MATCH($M$8,Data!$C$1:$U$1,0)),"") -> 72.6 | N66: =IFERROR(INDEX(#REF!,MATCH($G66,#REF!,0),MATCH(#REF!,#REF!,0)),"") -> 
G67: Inventory Turnover | I67: =IFERROR(INDEX(Data!$C82:$U82,MATCH($G67,Data!$B82:$B82,0),MATCH($I$8,Data!$C$1:$U$1,0)),"") -> 6.5 | J67: =IFERROR(INDEX(Data!$C82:$U82,MATCH($G67,Data!$B82:$B82,0),MATCH($J$8,Data!$C$1:$U$1,0)),"") -> 7.1 | K67: =IFERROR(INDEX(Data!$C82:$U82,MATCH($G67,Data!$B82:$B82,0),MATCH($K$8,Data!$C$1:$U$1,0)),"") -> 5.1 | L67: =IFERROR(INDEX(Data!$C82:$U82,MATCH($G67,Data!$B82:$B82,0),MATCH($L$8,Data!$C$1:$U$1,0)),"") -> 7.4 | M67: =IFERROR(INDEX(Data!$C82:$U82,MATCH($G67,Data!$B82:$B82,0),MATCH($M$8,Data!$C$1:$U$1,0)),"") -> 10.2 | N67: =IFERROR(INDEX(#REF!,MATCH($G67,#REF!,0),MATCH(#REF!,#REF!,0)),"") -> 
G68: Inventory Holding Period (Days) | I68: =IFERROR(INDEX(Data!$C83:$U83,MATCH($G68,Data!$B83:$B83,0),MATCH($I$8,Data!$C$1:$U$1,0)),"") -> 56.4 | J68: =IFERROR(INDEX(Data!$C83:$U83,MATCH($G68,Data!$B83:$B83,0),MATCH($J$8,Data!$C$1:$U$1,0)),"") -> 52.2 | K68: =IFERROR(INDEX(Data!$C83:$U83,MATCH($G68,Data!$B83:$B83,0),MATCH($K$8,Data!$C$1:$U$1,0)),"") -> 71.9 | L68: =IFERROR(INDEX(Data!$C83:$U83,MATCH($G68,Data!$B83:$B83,0),MATCH($L$8,Data!$C$1:$U$1,0)),"") -> 49.1 | M68: =IFERROR(INDEX(Data!$C83:$U83,MATCH($G68,Data!$B83:$B83,0),MATCH($M$8,Data!$C$1:$U$1,0)),"") -> 37.4 | N68: =IFERROR(INDEX(#REF!,MATCH($G68,#REF!,0),MATCH(#REF!,#REF!,0)),"") -> 
G69: Gross Margin Return On Inventory | I69: =IFERROR(INDEX(Data!$C85:$U85,MATCH($G69,Data!$B85:$B85,0),MATCH($I$8,Data!$C$1:$U$1,0)),"") -> 3.149 | J69: =IFERROR(INDEX(Data!$C85:$U85,MATCH($G69,Data!$B85:$B85,0),MATCH($J$8,Data!$C$1:$U$1,0)),"") -> 3.48 | K69: =IFERROR(INDEX(Data!$C85:$U85,MATCH($G69,Data!$B85:$B85,0),MATCH($K$8,Data!$C$1:$U$1,0)),"") -> 2.526 | L69: =IFERROR(INDEX(Data!$C85:$U85,MATCH($G69,Data!$B85:$B85,0),MATCH($L$8,Data!$C$1:$U$1,0)),"") -> 2.921 | M69: =IFERROR(INDEX(Data!$C85:$U85,MATCH($G69,Data!$B85:$B85,0),MATCH($M$8,Data!$C$1:$U$1,0)),"") -> 4.345 | N69: =IFERROR(INDEX(#REF!,MATCH($G69,#REF!,0),MATCH(#REF!,#REF!,0)),"") -> 
G72: EMPLOYEE PRODUCTIVITY
G73: Sales Per Employee | I73: =IFERROR(INDEX(Data!$C98:$U98,MATCH($G73,Data!$B98:$B98,0),MATCH($I$8,Data!$C$1:$U$1,0)),"") -> 355701 | J73: =IFERROR(INDEX(Data!$C98:$U98,MATCH($G73,Data!$B98:$B98,0),MATCH($J$8,Data!$C$1:$U$1,0)),"") -> 381552 | K73: =IFERROR(INDEX(Data!$C98:$U98,MATCH($G73,Data!$B98:$B98,0),MATCH($K$8,Data!$C$1:$U$1,0)),"") -> 342062 | L73: =IFERROR(INDEX(Data!$C98:$U98,MATCH($G73,Data!$B98:$B98,0),MATCH($L$8,Data!$C$1:$U$1,0)),"") -> 361346 | M73: =IFERROR(INDEX(Data!$C98:$U98,MATCH($G73,Data!$B98:$B98,0),MATCH($M$8,Data!$C$1:$U$1,0)),"") -> 391246 | N73: =IFERROR(INDEX(#REF!,MATCH($G73,#REF!,0),MATCH(#REF!,#REF!,0)),"") -> 
G74: Gross Profit Per Employee | I74: =IFERROR(INDEX(Data!$C99:$U99,MATCH($G74,Data!$B99:$B99,0),MATCH($I$8,Data!$C$1:$U$1,0)),"") -> 113933 | J74: =IFERROR(INDEX(Data!$C99:$U99,MATCH($G74,Data!$B99:$B99,0),MATCH($J$8,Data!$C$1:$U$1,0)),"") -> 124546 | K74: =IFERROR(INDEX(Data!$C99:$U99,MATCH($G74,Data!$B99:$B99,0),MATCH($K$8,Data!$C$1:$U$1,0)),"") -> 113484 | L74: =IFERROR(INDEX(Data!$C99:$U99,MATCH($G74,Data!$B99:$B99,0),MATCH($L$8,Data!$C$1:$U$1,0)),"") -> 108767 | M74: =IFERROR(INDEX(Data!$C99:$U99,MATCH($G74,Data!$B99:$B99,0),MATCH($M$8,Data!$C$1:$U$1,0)),"") -> 122139 | N74: =IFERROR(INDEX(#REF!,MATCH($G74,#REF!,0),MATCH(#REF!,#REF!,0)),"") -> 
G75: Salary Per Employee | I75: =IFERROR(INDEX(Data!$C100:$U100,MATCH($G75,Data!$B100:$B100,0),MATCH($I$8,Data!$C$1:$U$1,0)),"") -> 59357 | J75: =IFERROR(INDEX(Data!$C100:$U100,MATCH($G75,Data!$B100:$B100,0),MATCH($J$8,Data!$C$1:$U$1,0)),"") -> 58962 | K75: =IFERROR(INDEX(Data!$C100:$U100,MATCH($G75,Data!$B100:$B100,0),MATCH($K$8,Data!$C$1:$U$1,0)),"") -> 58375 | L75: =IFERROR(INDEX(Data!$C100:$U100,MATCH($G75,Data!$B100:$B100,0),MATCH($L$8,Data!$C$1:$U$1,0)),"") -> 59760 | M75: =IFERROR(INDEX(Data!$C100:$U100,MATCH($G75,Data!$B100:$B100,0),MATCH($M$8,Data!$C$1:$U$1,0)),"") -> 65794 | N75: =IFERROR(INDEX(#REF!,MATCH($G75,#REF!,0),MATCH(#REF!,#REF!,0)),"") -> 
G76: Payroll, including benefits Per Employee | I76: =IFERROR(INDEX(Data!$C101:$U101,MATCH($G76,Data!$B101:$B101,0),MATCH($I$8,Data!$C$1:$U$1,0)),"") -> 74630 | J76: =IFERROR(INDEX(Data!$C101:$U101,MATCH($G76,Data!$B101:$B101,0),MATCH($J$8,Data!$C$1:$U$1,0)),"") -> 71638 | K76: =IFERROR(INDEX(Data!$C101:$U101,MATCH($G76,Data!$B101:$B101,0),MATCH($K$8,Data!$C$1:$U$1,0)),"") -> 72785 | L76: =IFERROR(INDEX(Data!$C101:$U101,MATCH($G76,Data!$B101:$B101,0),MATCH($L$8,Data!$C$1:$U$1,0)),"") -> 72862 | M76: =IFERROR(INDEX(Data!$C101:$U101,MATCH($G76,Data!$B101:$B101,0),MATCH($M$8,Data!$C$1:$U$1,0)),"") -> 77218 | N76: =IFERROR(INDEX(#REF!,MATCH($G76,#REF!,0),MATCH(#REF!,#REF!,0)),"") -> 
G77: Personnel Productivity Ratio | I77: =IFERROR(INDEX(Data!$C102:$U102,MATCH($G77,Data!$B102:$B102,0),MATCH($I$8,Data!$C$1:$U$1,0)),"") -> 0.649 | J77: =IFERROR(INDEX(Data!$C102:$U102,MATCH($G77,Data!$B102:$B102,0),MATCH($J$8,Data!$C$1:$U$1,0)),"") -> 0.548 | K77: =IFERROR(INDEX(Data!$C102:$U102,MATCH($G77,Data!$B102:$B102,0),MATCH($K$8,Data!$C$1:$U$1,0)),"") -> 0.616 | L77: =IFERROR(INDEX(Data!$C102:$U102,MATCH($G77,Data!$B102:$B102,0),MATCH($L$8,Data!$C$1:$U$1,0)),"") -> 0.652 | M77: =IFERROR(INDEX(Data!$C102:$U102,MATCH($G77,Data!$B102:$B102,0),MATCH($M$8,Data!$C$1:$U$1,0)),"") -> 0.763 | N77: =IFERROR(INDEX(#REF!,MATCH($G77,#REF!,0),MATCH(#REF!,#REF!,0)),"") -> 
I78: =IFERROR(INDEX(Data!$C78:$U78,MATCH($G78,Data!$B78:$B78,0),MATCH($I$8,Data!$C$1:$U$1,0)),"") ->  | J78: =IFERROR(INDEX(Data!$C78:$U78,MATCH($G78,Data!$B78:$B78,0),MATCH($J$8,Data!$C$1:$U$1,0)),"") ->  | K78: =IFERROR(INDEX(Data!$C78:$U78,MATCH($G78,Data!$B78:$B78,0),MATCH($K$8,Data!$C$1:$U$1,0)),"") ->  | L78: =IFERROR(INDEX(Data!$C78:$U78,MATCH($G78,Data!$B78:$B78,0),MATCH($L$8,Data!$C$1:$U$1,0)),"") ->  | M78: =IFERROR(INDEX(Data!$C78:$U78,MATCH($G78,Data!$B78:$B78,0),MATCH($M$8,Data!$C$1:$U$1,0)),"") ->  | N78: =IFERROR(INDEX(#REF!,MATCH($G78,#REF!,0),MATCH(#REF!,#REF!,0)),"") -> 
I82: =IFERROR(INDEX(Data!$C63:$U63,MATCH($G82,Data!$B63:$B63,0),MATCH($I$8,Data!$C$1:$U$1,0)),"") ->  | J82: =IFERROR(INDEX(Data!$C63:$U63,MATCH($G82,Data!$B63:$B63,0),MATCH($J$8,Data!$C$1:$U$1,0)),"") ->  | K82: =IFERROR(INDEX(Data!$C63:$U63,MATCH($G82,Data!$B63:$B63,0),MATCH($K$8,Data!$C$1:$U$1,0)),"") ->  | L82: =IFERROR(INDEX(Data!$C63:$U63,MATCH($G82,Data!$B63:$B63,0),MATCH($L$8,Data!$C$1:$U$1,0)),"") ->  | M82: =IFERROR(INDEX(Data!$C63:$U63,MATCH($G82,Data!$B63:$B63,0),MATCH($M$8,Data!$C$1:$U$1,0)),"") ->  | N82: =IFERROR(INDEX(#REF!,MATCH($G82,#REF!,0),MATCH(#REF!,#REF!,0)),"") -> 
I83: =IFERROR(INDEX(Data!$C64:$U64,MATCH($G83,Data!$B64:$B64,0),MATCH($I$8,Data!$C$1:$U$1,0)),"") ->  | J83: =IFERROR(INDEX(Data!$C64:$U64,MATCH($G83,Data!$B64:$B64,0),MATCH($J$8,Data!$C$1:$U$1,0)),"") ->  | K83: =IFERROR(INDEX(Data!$C64:$U64,MATCH($G83,Data!$B64:$B64,0),MATCH($K$8,Data!$C$1:$U$1,0)),"") ->  | L83: =IFERROR(INDEX(Data!$C64:$U64,MATCH($G83,Data!$B64:$B64,0),MATCH($L$8,Data!$C$1:$U$1,0)),"") ->  | M83: =IFERROR(INDEX(Data!$C64:$U64,MATCH($G83,Data!$B64:$B64,0),MATCH($M$8,Data!$C$1:$U$1,0)),"") ->  | N83: =IFERROR(INDEX(#REF!,MATCH($G83,#REF!,0),MATCH(#REF!,#REF!,0)),"") -> 
I84: =IFERROR(INDEX(Data!$C71:$U71,MATCH($G84,Data!$B71:$B71,0),MATCH($I$8,Data!$C$1:$U$1,0)),"") ->  | J84: =IFERROR(INDEX(Data!$C71:$U71,MATCH($G84,Data!$B71:$B71,0),MATCH($J$8,Data!$C$1:$U$1,0)),"") ->  | K84: =IFERROR(INDEX(Data!$C71:$U71,MATCH($G84,Data!$B71:$B71,0),MATCH($K$8,Data!$C$1:$U$1,0)),"") ->  | L84: =IFERROR(INDEX(Data!$C71:$U71,MATCH($G84,Data!$B71:$B71,0),MATCH($L$8,Data!$C$1:$U$1,0)),"") ->  | M84: =IFERROR(INDEX(Data!$C71:$U71,MATCH($G84,Data!$B71:$B71,0),MATCH($M$8,Data!$C$1:$U$1,0)),"") ->  | N84: =IFERROR(INDEX(#REF!,MATCH($G84,#REF!,0),MATCH(#REF!,#REF!,0)),"") -> 
I85: =IFERROR(INDEX(Data!$C83:$U83,MATCH($G85,Data!$B83:$B83,0),MATCH($I$8,Data!$C$1:$U$1,0)),"") ->  | J85: =IFERROR(INDEX(Data!$C83:$U83,MATCH($G85,Data!$B83:$B83,0),MATCH($J$8,Data!$C$1:$U$1,0)),"") ->  | K85: =IFERROR(INDEX(Data!$C83:$U83,MATCH($G85,Data!$B83:$B83,0),MATCH($K$8,Data!$C$1:$U$1,0)),"") ->  | L85: =IFERROR(INDEX(Data!$C83:$U83,MATCH($G85,Data!$B83:$B83,0),MATCH($L$8,Data!$C$1:$U$1,0)),"") ->  | M85: =IFERROR(INDEX(Data!$C83:$U83,MATCH($G85,Data!$B83:$B83,0),MATCH($M$8,Data!$C$1:$U$1,0)),"") ->  | N85: =IFERROR(INDEX(#REF!,MATCH($G85,#REF!,0),MATCH(#REF!,#REF!,0)),"") -> 
I86: =IFERROR(INDEX(Data!$C73:$U73,MATCH($G86,Data!$B73:$B73,0),MATCH($I$8,Data!$C$1:$U$1,0)),"") ->  | J86: =IFERROR(INDEX(Data!$C73:$U73,MATCH($G86,Data!$B73:$B73,0),MATCH($J$8,Data!$C$1:$U$1,0)),"") ->  | K86: =IFERROR(INDEX(Data!$C73:$U73,MATCH($G86,Data!$B73:$B73,0),MATCH($K$8,Data!$C$1:$U$1,0)),"") ->  | L86: =IFERROR(INDEX(Data!$C73:$U73,MATCH($G86,Data!$B73:$B73,0),MATCH($L$8,Data!$C$1:$U$1,0)),"") ->  | M86: =IFERROR(INDEX(Data!$C73:$U73,MATCH($G86,Data!$B73:$B73,0),MATCH($M$8,Data!$C$1:$U$1,0)),"") ->  | N86: =IFERROR(INDEX(#REF!,MATCH($G86,#REF!,0),MATCH(#REF!,#REF!,0)),"") -> 
I87: =IFERROR(INDEX(Data!$C75:$U75,MATCH($G87,Data!$B75:$B75,0),MATCH($I$8,Data!$C$1:$U$1,0)),"") ->  | J87: =IFERROR(INDEX(Data!$C75:$U75,MATCH($G87,Data!$B75:$B75,0),MATCH($J$8,Data!$C$1:$U$1,0)),"") ->  | K87: =IFERROR(INDEX(Data!$C75:$U75,MATCH($G87,Data!$B75:$B75,0),MATCH($K$8,Data!$C$1:$U$1,0)),"") ->  | L87: =IFERROR(INDEX(Data!$C75:$U75,MATCH($G87,Data!$B75:$B75,0),MATCH($L$8,Data!$C$1:$U$1,0)),"") ->  | M87: =IFERROR(INDEX(Data!$C75:$U75,MATCH($G87,Data!$B75:$B75,0),MATCH($M$8,Data!$C$1:$U$1,0)),"") ->  | N87: =IFERROR(INDEX(#REF!,MATCH($G87,#REF!,0),MATCH(#REF!,#REF!,0)),"") -> 
I88: =IFERROR(INDEX(Data!$C116:$U116,MATCH($G88,Data!#REF!,0),MATCH($I$8,Data!$C$1:$U$1,0)),"") ->  | J88: =IFERROR(INDEX(Data!$C116:$U116,MATCH($G88,Data!#REF!,0),MATCH($J$8,Data!$C$1:$U$1,0)),"") ->  | K88: =IFERROR(INDEX(Data!$C116:$U116,MATCH($G88,Data!#REF!,0),MATCH($K$8,Data!$C$1:$U$1,0)),"") ->  | L88: =IFERROR(INDEX(Data!$C116:$U116,MATCH($G88,Data!#REF!,0),MATCH($L$8,Data!$C$1:$U$1,0)),"") ->  | M88: =IFERROR(INDEX(Data!$C116:$U116,MATCH($G88,Data!#REF!,0),MATCH($M$8,Data!$C$1:$U$1,0)),"") ->  | N88: =IFERROR(INDEX(#REF!,MATCH($G88,#REF!,0),MATCH(#REF!,#REF!,0)),"") -> 

Sheet Detailed Results
H8: Typical DHI Distributor | I8: High Profit DHI Distributor | J8: Under 70% Contract Jobs | K8: 70% - 80% Contract Jobs | L8: Over 80% Contract Jobs | M8: Your Company
G14: Return On Investment / Product Mix
M15: =M8 -> Your Company
H16: =IF($H$8=0,"",$H$8) -> Typical DHI Distributor | I16: =IF($I$8=0,"",$I$8) -> High Profit DHI Distributor | J16: =IF($J$8=0,"",$J$8) -> Under 70% Contract Jobs | K16: =IF($K$8=0,"",$K$8) -> 70% - 80% Contract Jobs | L16: =IF($L$8=0,"",$L$8) -> Over 80% Contract Jobs
G19: Number of Firms Reporting | H19: =IFERROR(INDEX(Data!$C3:$U3,MATCH($G19,Data!$B3:$B3,0),MATCH($H$16,Data!$C$1:$U$1,0)),"") -> 31 | I19: =IFERROR(INDEX(Data!$C3:$U3,MATCH($G19,Data!$B3:$B3,0),MATCH($I$16,Data!$C$1:$U$1,0)),"") -> 8 | J19: =IFERROR(INDEX(Data!$C3:$U3,MATCH($G19,Data!$B3:$B3,0),MATCH($J$16,Data!$C$1:$U$1,0)),"") -> 10 | K19: =IFERROR(INDEX(Data!$C3:$U3,MATCH($G19,Data!$B3:$B3,0),MATCH($K$16,Data!$C$1:$U$1,0)),"") -> 9 | L19: =IFERROR(INDEX(Data!$C3:$U3,MATCH($G19,Data!$B3:$B3,0),MATCH($L$16,Data!$C$1:$U$1,0)),"") -> 12
G20: Typical Sales Volume | H20: =IFERROR(INDEX(Data!$C4:$U4,MATCH($G20,Data!$B4:$B4,0),MATCH($H$16,Data!$C$1:$U$1,0)),"") -> 23.2 | I20: =IFERROR(INDEX(Data!$C4:$U4,MATCH($G20,Data!$B4:$B4,0),MATCH($I$16,Data!$C$1:$U$1,0)),"") -> 26.4 | J20: =IFERROR(INDEX(Data!$C4:$U4,MATCH($G20,Data!$B4:$B4,0),MATCH($J$16,Data!$C$1:$U$1,0)),"") -> 39 | K20: =IFERROR(INDEX(Data!$C4:$U4,MATCH($G20,Data!$B4:$B4,0),MATCH($K$16,Data!$C$1:$U$1,0)),"") -> 21 | L20: =IFERROR(INDEX(Data!$C4:$U4,MATCH($G20,Data!$B4:$B4,0),MATCH($L$16,Data!$C$1:$U$1,0)),"") -> 21.7 | M20: =IFERROR(INDEX(#REF!,MATCH($G20,#REF!,0),MATCH(#REF!,#REF!,0)),"") -> 
G21: Sales Growth | H21: =IFERROR(INDEX(Data!$C5:$U5,MATCH($G21,Data!$B5:$B5,0),MATCH($H$16,Data!$C$1:$U$1,0)),"") -> -0.054 | I21: =IFERROR(INDEX(Data!$C5:$U5,MATCH($G21,Data!$B5:$B5,0),MATCH($I$16,Data!$C$1:$U$1,0)),"") -> 0.013 | J21: =IFERROR(INDEX(Data!$C5:$U5,MATCH($G21,Data!$B5:$B5,0),MATCH($J$16,Data!$C$1:$U$1,0)),"") -> 0.013 | K21: =IFERROR(INDEX(Data!$C5:$U5,MATCH($G21,Data!$B5:$B5,0),MATCH($K$16,Data!$C$1:$U$1,0)),"") -> -0.11 | L21: =IFERROR(INDEX(Data!$C5:$U5,MATCH($G21,Data!$B5:$B5,0),MATCH($L$16,Data!$C$1:$U$1,0)),"") -> -0.048 | M21: =IFERROR(INDEX(#REF!,MATCH($G21,#REF!,0),MATCH(#REF!,#REF!,0)),"") -> 
G22: Contract Sales Revenue | H22: =IFERROR(INDEX(Data!$C6:$U6,MATCH($G22,Data!$B6:$B6,0),MATCH($H$16,Data!$C$1:$U$1,0)),"") -> 0.75 | I22: =IFERROR(INDEX(Data!$C6:$U6,MATCH($G22,Data!$B6:$B6,0),MATCH($I$16,Data!$C$1:$U$1,0)),"") -> 0.74 | J22: =IFERROR(INDEX(Data!$C6:$U6,MATCH($G22,Data!$B6:$B6,0),MATCH($J$16,Data!$C$1:$U$1,0)),"") -> 0.66 | K22: =IFERROR(INDEX(Data!$C6:$U6,MATCH($G22,Data!$B6:$B6,0),MATCH($K$16,Data!$C$1:$U$1,0)),"") -> 0.75 | L22: =IFERROR(INDEX(Data!$C6:$U6,MATCH($G22,Data!$B6:$B6,0),MATCH($L$16,Data!$C$1:$U$1,0)),"") -> 0.93 | M22: =IFERROR(INDEX(#REF!,MATCH($G22,#REF!,0),MATCH(#REF!,#REF!,0)),"") -> 
G25: Return On Investment
G26: Profit Margin (Pre-tax) | H26: =IFERROR(INDEX(Data!$C16:$U16,MATCH($G26,Data!$B16:$B16,0),MATCH($H$16,Data!$C$1:$U$1,0)),"") -> 0.05 | I26: =IFERROR(INDEX(Data!$C16:$U16,MATCH($G26,Data!$B16:$B16,0),MATCH($I$16,Data!$C$1:$U$1,0)),"") -> 0.102 | J26: =IFERROR(INDEX(Data!$C16:$U16,MATCH($G26,Data!$B16:$B16,0),MATCH($J$16,Data!$C$1:$U$1,0)),"") -> 0.055 | K26: =IFERROR(INDEX(Data!$C16:$U16,MATCH($G26,Data!$B16:$B16,0),MATCH($K$16,Data!$C$1:$U$1,0)),"") -> 0.048 | L26: =IFERROR(INDEX(Data!$C16:$U16,MATCH($G26,Data!$B16:$B16,0),MATCH($L$16,Data!$C$1:$U$1,0)),"") -> 0.038 | M26: =IFERROR(INDEX(#REF!,MATCH($G26,#REF!,0),MATCH(#REF!,#REF!,0)),"") -> 
G27: Asset Turnover | H27: =IFERROR(INDEX(Data!$C17:$U17,MATCH($G27,Data!$B17:$B17,0),MATCH($H$16,Data!$C$1:$U$1,0)),"") -> 2.4 | I27: =IFERROR(INDEX(Data!$C17:$U17,MATCH($G27,Data!$B17:$B17,0),MATCH($I$16,Data!$C$1:$U$1,0)),"") -> 2.7 | J27: =IFERROR(INDEX(Data!$C17:$U17,MATCH($G27,Data!$B17:$B17,0),MATCH($J$16,Data!$C$1:$U$1,0)),"") -> 2.5 | K27: =IFERROR(INDEX(Data!$C17:$U17,MATCH($G27,Data!$B17:$B17,0),MATCH($K$16,Data!$C$1:$U$1,0)),"") -> 2.3 | L27: =IFERROR(INDEX(Data!$C17:$U17,MATCH($G27,Data!$B17:$B17,0),MATCH($L$16,Data!$C$1:$U$1,0)),"") -> 2.4 | M27: =IFERROR(INDEX(#REF!,MATCH($G27,#REF!,0),MATCH(#REF!,#REF!,0)),"") -> 
G28: Return On Assets (Pre-tax) | H28: =IFERROR(INDEX(Data!$C18:$U18,MATCH($G28,Data!$B18:$B18,0),MATCH($H$16,Data!$C$1:$U$1,0)),"") -> 0.12 | I28: =IFERROR(INDEX(Data!$C18:$U18,MATCH($G28,Data!$B18:$B18,0),MATCH($I$16,Data!$C$1:$U$1,0)),"") -> 0.275 | J28: =IFERROR(INDEX(Data!$C18:$U18,MATCH($G28,Data!$B18:$B18,0),MATCH($J$16,Data!$C$1:$U$1,0)),"") -> 0.138 | K28: =IFERROR(INDEX(Data!$C18:$U18,MATCH($G28,Data!$B18:$B18,0),MATCH($K$16,Data!$C$1:$U$1,0)),"") -> 0.11 | L28: =IFERROR(INDEX(Data!$C18:$U18,MATCH($G28,Data!$B18:$B18,0),MATCH($L$16,Data!$C$1:$U$1,0)),"") -> 0.091 | M28: =IFERROR(INDEX(#REF!,MATCH($G28,#REF!,0),MATCH(#REF!,#REF!,0)),"") -> 
G29: Financial Leverage | H29: =IFERROR(INDEX(Data!$C19:$U19,MATCH($G29,Data!$B19:$B19,0),MATCH($H$16,Data!$C$1:$U$1,0)),"") -> 1.4 | I29: =IFERROR(INDEX(Data!$C19:$U19,MATCH($G29,Data!$B19:$B19,0),MATCH($I$16,Data!$C$1:$U$1,0)),"") -> 1.3 | J29: =IFERROR(INDEX(Data!$C19:$U19,MATCH($G29,Data!$B19:$B19,0),MATCH($J$16,Data!$C$1:$U$1,0)),"") -> 1.5 | K29: =IFERROR(INDEX(Data!$C19:$U19,MATCH($G29,Data!$B19:$B19,0),MATCH($K$16,Data!$C$1:$U$1,0)),"") -> 1.8 | L29: =IFERROR(INDEX(Data!$C19:$U19,MATCH($G29,Data!$B19:$B19,0),MATCH($L$16,Data!$C$1:$U$1,0)),"") -> 1.4 | M29: =IFERROR(INDEX(#REF!,MATCH($G29,#REF!,0),MATCH(#REF!,#REF!,0)),"") -> 
G30: Return On Net Worth (Pre-tax) | H30: =IFERROR(INDEX(Data!$C20:$U20,MATCH($G30,Data!$B20:$B20,0),MATCH($H$16,Data!$C$1:$U$1,0)),"") -> 0.168 | I30: =IFERROR(INDEX(Data!$C20:$U20,MATCH($G30,Data!$B20:$B20,0),MATCH($I$16,Data!$C$1:$U$1,0)),"") -> 0.358 | J30: =IFERROR(INDEX(Data!$C20:$U20,MATCH($G30,Data!$B20:$B20,0),MATCH($J$16,Data!$C$1:$U$1,0)),"") -> 0.207 | K30: =IFERROR(INDEX(Data!$C20:$U20,MATCH($G30,Data!$B20:$B20,0),MATCH($K$16,Data!$C$1:$U$1,0)),"") -> 0.198 | L30: =IFERROR(INDEX(Data!$C20:$U20,MATCH($G30,Data!$B20:$B20,0),MATCH($L$16,Data!$C$1:$U$1,0)),"") -> 0.127 | M30: =IFERROR(INDEX(#REF!,MATCH($G30,#REF!,0),MATCH(#REF!,#REF!,0)),"") -> 
G33: Sales by Product Category
G34: Builders Hardware | H34: =IFERROR(INDEX(Data!$C8:$U8,MATCH($G34,Data!$B8:$B8,0),MATCH($H$16,Data!$C$1:$U$1,0)),"") -> 0.421 | I34: =IFERROR(INDEX(Data!$C8:$U8,MATCH($G34,Data!$B8:$B8,0),MATCH($I$16,Data!$C$1:$U$1,0)),"") -> 0.374 | J34: =IFERROR(INDEX(Data!$C8:$U8,MATCH($G34,Data!$B8:$B8,0),MATCH($J$16,Data!$C$1:$U$1,0)),"") -> 0.402 | K34: =IFERROR(INDEX(Data!$C8:$U8,MATCH($G34,Data!$B8:$B8,0),MATCH($K$16,Data!$C$1:$U$1,0)),"") -> 0.507 | L34: =IFERROR(INDEX(Data!$C8:$U8,MATCH($G34,Data!$B8:$B8,0),MATCH($L$16,Data!$C$1:$U$1,0)),"") -> 0.373 | M34: =IFERROR(INDEX(#REF!,MATCH($G34,#REF!,0),MATCH(#REF!,#REF!,0)),"") -> 
G35: Electronic Hardware | H35: =IFERROR(INDEX(Data!$C9:$U9,MATCH($G35,Data!$B9:$B9,0),MATCH($H$16,Data!$C$1:$U$1,0)),"") -> 6.4 | I35: =IFERROR(INDEX(Data!$C9:$U9,MATCH($G35,Data!$B9:$B9,0),MATCH($I$16,Data!$C$1:$U$1,0)),"") -> 9.5 | J35: =IFERROR(INDEX(Data!$C9:$U9,MATCH($G35,Data!$B9:$B9,0),MATCH($J$16,Data!$C$1:$U$1,0)),"") -> 4.9 | K35: =IFERROR(INDEX(Data!$C9:$U9,MATCH($G35,Data!$B9:$B9,0),MATCH($K$16,Data!$C$1:$U$1,0)),"") -> 4.8 | L35: =IFERROR(INDEX(Data!$C9:$U9,MATCH($G35,Data!$B9:$B9,0),MATCH($L$16,Data!$C$1:$U$1,0)),"") -> 9 | M35: =IFERROR(INDEX(#REF!,MATCH($G35,#REF!,0),MATCH(#REF!,#REF!,0)),"") -> 
G36: Metal Doors & Related Products | H36: =IFERROR(INDEX(Data!$C10:$U10,MATCH($G36,Data!$B10:$B10,0),MATCH($H$16,Data!$C$1:$U$1,0)),"") -> 20.7 | I36: =IFERROR(INDEX(Data!$C10:$U10,MATCH($G36,Data!$B10:$B10,0),MATCH($I$16,Data!$C$1:$U$1,0)),"") -> 23.5 | J36: =IFERROR(INDEX(Data!$C10:$U10,MATCH($G36,Data!$B10:$B10,0),MATCH($J$16,Data!$C$1:$U$1,0)),"") -> 20.6 | K36: =IFERROR(INDEX(Data!$C10:$U10,MATCH($G36,Data!$B10:$B10,0),MATCH($K$16,Data!$C$1:$U$1,0)),"") -> 19.6 | L36: =IFERROR(INDEX(Data!$C10:$U10,MATCH($G36,Data!$B10:$B10,0),MATCH($L$16,Data!$C$1:$U$1,0)),"") -> 21.7 | M36: =IFERROR(INDEX(#REF!,MATCH($G36,#REF!,0),MATCH(#REF!,#REF!,0)),"") -> 
G37: Wood Doors & Frames | H37: =IFERROR(INDEX(Data!$C11:$U11,MATCH($G37,Data!$B11:$B11,0),MATCH($H$16,Data!$C$1:$U$1,0)),"") -> 17.7 | I37: =IFERROR(INDEX(Data!$C11:$U11,MATCH($G37,Data!$B11:$B11,0),MATCH($I$16,Data!$C$1:$U$1,0)),"") -> 18.1 | J37: =IFERROR(INDEX(Data!$C11:$U11,MATCH($G37,Data!$B11:$B11,0),MATCH($J$16,Data!$C$1:$U$1,0)),"") -> 16.8 | K37: =IFERROR(INDEX(Data!$C11:$U11,MATCH($G37,Data!$B11:$B11,0),MATCH($K$16,Data!$C$1:$U$1,0)),"") -> 14.7 | L37: =IFERROR(INDEX(Data!$C11:$U11,MATCH($G37,Data!$B11:$B11,0),MATCH($L$16,Data!$C$1:$U$1,0)),"") -> 20.8 | M37: =IFERROR(INDEX(#REF!,MATCH($G37,#REF!,0),MATCH(#REF!,#REF!,0)),"") -> 
G38: Toilet Accessories & Partitions | H38: =IFERROR(INDEX(Data!$C12:$U12,MATCH($G38,Data!$B12:$B12,0),MATCH($H$16,Data!$C$1:$U$1,0)),"") -> 4.9 | I38: =IFERROR(INDEX(Data!$C12:$U12,MATCH($G38,Data!$B12:$B12,0),MATCH($I$16,Data!$C$1:$U$1,0)),"") -> 4.5 | J38: =IFERROR(INDEX(Data!$C12:$U12,MATCH($G38,Data!$B12:$B12,0),MATCH($J$16,Data!$C$1:$U$1,0)),"") -> 6.7 | K38: =IFERROR(INDEX(Data!$C12:$U12,MATCH($G38,Data!$B12:$B12,0),MATCH($K$16,Data!$C$1:$U$1,0)),"") -> 3.8 | L38: =IFERROR(INDEX(Data!$C12:$U12,MATCH($G38,Data!$B12:$B12,0),MATCH($L$16,Data!$C$1:$U$1,0)),"") -> 4.1 | M38: =IFERROR(INDEX(#REF!,MATCH($G38,#REF!,0),MATCH(#REF!,#REF!,0)),"") -> 
G39: All Other Products | H39: =IFERROR(INDEX(Data!$C13:$U13,MATCH($G39,Data!$B13:$B13,0),MATCH($H$16,Data!$C$1:$U$1,0)),"") -> 8.2 | I39: =IFERROR(INDEX(Data!$C13:$U13,MATCH($G39,Data!$B13:$B13,0),MATCH($I$16,Data!$C$1:$U$1,0)),"") -> 7 | J39: =IFERROR(INDEX(Data!$C13:$U13,MATCH($G39,Data!$B13:$B13,0),MATCH($J$16,Data!$C$1:$U$1,0)),"") -> 10.8 | K39: =IFERROR(INDEX(Data!$C13:$U13,MATCH($G39,Data!$B13:$B13,0),MATCH($K$16,Data!$C$1:$U$1,0)),"") -> 6.4 | L39: =IFERROR(INDEX(Data!$C13:$U13,MATCH($G39,Data!$B13:$B13,0),MATCH($L$16,Data!$C$1:$U$1,0)),"") -> 7.1 | M39: =IFERROR(INDEX(#REF!,MATCH($G39,#REF!,0),MATCH(#REF!,#REF!,0)),"") -> 
G40: Total Sales | H40: =IFERROR(INDEX(Data!$C14:$U14,MATCH($G40,Data!$B14:$B14,0),MATCH($H$16,Data!$C$1:$U$1,0)),"") -> 1 | I40: =IFERROR(INDEX(Data!$C14:$U14,MATCH($G40,Data!$B14:$B14,0),MATCH($I$16,Data!$C$1:$U$1,0)),"") -> 1 | J40: =IFERROR(INDEX(Data!$C14:$U14,MATCH($G40,Data!$B14:$B14,0),MATCH($J$16,Data!$C$1:$U$1,0)),"") -> 1 | K40: =IFERROR(INDEX(Data!$C14:$U14,MATCH($G40,Data!$B14:$B14,0),MATCH($K$16,Data!$C$1:$U$1,0)),"") -> 1 | L40: =IFERROR(INDEX(Data!$C14:$U14,MATCH($G40,Data!$B14:$B14,0),MATCH($L$16,Data!$C$1:$U$1,0)),"") -> 1 | M40: =IFERROR(INDEX(#REF!,MATCH($G40,#REF!,0),MATCH(#REF!,#REF!,0)),"") -> 
H41: =IFERROR(INDEX(Data!$C105:$U105,MATCH($G41,Data!$B105:$B105,0),MATCH($H$16,Data!$C$1:$U$1,0)),"") ->  | I41: =IFERROR(INDEX(Data!$C105:$U105,MATCH($G41,Data!$B105:$B105,0),MATCH($I$16,Data!$C$1:$U$1,0)),"") ->  | J41: =IFERROR(INDEX(Data!$C105:$U105,MATCH($G41,Data!$B105:$B105,0),MATCH($J$16,Data!$C$1:$U$1,0)),"") ->  | K41: =IFERROR(INDEX(Data!$C105:$U105,MATCH($G41,Data!$B105:$B105,0),MATCH($K$16,Data!$C$1:$U$1,0)),"") ->  | L41: =IFERROR(INDEX(Data!$C105:$U105,MATCH($G41,Data!$B105:$B105,0),MATCH($L$16,Data!$C$1:$U$1,0)),"") ->  | M41: =IFERROR(INDEX(#REF!,MATCH($G41,#REF!,0),MATCH(#REF!,#REF!,0)),"") -> 
H42: =IFERROR(INDEX(Data!$C106:$U106,MATCH($G42,Data!$B106:$B106,0),MATCH($H$16,Data!$C$1:$U$1,0)),"") ->  | I42: =IFERROR(INDEX(Data!$C106:$U106,MATCH($G42,Data!$B106:$B106,0),MATCH($I$16,Data!$C$1:$U$1,0)),"") ->  | J42: =IFERROR(INDEX(Data!$C106:$U106,MATCH($G42,Data!$B106:$B106,0),MATCH($J$16,Data!$C$1:$U$1,0)),"") ->  | K42: =IFERROR(INDEX(Data!$C106:$U106,MATCH($G42,Data!$B106:$B106,0),MATCH($K$16,Data!$C$1:$U$1,0)),"") ->  | L42: =IFERROR(INDEX(Data!$C106:$U106,MATCH($G42,Data!$B106:$B106,0),MATCH($L$16,Data!$C$1:$U$1,0)),"") ->  | M42: =IFERROR(INDEX(#REF!,MATCH($G42,#REF!,0),MATCH(#REF!,#REF!,0)),"") -> 
H43: =IFERROR(INDEX(Data!$C107:$U107,MATCH($G43,Data!$B107:$B107,0),MATCH($H$16,Data!$C$1:$U$1,0)),"") ->  | I43: =IFERROR(INDEX(Data!$C107:$U107,MATCH($G43,Data!$B107:$B107,0),MATCH($I$16,Data!$C$1:$U$1,0)),"") ->  | J43: =IFERROR(INDEX(Data!$C107:$U107,MATCH($G43,Data!$B107:$B107,0),MATCH($J$16,Data!$C$1:$U$1,0)),"") ->  | K43: =IFERROR(INDEX(Data!$C107:$U107,MATCH($G43,Data!$B107:$B107,0),MATCH($K$16,Data!$C$1:$U$1,0)),"") ->  | L43: =IFERROR(INDEX(Data!$C107:$U107,MATCH($G43,Data!$B107:$B107,0),MATCH($L$16,Data!$C$1:$U$1,0)),"") ->  | M43: =IFERROR(INDEX(#REF!,MATCH($G43,#REF!,0),MATCH(#REF!,#REF!,0)),"") -> 
H44: =IFERROR(INDEX(Data!$C108:$U108,MATCH($G44,Data!$B108:$B108,0),MATCH($H$16,Data!$C$1:$U$1,0)),"") ->  | I44: =IFERROR(INDEX(Data!$C108:$U108,MATCH($G44,Data!$B108:$B108,0),MATCH($I$16,Data!$C$1:$U$1,0)),"") ->  | J44: =IFERROR(INDEX(Data!$C108:$U108,MATCH($G44,Data!$B108:$B108,0),MATCH($J$16,Data!$C$1:$U$1,0)),"") ->  | K44: =IFERROR(INDEX(Data!$C108:$U108,MATCH($G44,Data!$B108:$B108,0),MATCH($K$16,Data!$C$1:$U$1,0)),"") ->  | L44: =IFERROR(INDEX(Data!$C108:$U108,MATCH($G44,Data!$B108:$B108,0),MATCH($L$16,Data!$C$1:$U$1,0)),"") ->  | M44: =IFERROR(INDEX(#REF!,MATCH($G44,#REF!,0),MATCH(#REF!,#REF!,0)),"") -> 
H45: =IFERROR(INDEX(Data!$C109:$U109,MATCH($G45,Data!$B109:$B109,0),MATCH($H$16,Data!$C$1:$U$1,0)),"") ->  | I45: =IFERROR(INDEX(Data!$C109:$U109,MATCH($G45,Data!$B109:$B109,0),MATCH($I$16,Data!$C$1:$U$1,0)),"") ->  | J45: =IFERROR(INDEX(Data!$C109:$U109,MATCH($G45,Data!$B109:$B109,0),MATCH($J$16,Data!$C$1:$U$1,0)),"") ->  | K45: =IFERROR(INDEX(Data!$C109:$U109,MATCH($G45,Data!$B109:$B109,0),MATCH($K$16,Data!$C$1:$U$1,0)),"") ->  | L45: =IFERROR(INDEX(Data!$C109:$U109,MATCH($G45,Data!$B109:$B109,0),MATCH($L$16,Data!$C$1:$U$1,0)),"") ->  | M45: =IFERROR(INDEX(#REF!,MATCH($G45,#REF!,0),MATCH(#REF!,#REF!,0)),"") -> 
H46: =IFERROR(INDEX(Data!$C110:$U110,MATCH($G46,Data!$B110:$B110,0),MATCH($H$16,Data!$C$1:$U$1,0)),"") ->  | I46: =IFERROR(INDEX(Data!$C110:$U110,MATCH($G46,Data!$B110:$B110,0),MATCH($I$16,Data!$C$1:$U$1,0)),"") ->  | J46: =IFERROR(INDEX(Data!$C110:$U110,MATCH($G46,Data!$B110:$B110,0),MATCH($J$16,Data!$C$1:$U$1,0)),"") ->  | K46: =IFERROR(INDEX(Data!$C110:$U110,MATCH($G46,Data!$B110:$B110,0),MATCH($K$16,Data!$C$1:$U$1,0)),"") ->  | L46: =IFERROR(INDEX(Data!$C110:$U110,MATCH($G46,Data!$B110:$B110,0),MATCH($L$16,Data!$C$1:$U$1,0)),"") ->  | M46: =IFERROR(INDEX(#REF!,MATCH($G46,#REF!,0),MATCH(#REF!,#REF!,0)),"") -> 
G47: Income Statement
M48: =M8 -> Your Company
H49: =IF($H$8=0,"",$H$8) -> Typical DHI Distributor | I49: =IF($I$8=0,"",$I$8) -> High Profit DHI Distributor | J49: =IF($J$8=0,"",$J$8) -> Under 70% Contract Jobs | K49: =IF($K$8=0,"",$K$8) -> 70% - 80% Contract Jobs | L49: =IF($L$8=0,"",$L$8) -> Over 80% Contract Jobs
G52: Net Sales | H52: =IFERROR(INDEX(Data!$C22:$U22,MATCH($G52,Data!$B22:$B22,0),MATCH($H$16,Data!$C$1:$U$1,0)),"") -> 1 | I52: =IFERROR(INDEX(Data!$C22:$U22,MATCH($G52,Data!$B22:$B22,0),MATCH($I$16,Data!$C$1:$U$1,0)),"") -> 1 | J52: =IFERROR(INDEX(Data!$C22:$U22,MATCH($G52,Data!$B22:$B22,0),MATCH($J$16,Data!$C$1:$U$1,0)),"") -> 1 | K52: =IFERROR(INDEX(Data!$C22:$U22,MATCH($G52,Data!$B22:$B22,0),MATCH($K$16,Data!$C$1:$U$1,0)),"") -> 1 | L52: =IFERROR(INDEX(Data!$C22:$U22,MATCH($G52,Data!$B22:$B22,0),MATCH($L$16,Data!$C$1:$U$1,0)),"") -> 1 | M52: =IFERROR(INDEX(#REF!,MATCH($G52,#REF!,0),MATCH(#REF!,#REF!,0)),"") -> 
G53: Cost Of Goods Sold | H53: =IFERROR(INDEX(Data!$C23:$U23,MATCH($G53,Data!$B23:$B23,0),MATCH($H$16,Data!$C$1:$U$1,0)),"") -> 68.3 | I53: =IFERROR(INDEX(Data!$C23:$U23,MATCH($G53,Data!$B23:$B23,0),MATCH($I$16,Data!$C$1:$U$1,0)),"") -> 66.7 | J53: =IFERROR(INDEX(Data!$C23:$U23,MATCH($G53,Data!$B23:$B23,0),MATCH($J$16,Data!$C$1:$U$1,0)),"") -> 66.1 | K53: =IFERROR(INDEX(Data!$C23:$U23,MATCH($G53,Data!$B23:$B23,0),MATCH($K$16,Data!$C$1:$U$1,0)),"") -> 69.9 | L53: =IFERROR(INDEX(Data!$C23:$U23,MATCH($G53,Data!$B23:$B23,0),MATCH($L$16,Data!$C$1:$U$1,0)),"") -> 66.4 | M53: =IFERROR(INDEX(#REF!,MATCH($G53,#REF!,0),MATCH(#REF!,#REF!,0)),"") -> 
G54: Gross Margin | H54: =IFERROR(INDEX(Data!$C24:$U24,MATCH($G54,Data!$B24:$B24,0),MATCH($H$16,Data!$C$1:$U$1,0)),"") -> 31.7 | I54: =IFERROR(INDEX(Data!$C24:$U24,MATCH($G54,Data!$B24:$B24,0),MATCH($I$16,Data!$C$1:$U$1,0)),"") -> 33.3 | J54: =IFERROR(INDEX(Data!$C24:$U24,MATCH($G54,Data!$B24:$B24,0),MATCH($J$16,Data!$C$1:$U$1,0)),"") -> 33.9 | K54: =IFERROR(INDEX(Data!$C24:$U24,MATCH($G54,Data!$B24:$B24,0),MATCH($K$16,Data!$C$1:$U$1,0)),"") -> 30.1 | L54: =IFERROR(INDEX(Data!$C24:$U24,MATCH($G54,Data!$B24:$B24,0),MATCH($L$16,Data!$C$1:$U$1,0)),"") -> 33.6 | M54: =IFERROR(INDEX(#REF!,MATCH($G54,#REF!,0),MATCH(#REF!,#REF!,0)),"") -> 
G55: Operating Expenses
G56: Salaries, Wages, Commissions & Bonuses | H56: =IFERROR(INDEX(Data!$C26:$U26,MATCH($G56,Data!$B26:$B26,0),MATCH($H$16,Data!$C$1:$U$1,0)),"") -> 17.8 | I56: =IFERROR(INDEX(Data!$C26:$U26,MATCH($G56,Data!$B26:$B26,0),MATCH($I$16,Data!$C$1:$U$1,0)),"") -> 15.8 | J56: =IFERROR(INDEX(Data!$C26:$U26,MATCH($G56,Data!$B26:$B26,0),MATCH($J$16,Data!$C$1:$U$1,0)),"") -> 17.3 | K56: =IFERROR(INDEX(Data!$C26:$U26,MATCH($G56,Data!$B26:$B26,0),MATCH($K$16,Data!$C$1:$U$1,0)),"") -> 17 | L56: =IFERROR(INDEX(Data!$C26:$U26,MATCH($G56,Data!$B26:$B26,0),MATCH($L$16,Data!$C$1:$U$1,0)),"") -> 21.7 | M56: =IFERROR(INDEX(#REF!,MATCH($G56,#REF!,0),MATCH(#REF!,#REF!,0)),"") -> 
G57: Payroll Taxes | H57: =IFERROR(INDEX(Data!$C27:$U27,MATCH($G57,Data!$B27:$B27,0),MATCH($H$16,Data!$C$1:$U$1,0)),"") -> 1.4 | I57: =IFERROR(INDEX(Data!$C27:$U27,MATCH($G57,Data!$B27:$B27,0),MATCH($I$16,Data!$C$1:$U$1,0)),"") -> 1.3 | J57: =IFERROR(INDEX(Data!$C27:$U27,MATCH($G57,Data!$B27:$B27,0),MATCH($J$16,Data!$C$1:$U$1,0)),"") -> 1.3 | K57: =IFERROR(INDEX(Data!$C27:$U27,MATCH($G57,Data!$B27:$B27,0),MATCH($K$16,Data!$C$1:$U$1,0)),"") -> 1.2 | L57: =IFERROR(INDEX(Data!$C27:$U27,MATCH($G57,Data!$B27:$B27,0),MATCH($L$16,Data!$C$1:$U$1,0)),"") -> 1.8 | M57: =IFERROR(INDEX(#REF!,MATCH($G57,#REF!,0),MATCH(#REF!,#REF!,0)),"") -> 
G58: Employee Benefits | H58: =IFERROR(INDEX(Data!$C28:$U28,MATCH($G58,Data!$B28:$B28,0),MATCH($H$16,Data!$C$1:$U$1,0)),"") -> 1.8 | I58: =IFERROR(INDEX(Data!$C28:$U28,MATCH($G58,Data!$B28:$B28,0),MATCH($I$16,Data!$C$1:$U$1,0)),"") -> 1.6 | J58: =IFERROR(INDEX(Data!$C28:$U28,MATCH($G58,Data!$B28:$B28,0),MATCH($J$16,Data!$C$1:$U$1,0)),"") -> 2.1 | K58: =IFERROR(INDEX(Data!$C28:$U28,MATCH($G58,Data!$B28:$B28,0),MATCH($K$16,Data!$C$1:$U$1,0)),"") -> 2.3 | L58: =IFERROR(INDEX(Data!$C28:$U28,MATCH($G58,Data!$B28:$B28,0),MATCH($L$16,Data!$C$1:$U$1,0)),"") -> 2.1 | M58: =IFERROR(INDEX(#REF!,MATCH($G58,#REF!,0),MATCH(#REF!,#REF!,0)),"") -> 
G59: Total Payroll Expenses | H59: =IFERROR(INDEX(Data!$C29:$U29,MATCH($G59,Data!$B29:$B29,0),MATCH($H$16,Data!$C$1:$U$1,0)),"") -> 21 | I59: =IFERROR(INDEX(Data!$C29:$U29,MATCH($G59,Data!$B29:$B29,0),MATCH($I$16,Data!$C$1:$U$1,0)),"") -> 18.7 | J59: =IFERROR(INDEX(Data!$C29:$U29,MATCH($G59,Data!$B29:$B29,0),MATCH($J$16,Data!$C$1:$U$1,0)),"") -> 20.7 | K59: =IFERROR(INDEX(Data!$C29:$U29,MATCH($G59,Data!$B29:$B29,0),MATCH($K$16,Data!$C$1:$U$1,0)),"") -> 20.5 | L59: =IFERROR(INDEX(Data!$C29:$U29,MATCH($G59,Data!$B29:$B29,0),MATCH($L$16,Data!$C$1:$U$1,0)),"") -> 25.6 | M59: =IFERROR(INDEX(#REF!,MATCH($G59,#REF!,0),MATCH(#REF!,#REF!,0)),"") -> 
G60: Occupancy Expenses | H60: =IFERROR(INDEX(Data!$C30:$U30,MATCH($G60,Data!$B30:$B30,0),MATCH($H$16,Data!$C$1:$U$1,0)),"") -> 2.3 | I60: =IFERROR(INDEX(Data!$C30:$U30,MATCH($G60,Data!$B30:$B30,0),MATCH($I$16,Data!$C$1:$U$1,0)),"") -> 2.5 | J60: =IFERROR(INDEX(Data!$C30:$U30,MATCH($G60,Data!$B30:$B30,0),MATCH($J$16,Data!$C$1:$U$1,0)),"") -> 2.9 | K60: =IFERROR(INDEX(Data!$C30:$U30,MATCH($G60,Data!$B30:$B30,0),MATCH($K$16,Data!$C$1:$U$1,0)),"") -> 2.3 | L60: =IFERROR(INDEX(Data!$C30:$U30,MATCH($G60,Data!$B30:$B30,0),MATCH($L$16,Data!$C$1:$U$1,0)),"") -> 2 | M60: =IFERROR(INDEX(#REF!,MATCH($G60,#REF!,0),MATCH(#REF!,#REF!,0)),"") -> 
G61: All Other Operating Expenses | H61: =IFERROR(INDEX(Data!$C31:$U31,MATCH($G61,Data!$B31:$B31,0),MATCH($H$16,Data!$C$1:$U$1,0)),"") -> 4.5 | I61: =IFERROR(INDEX(Data!$C31:$U31,MATCH($G61,Data!$B31:$B31,0),MATCH($I$16,Data!$C$1:$U$1,0)),"") -> 2.8 | J61: =IFERROR(INDEX(Data!$C31:$U31,MATCH($G61,Data!$B31:$B31,0),MATCH($J$16,Data!$C$1:$U$1,0)),"") -> 4.5 | K61: =IFERROR(INDEX(Data!$C31:$U31,MATCH($G61,Data!$B31:$B31,0),MATCH($K$16,Data!$C$1:$U$1,0)),"") -> 4.3 | L61: =IFERROR(INDEX(Data!$C31:$U31,MATCH($G61,Data!$B31:$B31,0),MATCH($L$16,Data!$C$1:$U$1,0)),"") -> 2.4 | M61: =IFERROR(INDEX(#REF!,MATCH($G61,#REF!,0),MATCH(#REF!,#REF!,0)),"") -> 
G62: Total Operating Expenses | H62: =IFERROR(INDEX(Data!$C32:$U32,MATCH($G62,Data!$B32:$B32,0),MATCH($H$16,Data!$C$1:$U$1,0)),"") -> 27.8 | I62: =IFERROR(INDEX(Data!$C32:$U32,MATCH($G62,Data!$B32:$B32,0),MATCH($I$16,Data!$C$1:$U$1,0)),"") -> 24 | J62: =IFERROR(INDEX(Data!$C32:$U32,MATCH($G62,Data!$B32:$B32,0),MATCH($J$16,Data!$C$1:$U$1,0)),"") -> 28.1 | K62: =IFERROR(INDEX(Data!$C32:$U32,MATCH($G62,Data!$B32:$B32,0),MATCH($K$16,Data!$C$1:$U$1,0)),"") -> 27.1 | L62: =IFERROR(INDEX(Data!$C32:$U32,MATCH($G62,Data!$B32:$B32,0),MATCH($L$16,Data!$C$1:$U$1,0)),"") -> 30 | M62: =IFERROR(INDEX(#REF!,MATCH($G62,#REF!,0),MATCH(#REF!,#REF!,0)),"") -> 
G63: Operating Profit | H63: =IFERROR(INDEX(Data!$C33:$U33,MATCH($G63,Data!$B33:$B33,0),MATCH($H$16,Data!$C$1:$U$1,0)),"") -> 3.9 | I63: =IFERROR(INDEX(Data!$C33:$U33,MATCH($G63,Data!$B33:$B33,0),MATCH($I$16,Data!$C$1:$U$1,0)),"") -> 9.3 | J63: =IFERROR(INDEX(Data!$C33:$U33,MATCH($G63,Data!$B33:$B33,0),MATCH($J$16,Data!$C$1:$U$1,0)),"") -> 5.8 | K63: =IFERROR(INDEX(Data!$C33:$U33,MATCH($G63,Data!$B33:$B33,0),MATCH($K$16,Data!$C$1:$U$1,0)),"") -> 3 | L63: =IFERROR(INDEX(Data!$C33:$U33,MATCH($G63,Data!$B33:$B33,0),MATCH($L$16,Data!$C$1:$U$1,0)),"") -> 3.6 | M63: =IFERROR(INDEX(#REF!,MATCH($G63,#REF!,0),MATCH(#REF!,#REF!,0)),"") -> 
G64: Other Income | H64: =IFERROR(INDEX(Data!$C34:$U34,MATCH($G64,Data!$B34:$B34,0),MATCH($H$16,Data!$C$1:$U$1,0)),"") -> 1.3 | I64: =IFERROR(INDEX(Data!$C34:$U34,MATCH($G64,Data!$B34:$B34,0),MATCH($I$16,Data!$C$1:$U$1,0)),"") -> 1.1 | J64: =IFERROR(INDEX(Data!$C34:$U34,MATCH($G64,Data!$B34:$B34,0),MATCH($J$16,Data!$C$1:$U$1,0)),"") -> 0.2 | K64: =IFERROR(INDEX(Data!$C34:$U34,MATCH($G64,Data!$B34:$B34,0),MATCH($K$16,Data!$C$1:$U$1,0)),"") -> 2.2 | L64: =IFERROR(INDEX(Data!$C34:$U34,MATCH($G64,Data!$B34:$B34,0),MATCH($L$16,Data!$C$1:$U$1,0)),"") -> 0.3 | M64: =IFERROR(INDEX(#REF!,MATCH($G64,#REF!,0),MATCH(#REF!,#REF!,0)),"") -> 
G65: Interest Expense | H65: =IFERROR(INDEX(Data!$C35:$U35,MATCH($G65,Data!$B35:$B35,0),MATCH($H$16,Data!$C$1:$U$1,0)),"") -> 0.2 | I65: =IFERROR(INDEX(Data!$C35:$U35,MATCH($G65,Data!$B35:$B35,0),MATCH($I$16,Data!$C$1:$U$1,0)),"") -> 0.2 | J65: =IFERROR(INDEX(Data!$C35:$U35,MATCH($G65,Data!$B35:$B35,0),MATCH($J$16,Data!$C$1:$U$1,0)),"") -> 0.5 | K65: =IFERROR(INDEX(Data!$C35:$U35,MATCH($G65,Data!$B35:$B35,0),MATCH($K$16,Data!$C$1:$U$1,0)),"") -> 0.4 | L65: =IFERROR(INDEX(Data!$C35:$U35,MATCH($G65,Data!$B35:$B35,0),MATCH($L$16,Data!$C$1:$U$1,0)),"") -> 0.1 | M65: =IFERROR(INDEX(#REF!,MATCH($G65,#REF!,0),MATCH(#REF!,#REF!,0)),"") -> 
G66: Other Non-Operating Expenses | H66: =IFERROR(INDEX(Data!$C36:$U36,MATCH($G66,Data!$B36:$B36,0),MATCH($H$16,Data!$C$1:$U$1,0)),"") -> 0 | I66: =IFERROR(INDEX(Data!$C36:$U36,MATCH($G66,Data!$B36:$B36,0),MATCH($I$16,Data!$C$1:$U$1,0)),"") -> 0 | J66: =IFERROR(INDEX(Data!$C36:$U36,MATCH($G66,Data!$B36:$B36,0),MATCH($J$16,Data!$C$1:$U$1,0)),"") -> 0 | K66: =IFERROR(INDEX(Data!$C36:$U36,MATCH($G66,Data!$B36:$B36,0),MATCH($K$16,Data!$C$1:$U$1,0)),"") -> 0 | L66: =IFERROR(INDEX(Data!$C36:$U36,MATCH($G66,Data!$B36:$B36,0),MATCH($L$16,Data!$C$1:$U$1,0)),"") -> 0 | M66: =IFERROR(INDEX(#REF!,MATCH($G66,#REF!,0),MATCH(#REF!,#REF!,0)),"") -> 
G67: Profit Before Taxes | H67: =IFERROR(INDEX(Data!$C37:$U37,MATCH($G67,Data!$B37:$B37,0),MATCH($H$16,Data!$C$1:$U$1,0)),"") -> 0.05 | I67: =IFERROR(INDEX(Data!$C37:$U37,MATCH($G67,Data!$B37:$B37,0),MATCH($I$16,Data!$C$1:$U$1,0)),"") -> 0.102 | J67: =IFERROR(INDEX(Data!$C37:$U37,MATCH($G67,Data!$B37:$B37,0),MATCH($J$16,Data!$C$1:$U$1,0)),"") -> 0.055 | K67: =IFERROR(INDEX(Data!$C37:$U37,MATCH($G67,Data!$B37:$B37,0),MATCH($K$16,Data!$C$1:$U$1,0)),"") -> 0.048 | L67: =IFERROR(INDEX(Data!$C37:$U37,MATCH($G67,Data!$B37:$B37,0),MATCH($L$16,Data!$C$1:$U$1,0)),"") -> 0.038 | M67: =IFERROR(INDEX(#REF!,MATCH($G67,#REF!,0),MATCH(#REF!,#REF!,0)),"") -> 
H68: =IFERROR(INDEX(Data!$C28:$U28,MATCH($G68,Data!$B28:$B28,0),MATCH($H$16,Data!$C$1:$U$1,0)),"") ->  | I68: =IFERROR(INDEX(Data!$C28:$U28,MATCH($G68,Data!$B28:$B28,0),MATCH($I$16,Data!$C$1:$U$1,0)),"") ->  | J68: =IFERROR(INDEX(Data!$C28:$U28,MATCH($G68,Data!$B28:$B28,0),MATCH($J$16,Data!$C$1:$U$1,0)),"") ->  | K68: =IFERROR(INDEX(Data!$C28:$U28,MATCH($G68,Data!$B28:$B28,0),MATCH($K$16,Data!$C$1:$U$1,0)),"") ->  | L68: =IFERROR(INDEX(Data!$C28:$U28,MATCH($G68,Data!$B28:$B28,0),MATCH($L$16,Data!$C$1:$U$1,0)),"") ->  | M68: =IFERROR(INDEX(#REF!,MATCH($G68,#REF!,0),MATCH(#REF!,#REF!,0)),"") -> 
H69: =IFERROR(INDEX(Data!$C29:$U29,MATCH($G69,Data!$B29:$B29,0),MATCH($H$16,Data!$C$1:$U$1,0)),"") ->  | I69: =IFERROR(INDEX(Data!$C29:$U29,MATCH($G69,Data!$B29:$B29,0),MATCH($I$16,Data!$C$1:$U$1,0)),"") ->  | J69: =IFERROR(INDEX(Data!$C29:$U29,MATCH($G69,Data!$B29:$B29,0),MATCH($J$16,Data!$C$1:$U$1,0)),"") ->  | K69: =IFERROR(INDEX(Data!$C29:$U29,MATCH($G69,Data!$B29:$B29,0),MATCH($K$16,Data!$C$1:$U$1,0)),"") ->  | L69: =IFERROR(INDEX(Data!$C29:$U29,MATCH($G69,Data!$B29:$B29,0),MATCH($L$16,Data!$C$1:$U$1,0)),"") ->  | M69: =IFERROR(INDEX(#REF!,MATCH($G69,#REF!,0),MATCH(#REF!,#REF!,0)),"") -> 
G74: Operating Expenses in Relationship to Gross Profit
M75: =M8 -> Your Company
H76: =IF($H$8=0,"",$H$8) -> Typical DHI Distributor | I76: =IF($I$8=0,"",$I$8) -> High Profit DHI Distributor | J76: =IF($J$8=0,"",$J$8) -> Under 70% Contract Jobs | K76: =IF($K$8=0,"",$K$8) -> 70% - 80% Contract Jobs | L76: =IF($L$8=0,"",$L$8) -> Over 80% Contract Jobs
G80: Gross Margin | H80: =IFERROR(INDEX(Data!$C39:$U39,MATCH($G80,Data!$B39:$B39,0),MATCH($H$16,Data!$C$1:$U$1,0)),"") -> 1 | I80: =IFERROR(INDEX(Data!$C39:$U39,MATCH($G80,Data!$B39:$B39,0),MATCH($I$16,Data!$C$1:$U$1,0)),"") -> 1 | J80: =IFERROR(INDEX(Data!$C39:$U39,MATCH($G80,Data!$B39:$B39,0),MATCH($J$16,Data!$C$1:$U$1,0)),"") -> 1 | K80: =IFERROR(INDEX(Data!$C39:$U39,MATCH($G80,Data!$B39:$B39,0),MATCH($K$16,Data!$C$1:$U$1,0)),"") -> 1 | L80: =IFERROR(INDEX(Data!$C39:$U39,MATCH($G80,Data!$B39:$B39,0),MATCH($L$16,Data!$C$1:$U$1,0)),"") -> 1 | M80: =IFERROR(INDEX(#REF!,MATCH($G80,#REF!,0),MATCH(#REF!,#REF!,0)),"") -> 
G81: Operating Expenses
G82: Salaries, Wages, Commissions & Bonuses | H82: =IFERROR(INDEX(Data!$C41:$U41,MATCH($G82,Data!$B41:$B41,0),MATCH($H$16,Data!$C$1:$U$1,0)),"") -> 54.4 | I82: =IFERROR(INDEX(Data!$C41:$U41,MATCH($G82,Data!$B41:$B41,0),MATCH($I$16,Data!$C$1:$U$1,0)),"") -> 45.9 | J82: =IFERROR(INDEX(Data!$C41:$U41,MATCH($G82,Data!$B41:$B41,0),MATCH($J$16,Data!$C$1:$U$1,0)),"") -> 51.5 | K82: =IFERROR(INDEX(Data!$C41:$U41,MATCH($G82,Data!$B41:$B41,0),MATCH($K$16,Data!$C$1:$U$1,0)),"") -> 54.2 | L82: =IFERROR(INDEX(Data!$C41:$U41,MATCH($G82,Data!$B41:$B41,0),MATCH($L$16,Data!$C$1:$U$1,0)),"") -> 65 | M82: =IFERROR(INDEX(#REF!,MATCH($G82,#REF!,0),MATCH(#REF!,#REF!,0)),"") -> 
G83: Payroll Taxes | H83: =IFERROR(INDEX(Data!$C42:$U42,MATCH($G83,Data!$B42:$B42,0),MATCH($H$16,Data!$C$1:$U$1,0)),"") -> 4.2 | I83: =IFERROR(INDEX(Data!$C42:$U42,MATCH($G83,Data!$B42:$B42,0),MATCH($I$16,Data!$C$1:$U$1,0)),"") -> 3.9 | J83: =IFERROR(INDEX(Data!$C42:$U42,MATCH($G83,Data!$B42:$B42,0),MATCH($J$16,Data!$C$1:$U$1,0)),"") -> 3.9 | K83: =IFERROR(INDEX(Data!$C42:$U42,MATCH($G83,Data!$B42:$B42,0),MATCH($K$16,Data!$C$1:$U$1,0)),"") -> 4.4 | L83: =IFERROR(INDEX(Data!$C42:$U42,MATCH($G83,Data!$B42:$B42,0),MATCH($L$16,Data!$C$1:$U$1,0)),"") -> 5.1 | M83: =IFERROR(INDEX(#REF!,MATCH($G83,#REF!,0),MATCH(#REF!,#REF!,0)),"") -> 
G84: Employee Benefits | H84: =IFERROR(INDEX(Data!$C43:$U43,MATCH($G84,Data!$B43:$B43,0),MATCH($H$16,Data!$C$1:$U$1,0)),"") -> 6.3 | I84: =IFERROR(INDEX(Data!$C43:$U43,MATCH($G84,Data!$B43:$B43,0),MATCH($I$16,Data!$C$1:$U$1,0)),"") -> 5 | J84: =IFERROR(INDEX(Data!$C43:$U43,MATCH($G84,Data!$B43:$B43,0),MATCH($J$16,Data!$C$1:$U$1,0)),"") -> 6.2 | K84: =IFERROR(INDEX(Data!$C43:$U43,MATCH($G84,Data!$B43:$B43,0),MATCH($K$16,Data!$C$1:$U$1,0)),"") -> 6.6 | L84: =IFERROR(INDEX(Data!$C43:$U43,MATCH($G84,Data!$B43:$B43,0),MATCH($L$16,Data!$C$1:$U$1,0)),"") -> 6.2 | M84: =IFERROR(INDEX(#REF!,MATCH($G84,#REF!,0),MATCH(#REF!,#REF!,0)),"") -> 
G85: Total Payroll Expenses | H85: =IFERROR(INDEX(Data!$C44:$U44,MATCH($G85,Data!$B44:$B44,0),MATCH($H$16,Data!$C$1:$U$1,0)),"") -> 64.9 | I85: =IFERROR(INDEX(Data!$C44:$U44,MATCH($G85,Data!$B44:$B44,0),MATCH($I$16,Data!$C$1:$U$1,0)),"") -> 54.8 | J85: =IFERROR(INDEX(Data!$C44:$U44,MATCH($G85,Data!$B44:$B44,0),MATCH($J$16,Data!$C$1:$U$1,0)),"") -> 61.6 | K85: =IFERROR(INDEX(Data!$C44:$U44,MATCH($G85,Data!$B44:$B44,0),MATCH($K$16,Data!$C$1:$U$1,0)),"") -> 65.2 | L85: =IFERROR(INDEX(Data!$C44:$U44,MATCH($G85,Data!$B44:$B44,0),MATCH($L$16,Data!$C$1:$U$1,0)),"") -> 76.3 | M85: =IFERROR(INDEX(#REF!,MATCH($G85,#REF!,0),MATCH(#REF!,#REF!,0)),"") -> 
G86: Occupancy Expenses | H86: =IFERROR(INDEX(Data!$C45:$U45,MATCH($G86,Data!$B45:$B45,0),MATCH($H$16,Data!$C$1:$U$1,0)),"") -> 7.3 | I86: =IFERROR(INDEX(Data!$C45:$U45,MATCH($G86,Data!$B45:$B45,0),MATCH($I$16,Data!$C$1:$U$1,0)),"") -> 7.6 | J86: =IFERROR(INDEX(Data!$C45:$U45,MATCH($G86,Data!$B45:$B45,0),MATCH($J$16,Data!$C$1:$U$1,0)),"") -> 8.5 | K86: =IFERROR(INDEX(Data!$C45:$U45,MATCH($G86,Data!$B45:$B45,0),MATCH($K$16,Data!$C$1:$U$1,0)),"") -> 7.4 | L86: =IFERROR(INDEX(Data!$C45:$U45,MATCH($G86,Data!$B45:$B45,0),MATCH($L$16,Data!$C$1:$U$1,0)),"") -> 4.9 | M86: =IFERROR(INDEX(#REF!,MATCH($G86,#REF!,0),MATCH(#REF!,#REF!,0)),"") -> 
G87: All Other Operating Expenses | H87: =IFERROR(INDEX(Data!$C46:$U46,MATCH($G87,Data!$B46:$B46,0),MATCH($H$16,Data!$C$1:$U$1,0)),"") -> 12.2 | I87: =IFERROR(INDEX(Data!$C46:$U46,MATCH($G87,Data!$B46:$B46,0),MATCH($I$16,Data!$C$1:$U$1,0)),"") -> 8.5 | J87: =IFERROR(INDEX(Data!$C46:$U46,MATCH($G87,Data!$B46:$B46,0),MATCH($J$16,Data!$C$1:$U$1,0)),"") -> 12.7 | K87: =IFERROR(INDEX(Data!$C46:$U46,MATCH($G87,Data!$B46:$B46,0),MATCH($K$16,Data!$C$1:$U$1,0)),"") -> 14.7 | L87: =IFERROR(INDEX(Data!$C46:$U46,MATCH($G87,Data!$B46:$B46,0),MATCH($L$16,Data!$C$1:$U$1,0)),"") -> 6.3 | M87: =IFERROR(INDEX(#REF!,MATCH($G87,#REF!,0),MATCH(#REF!,#REF!,0)),"") -> 
G88: Total Operating Expenses | H88: =IFERROR(INDEX(Data!$C47:$U47,MATCH($G88,Data!$B47:$B47,0),MATCH($H$16,Data!$C$1:$U$1,0)),"") -> 84.4 | I88: =IFERROR(INDEX(Data!$C47:$U47,MATCH($G88,Data!$B47:$B47,0),MATCH($I$16,Data!$C$1:$U$1,0)),"") -> 70.9 | J88: =IFERROR(INDEX(Data!$C47:$U47,MATCH($G88,Data!$B47:$B47,0),MATCH($J$16,Data!$C$1:$U$1,0)),"") -> 82.8 | K88: =IFERROR(INDEX(Data!$C47:$U47,MATCH($G88,Data!$B47:$B47,0),MATCH($K$16,Data!$C$1:$U$1,0)),"") -> 87.3 | L88: =IFERROR(INDEX(Data!$C47:$U47,MATCH($G88,Data!$B47:$B47,0),MATCH($L$16,Data!$C$1:$U$1,0)),"") -> 87.5 | M88: =IFERROR(INDEX(#REF!,MATCH($G88,#REF!,0),MATCH(#REF!,#REF!,0)),"") -> 
G89: Operating Profit | H89: =IFERROR(INDEX(Data!$C48:$U48,MATCH($G89,Data!$B48:$B48,0),MATCH($H$16,Data!$C$1:$U$1,0)),"") -> 15.6 | I89: =IFERROR(INDEX(Data!$C48:$U48,MATCH($G89,Data!$B48:$B48,0),MATCH($I$16,Data!$C$1:$U$1,0)),"") -> 29.1 | J89: =IFERROR(INDEX(Data!$C48:$U48,MATCH($G89,Data!$B48:$B48,0),MATCH($J$16,Data!$C$1:$U$1,0)),"") -> 17.2 | K89: =IFERROR(INDEX(Data!$C48:$U48,MATCH($G89,Data!$B48:$B48,0),MATCH($K$16,Data!$C$1:$U$1,0)),"") -> 12.7 | L89: =IFERROR(INDEX(Data!$C48:$U48,MATCH($G89,Data!$B48:$B48,0),MATCH($L$16,Data!$C$1:$U$1,0)),"") -> 12.5 | M89: =IFERROR(INDEX(#REF!,MATCH($G89,#REF!,0),MATCH(#REF!,#REF!,0)),"") -> 
G90: Other Income | H90: =IFERROR(INDEX(Data!$C49:$U49,MATCH($G90,Data!$B49:$B49,0),MATCH($H$16,Data!$C$1:$U$1,0)),"") -> 1 | I90: =IFERROR(INDEX(Data!$C49:$U49,MATCH($G90,Data!$B49:$B49,0),MATCH($I$16,Data!$C$1:$U$1,0)),"") -> 2.2 | J90: =IFERROR(INDEX(Data!$C49:$U49,MATCH($G90,Data!$B49:$B49,0),MATCH($J$16,Data!$C$1:$U$1,0)),"") -> 1.4 | K90: =IFERROR(INDEX(Data!$C49:$U49,MATCH($G90,Data!$B49:$B49,0),MATCH($K$16,Data!$C$1:$U$1,0)),"") -> 5.7 | L90: =IFERROR(INDEX(Data!$C49:$U49,MATCH($G90,Data!$B49:$B49,0),MATCH($L$16,Data!$C$1:$U$1,0)),"") -> 0.9 | M90: =IFERROR(INDEX(#REF!,MATCH($G90,#REF!,0),MATCH(#REF!,#REF!,0)),"") -> 
G91: Interest Expense | H91: =IFERROR(INDEX(Data!$C50:$U50,MATCH($G91,Data!$B50:$B50,0),MATCH($H$16,Data!$C$1:$U$1,0)),"") -> 0.7 | I91: =IFERROR(INDEX(Data!$C50:$U50,MATCH($G91,Data!$B50:$B50,0),MATCH($I$16,Data!$C$1:$U$1,0)),"") -> 0.6 | J91: =IFERROR(INDEX(Data!$C50:$U50,MATCH($G91,Data!$B50:$B50,0),MATCH($J$16,Data!$C$1:$U$1,0)),"") -> 1.4 | K91: =IFERROR(INDEX(Data!$C50:$U50,MATCH($G91,Data!$B50:$B50,0),MATCH($K$16,Data!$C$1:$U$1,0)),"") -> 1.5 | L91: =IFERROR(INDEX(Data!$C50:$U50,MATCH($G91,Data!$B50:$B50,0),MATCH($L$16,Data!$C$1:$U$1,0)),"") -> 0.2 | M91: =IFERROR(INDEX(#REF!,MATCH($G91,#REF!,0),MATCH(#REF!,#REF!,0)),"") -> 
G92: Other Non-Operating Expenses | H92: =IFERROR(INDEX(Data!$C51:$U51,MATCH($G92,Data!$B51:$B51,0),MATCH($H$16,Data!$C$1:$U$1,0)),"") -> 0 | I92: =IFERROR(INDEX(Data!$C51:$U51,MATCH($G92,Data!$B51:$B51,0),MATCH($I$16,Data!$C$1:$U$1,0)),"") -> 0 | J92: =IFERROR(INDEX(Data!$C51:$U51,MATCH($G92,Data!$B51:$B51,0),MATCH($J$16,Data!$C$1:$U$1,0)),"") -> 0 | K92: =IFERROR(INDEX(Data!$C51:$U51,MATCH($G92,Data!$B51:$B51,0),MATCH($K$16,Data!$C$1:$U$1,0)),"") -> 0 | L92: =IFERROR(INDEX(Data!$C51:$U51,MATCH($G92,Data!$B51:$B51,0),MATCH($L$16,Data!$C$1:$U$1,0)),"") -> 0 | M92: =IFERROR(INDEX(#REF!,MATCH($G92,#REF!,0),MATCH(#REF!,#REF!,0)),"") -> 
G93: Profit Before Taxes | H93: =IFERROR(INDEX(Data!$C52:$U52,MATCH($G93,Data!$B52:$B52,0),MATCH($H$16,Data!$C$1:$U$1,0)),"") -> 0.159 | I93: =IFERROR(INDEX(Data!$C52:$U52,MATCH($G93,Data!$B52:$B52,0),MATCH($I$16,Data!$C$1:$U$1,0)),"") -> 0.307 | J93: =IFERROR(INDEX(Data!$C52:$U52,MATCH($G93,Data!$B52:$B52,0),MATCH($J$16,Data!$C$1:$U$1,0)),"") -> 0.172 | K93: =IFERROR(INDEX(Data!$C52:$U52,MATCH($G93,Data!$B52:$B52,0),MATCH($K$16,Data!$C$1:$U$1,0)),"") -> 0.169 | L93: =IFERROR(INDEX(Data!$C52:$U52,MATCH($G93,Data!$B52:$B52,0),MATCH($L$16,Data!$C$1:$U$1,0)),"") -> 0.132 | M93: =IFERROR(INDEX(#REF!,MATCH($G93,#REF!,0),MATCH(#REF!,#REF!,0)),"") -> 
G100: Balance Sheet
M101: =M8 -> Your Company
H102: =IF($H$8=0,"",$H$8) -> Typical DHI Distributor | I102: =IF($I$8=0,"",$I$8) -> High Profit DHI Distributor | J102: =IF($J$8=0,"",$J$8) -> Under 70% Contract Jobs | K102: =IF($K$8=0,"",$K$8) -> 70% - 80% Contract Jobs | L102: =IF($L$8=0,"",$L$8) -> Over 80% Contract Jobs
G105: Assets
G106: Cash & Marketable Securities | H106: =IFERROR(INDEX(Data!$C55:$U55,MATCH($G106,Data!$B55:$B55,0),MATCH($H$16,Data!$C$1:$U$1,0)),"") -> 0.071 | I106: =IFERROR(INDEX(Data!$C55:$U55,MATCH($G106,Data!$B55:$B55,0),MATCH($I$16,Data!$C$1:$U$1,0)),"") -> 0.151 | J106: =IFERROR(INDEX(Data!$C55:$U55,MATCH($G106,Data!$B55:$B55,0),MATCH($J$16,Data!$C$1:$U$1,0)),"") -> 0.012 | K106: =IFERROR(INDEX(Data!$C55:$U55,MATCH($G106,Data!$B55:$B55,0),MATCH($K$16,Data!$C$1:$U$1,0)),"") -> 0.009 | L106: =IFERROR(INDEX(Data!$C55:$U55,MATCH($G106,Data!$B55:$B55,0),MATCH($L$16,Data!$C$1:$U$1,0)),"") -> 0.231 | M106: =IFERROR(INDEX(#REF!,MATCH($G106,#REF!,0),MATCH(#REF!,#REF!,0)),"") -> 
G107: Accounts Receivable | H107: =IFERROR(INDEX(Data!$C56:$U56,MATCH($G107,Data!$B56:$B56,0),MATCH($H$16,Data!$C$1:$U$1,0)),"") -> 55.9 | I107: =IFERROR(INDEX(Data!$C56:$U56,MATCH($G107,Data!$B56:$B56,0),MATCH($I$16,Data!$C$1:$U$1,0)),"") -> 52.5 | J107: =IFERROR(INDEX(Data!$C56:$U56,MATCH($G107,Data!$B56:$B56,0),MATCH($J$16,Data!$C$1:$U$1,0)),"") -> 53.9 | K107: =IFERROR(INDEX(Data!$C56:$U56,MATCH($G107,Data!$B56:$B56,0),MATCH($K$16,Data!$C$1:$U$1,0)),"") -> 63 | L107: =IFERROR(INDEX(Data!$C56:$U56,MATCH($G107,Data!$B56:$B56,0),MATCH($L$16,Data!$C$1:$U$1,0)),"") -> 47 | M107: =IFERROR(INDEX(#REF!,MATCH($G107,#REF!,0),MATCH(#REF!,#REF!,0)),"") -> 
G108: Inventory | H108: =IFERROR(INDEX(Data!$C57:$U57,MATCH($G108,Data!$B57:$B57,0),MATCH($H$16,Data!$C$1:$U$1,0)),"") -> 22.8 | I108: =IFERROR(INDEX(Data!$C57:$U57,MATCH($G108,Data!$B57:$B57,0),MATCH($I$16,Data!$C$1:$U$1,0)),"") -> 22.8 | J108: =IFERROR(INDEX(Data!$C57:$U57,MATCH($G108,Data!$B57:$B57,0),MATCH($J$16,Data!$C$1:$U$1,0)),"") -> 34 | K108: =IFERROR(INDEX(Data!$C57:$U57,MATCH($G108,Data!$B57:$B57,0),MATCH($K$16,Data!$C$1:$U$1,0)),"") -> 22.7 | L108: =IFERROR(INDEX(Data!$C57:$U57,MATCH($G108,Data!$B57:$B57,0),MATCH($L$16,Data!$C$1:$U$1,0)),"") -> 16.1 | M108: =IFERROR(INDEX(#REF!,MATCH($G108,#REF!,0),MATCH(#REF!,#REF!,0)),"") -> 
G109: Other Current Assets | H109: =IFERROR(INDEX(Data!$C58:$U58,MATCH($G109,Data!$B58:$B58,0),MATCH($H$16,Data!$C$1:$U$1,0)),"") -> 2 | I109: =IFERROR(INDEX(Data!$C58:$U58,MATCH($G109,Data!$B58:$B58,0),MATCH($I$16,Data!$C$1:$U$1,0)),"") -> 1.5 | J109: =IFERROR(INDEX(Data!$C58:$U58,MATCH($G109,Data!$B58:$B58,0),MATCH($J$16,Data!$C$1:$U$1,0)),"") -> 2.2 | K109: =IFERROR(INDEX(Data!$C58:$U58,MATCH($G109,Data!$B58:$B58,0),MATCH($K$16,Data!$C$1:$U$1,0)),"") -> 1.2 | L109: =IFERROR(INDEX(Data!$C58:$U58,MATCH($G109,Data!$B58:$B58,0),MATCH($L$16,Data!$C$1:$U$1,0)),"") -> 1.1 | M109: =IFERROR(INDEX(#REF!,MATCH($G109,#REF!,0),MATCH(#REF!,#REF!,0)),"") -> 
G110: Total Current Assets | H110: =IFERROR(INDEX(Data!$C59:$U59,MATCH($G110,Data!$B59:$B59,0),MATCH($H$16,Data!$C$1:$U$1,0)),"") -> 87.8 | I110: =IFERROR(INDEX(Data!$C59:$U59,MATCH($G110,Data!$B59:$B59,0),MATCH($I$16,Data!$C$1:$U$1,0)),"") -> 91.9 | J110: =IFERROR(INDEX(Data!$C59:$U59,MATCH($G110,Data!$B59:$B59,0),MATCH($J$16,Data!$C$1:$U$1,0)),"") -> 91.3 | K110: =IFERROR(INDEX(Data!$C59:$U59,MATCH($G110,Data!$B59:$B59,0),MATCH($K$16,Data!$C$1:$U$1,0)),"") -> 87.8 | L110: =IFERROR(INDEX(Data!$C59:$U59,MATCH($G110,Data!$B59:$B59,0),MATCH($L$16,Data!$C$1:$U$1,0)),"") -> 87.3 | M110: =IFERROR(INDEX(#REF!,MATCH($G110,#REF!,0),MATCH(#REF!,#REF!,0)),"") -> 
G111: Fixed Assets & Noncurrent Assets | H111: =IFERROR(INDEX(Data!$C60:$U60,MATCH($G111,Data!$B60:$B60,0),MATCH($H$16,Data!$C$1:$U$1,0)),"") -> 12.2 | I111: =IFERROR(INDEX(Data!$C60:$U60,MATCH($G111,Data!$B60:$B60,0),MATCH($I$16,Data!$C$1:$U$1,0)),"") -> 8.1 | J111: =IFERROR(INDEX(Data!$C60:$U60,MATCH($G111,Data!$B60:$B60,0),MATCH($J$16,Data!$C$1:$U$1,0)),"") -> 8.7 | K111: =IFERROR(INDEX(Data!$C60:$U60,MATCH($G111,Data!$B60:$B60,0),MATCH($K$16,Data!$C$1:$U$1,0)),"") -> 12.2 | L111: =IFERROR(INDEX(Data!$C60:$U60,MATCH($G111,Data!$B60:$B60,0),MATCH($L$16,Data!$C$1:$U$1,0)),"") -> 12.7 | M111: =IFERROR(INDEX(#REF!,MATCH($G111,#REF!,0),MATCH(#REF!,#REF!,0)),"") -> 
G112: Total Assets | H112: =IFERROR(INDEX(Data!$C61:$U61,MATCH($G112,Data!$B61:$B61,0),MATCH($H$16,Data!$C$1:$U$1,0)),"") -> 1 | I112: =IFERROR(INDEX(Data!$C61:$U61,MATCH($G112,Data!$B61:$B61,0),MATCH($I$16,Data!$C$1:$U$1,0)),"") -> 1 | J112: =IFERROR(INDEX(Data!$C61:$U61,MATCH($G112,Data!$B61:$B61,0),MATCH($J$16,Data!$C$1:$U$1,0)),"") -> 1 | K112: =IFERROR(INDEX(Data!$C61:$U61,MATCH($G112,Data!$B61:$B61,0),MATCH($K$16,Data!$C$1:$U$1,0)),"") -> 1 | L112: =IFERROR(INDEX(Data!$C61:$U61,MATCH($G112,Data!$B61:$B61,0),MATCH($L$16,Data!$C$1:$U$1,0)),"") -> 1 | M112: =IFERROR(INDEX(#REF!,MATCH($G112,#REF!,0),MATCH(#REF!,#REF!,0)),"") -> 
H113: =IFERROR(INDEX(Data!$C59:$U59,MATCH($G113,Data!$B59:$B59,0),MATCH($H$16,Data!$C$1:$U$1,0)),"") ->  | I113: =IFERROR(INDEX(Data!$C59:$U59,MATCH($G113,Data!$B59:$B59,0),MATCH($I$16,Data!$C$1:$U$1,0)),"") ->  | J113: =IFERROR(INDEX(Data!$C59:$U59,MATCH($G113,Data!$B59:$B59,0),MATCH($J$16,Data!$C$1:$U$1,0)),"") ->  | K113: =IFERROR(INDEX(Data!$C59:$U59,MATCH($G113,Data!$B59:$B59,0),MATCH($K$16,Data!$C$1:$U$1,0)),"") ->  | L113: =IFERROR(INDEX(Data!$C59:$U59,MATCH($G113,Data!$B59:$B59,0),MATCH($L$16,Data!$C$1:$U$1,0)),"") ->  | M113: =IFERROR(INDEX(#REF!,MATCH($G113,#REF!,0),MATCH(#REF!,#REF!,0)),"") -> 
G114: Liabilities and Net Worth
G115: Accounts Payable | H115: =IFERROR(INDEX(Data!$C63:$U63,MATCH($G115,Data!$B63:$B63,0),MATCH($H$16,Data!$C$1:$U$1,0)),"") -> 0.08 | I115: =IFERROR(INDEX(Data!$C63:$U63,MATCH($G115,Data!$B63:$B63,0),MATCH($I$16,Data!$C$1:$U$1,0)),"") -> 0.106 | J115: =IFERROR(INDEX(Data!$C63:$U63,MATCH($G115,Data!$B63:$B63,0),MATCH($J$16,Data!$C$1:$U$1,0)),"") -> 0.087 | K115: =IFERROR(INDEX(Data!$C63:$U63,MATCH($G115,Data!$B63:$B63,0),MATCH($K$16,Data!$C$1:$U$1,0)),"") -> 0.147 | L115: =IFERROR(INDEX(Data!$C63:$U63,MATCH($G115,Data!$B63:$B63,0),MATCH($L$16,Data!$C$1:$U$1,0)),"") -> 0.064 | M115: =IFERROR(INDEX(#REF!,MATCH($G115,#REF!,0),MATCH(#REF!,#REF!,0)),"") -> 
G116: Notes Payable | H116: =IFERROR(INDEX(Data!$C64:$U64,MATCH($G116,Data!$B64:$B64,0),MATCH($H$16,Data!$C$1:$U$1,0)),"") -> 2.3 | I116: =IFERROR(INDEX(Data!$C64:$U64,MATCH($G116,Data!$B64:$B64,0),MATCH($I$16,Data!$C$1:$U$1,0)),"") -> 0.9 | J116: =IFERROR(INDEX(Data!$C64:$U64,MATCH($G116,Data!$B64:$B64,0),MATCH($J$16,Data!$C$1:$U$1,0)),"") -> 6.4 | K116: =IFERROR(INDEX(Data!$C64:$U64,MATCH($G116,Data!$B64:$B64,0),MATCH($K$16,Data!$C$1:$U$1,0)),"") -> 2.5 | L116: =IFERROR(INDEX(Data!$C64:$U64,MATCH($G116,Data!$B64:$B64,0),MATCH($L$16,Data!$C$1:$U$1,0)),"") -> 1.4 | M116: =IFERROR(INDEX(#REF!,MATCH($G116,#REF!,0),MATCH(#REF!,#REF!,0)),"") -> 
G117: Other Current Liabilities | H117: =IFERROR(INDEX(Data!$C65:$U65,MATCH($G117,Data!$B65:$B65,0),MATCH($H$16,Data!$C$1:$U$1,0)),"") -> 8.5 | I117: =IFERROR(INDEX(Data!$C65:$U65,MATCH($G117,Data!$B65:$B65,0),MATCH($I$16,Data!$C$1:$U$1,0)),"") -> 7.9 | J117: =IFERROR(INDEX(Data!$C65:$U65,MATCH($G117,Data!$B65:$B65,0),MATCH($J$16,Data!$C$1:$U$1,0)),"") -> 7.7 | K117: =IFERROR(INDEX(Data!$C65:$U65,MATCH($G117,Data!$B65:$B65,0),MATCH($K$16,Data!$C$1:$U$1,0)),"") -> 11.6 | L117: =IFERROR(INDEX(Data!$C65:$U65,MATCH($G117,Data!$B65:$B65,0),MATCH($L$16,Data!$C$1:$U$1,0)),"") -> 8 | M117: =IFERROR(INDEX(#REF!,MATCH($G117,#REF!,0),MATCH(#REF!,#REF!,0)),"") -> 
G118: Total Current Liabilities | H118: =IFERROR(INDEX(Data!$C66:$U66,MATCH($G118,Data!$B66:$B66,0),MATCH($H$16,Data!$C$1:$U$1,0)),"") -> 18.8 | I118: =IFERROR(INDEX(Data!$C66:$U66,MATCH($G118,Data!$B66:$B66,0),MATCH($I$16,Data!$C$1:$U$1,0)),"") -> 19.4 | J118: =IFERROR(INDEX(Data!$C66:$U66,MATCH($G118,Data!$B66:$B66,0),MATCH($J$16,Data!$C$1:$U$1,0)),"") -> 22.8 | K118: =IFERROR(INDEX(Data!$C66:$U66,MATCH($G118,Data!$B66:$B66,0),MATCH($K$16,Data!$C$1:$U$1,0)),"") -> 28.8 | L118: =IFERROR(INDEX(Data!$C66:$U66,MATCH($G118,Data!$B66:$B66,0),MATCH($L$16,Data!$C$1:$U$1,0)),"") -> 15.8 | M118: =IFERROR(INDEX(#REF!,MATCH($G118,#REF!,0),MATCH(#REF!,#REF!,0)),"") -> 
G119: Long Term Liabilities | H119: =IFERROR(INDEX(Data!$C67:$U67,MATCH($G119,Data!$B67:$B67,0),MATCH($H$16,Data!$C$1:$U$1,0)),"") -> 5.7 | I119: =IFERROR(INDEX(Data!$C67:$U67,MATCH($G119,Data!$B67:$B67,0),MATCH($I$16,Data!$C$1:$U$1,0)),"") -> 0.8 | J119: =IFERROR(INDEX(Data!$C67:$U67,MATCH($G119,Data!$B67:$B67,0),MATCH($J$16,Data!$C$1:$U$1,0)),"") -> 5 | K119: =IFERROR(INDEX(Data!$C67:$U67,MATCH($G119,Data!$B67:$B67,0),MATCH($K$16,Data!$C$1:$U$1,0)),"") -> 5.6 | L119: =IFERROR(INDEX(Data!$C67:$U67,MATCH($G119,Data!$B67:$B67,0),MATCH($L$16,Data!$C$1:$U$1,0)),"") -> 9.3 | M119: =IFERROR(INDEX(#REF!,MATCH($G119,#REF!,0),MATCH(#REF!,#REF!,0)),"") -> 
G120: Net Worth or Owner Equity | H120: =IFERROR(INDEX(Data!$C68:$U68,MATCH($G120,Data!$B68:$B68,0),MATCH($H$16,Data!$C$1:$U$1,0)),"") -> 75.5 | I120: =IFERROR(INDEX(Data!$C68:$U68,MATCH($G120,Data!$B68:$B68,0),MATCH($I$16,Data!$C$1:$U$1,0)),"") -> 79.8 | J120: =IFERROR(INDEX(Data!$C68:$U68,MATCH($G120,Data!$B68:$B68,0),MATCH($J$16,Data!$C$1:$U$1,0)),"") -> 72.2 | K120: =IFERROR(INDEX(Data!$C68:$U68,MATCH($G120,Data!$B68:$B68,0),MATCH($K$16,Data!$C$1:$U$1,0)),"") -> 65.6 | L120: =IFERROR(INDEX(Data!$C68:$U68,MATCH($G120,Data!$B68:$B68,0),MATCH($L$16,Data!$C$1:$U$1,0)),"") -> 74.9 | M120: =IFERROR(INDEX(#REF!,MATCH($G120,#REF!,0),MATCH(#REF!,#REF!,0)),"") -> 
G121: Total Liabilities and Net Worth | H121: =IFERROR(INDEX(Data!$C69:$U69,MATCH($G121,Data!$B69:$B69,0),MATCH($H$16,Data!$C$1:$U$1,0)),"") -> 1 | I121: =IFERROR(INDEX(Data!$C69:$U69,MATCH($G121,Data!$B69:$B69,0),MATCH($I$16,Data!$C$1:$U$1,0)),"") -> 1 | J121: =IFERROR(INDEX(Data!$C69:$U69,MATCH($G121,Data!$B69:$B69,0),MATCH($J$16,Data!$C$1:$U$1,0)),"") -> 1 | K121: =IFERROR(INDEX(Data!$C69:$U69,MATCH($G121,Data!$B69:$B69,0),MATCH($K$16,Data!$C$1:$U$1,0)),"") -> 1 | L121: =IFERROR(INDEX(Data!$C69:$U69,MATCH($G121,Data!$B69:$B69,0),MATCH($L$16,Data!$C$1:$U$1,0)),"") -> 1 | M121: =IFERROR(INDEX(#REF!,MATCH($G121,#REF!,0),MATCH(#REF!,#REF!,0)),"") -> 
H122: =IFERROR(INDEX(Data!$C60:$U60,MATCH($G122,Data!$B60:$B60,0),MATCH($H$16,Data!$C$1:$U$1,0)),"") ->  | I122: =IFERROR(INDEX(Data!$C60:$U60,MATCH($G122,Data!$B60:$B60,0),MATCH($I$16,Data!$C$1:$U$1,0)),"") ->  | J122: =IFERROR(INDEX(Data!$C60:$U60,MATCH($G122,Data!$B60:$B60,0),MATCH($J$16,Data!$C$1:$U$1,0)),"") ->  | K122: =IFERROR(INDEX(Data!$C60:$U60,MATCH($G122,Data!$B60:$B60,0),MATCH($K$16,Data!$C$1:$U$1,0)),"") ->  | L122: =IFERROR(INDEX(Data!$C60:$U60,MATCH($G122,Data!$B60:$B60,0),MATCH($L$16,Data!$C$1:$U$1,0)),"") ->  | M122: =IFERROR(INDEX(#REF!,MATCH($G122,#REF!,0),MATCH(#REF!,#REF!,0)),"") -> 
H123: =IFERROR(INDEX(Data!$C61:$U61,MATCH($G123,Data!$B61:$B61,0),MATCH($H$16,Data!$C$1:$U$1,0)),"") ->  | I123: =IFERROR(INDEX(Data!$C61:$U61,MATCH($G123,Data!$B61:$B61,0),MATCH($I$16,Data!$C$1:$U$1,0)),"") ->  | J123: =IFERROR(INDEX(Data!$C61:$U61,MATCH($G123,Data!$B61:$B61,0),MATCH($J$16,Data!$C$1:$U$1,0)),"") ->  | K123: =IFERROR(INDEX(Data!$C61:$U61,MATCH($G123,Data!$B61:$B61,0),MATCH($K$16,Data!$C$1:$U$1,0)),"") ->  | L123: =IFERROR(INDEX(Data!$C61:$U61,MATCH($G123,Data!$B61:$B61,0),MATCH($L$16,Data!$C$1:$U$1,0)),"") ->  | M123: =IFERROR(INDEX(#REF!,MATCH($G123,#REF!,0),MATCH(#REF!,#REF!,0)),"") -> 
G128: Liquidity Ratios, Debt Ratios, Asset Productivity Ratios
M129: =M8 -> Your Company
H130: =IF($H$8=0,"",$H$8) -> Typical DHI Distributor | I130: =IF($I$8=0,"",$I$8) -> High Profit DHI Distributor | J130: =IF($J$8=0,"",$J$8) -> Under 70% Contract Jobs | K130: =IF($K$8=0,"",$K$8) -> 70% - 80% Contract Jobs | L130: =IF($L$8=0,"",$L$8) -> Over 80% Contract Jobs
G133: LIQUIDITY RATIOS
G134: Current Ratio | H134: =IFERROR(INDEX(Data!$C71:$U71,MATCH($G134,Data!$B71:$B71,0),MATCH($H$16,Data!$C$1:$U$1,0)),"") -> 3.3 | I134: =IFERROR(INDEX(Data!$C71:$U71,MATCH($G134,Data!$B71:$B71,0),MATCH($I$16,Data!$C$1:$U$1,0)),"") -> 4.4 | J134: =IFERROR(INDEX(Data!$C71:$U71,MATCH($G134,Data!$B71:$B71,0),MATCH($J$16,Data!$C$1:$U$1,0)),"") -> 3.3 | K134: =IFERROR(INDEX(Data!$C71:$U71,MATCH($G134,Data!$B71:$B71,0),MATCH($K$16,Data!$C$1:$U$1,0)),"") -> 1.8 | L134: =IFERROR(INDEX(Data!$C71:$U71,MATCH($G134,Data!$B71:$B71,0),MATCH($L$16,Data!$C$1:$U$1,0)),"") -> 4.4 | M134: =IFERROR(INDEX(#REF!,MATCH($G134,#REF!,0),MATCH(#REF!,#REF!,0)),"") -> 
G135: Quick Ratio | H135: =IFERROR(INDEX(Data!$C72:$U72,MATCH($G135,Data!$B72:$B72,0),MATCH($H$16,Data!$C$1:$U$1,0)),"") -> 2.6 | I135: =IFERROR(INDEX(Data!$C72:$U72,MATCH($G135,Data!$B72:$B72,0),MATCH($I$16,Data!$C$1:$U$1,0)),"") -> 3.6 | J135: =IFERROR(INDEX(Data!$C72:$U72,MATCH($G135,Data!$B72:$B72,0),MATCH($J$16,Data!$C$1:$U$1,0)),"") -> 2 | K135: =IFERROR(INDEX(Data!$C72:$U72,MATCH($G135,Data!$B72:$B72,0),MATCH($K$16,Data!$C$1:$U$1,0)),"") -> 1.3 | L135: =IFERROR(INDEX(Data!$C72:$U72,MATCH($G135,Data!$B72:$B72,0),MATCH($L$16,Data!$C$1:$U$1,0)),"") -> 3.5 | M135: =IFERROR(INDEX(#REF!,MATCH($G135,#REF!,0),MATCH(#REF!,#REF!,0)),"") -> 
G136: Cash To Current Liabilities | H136: =IFERROR(INDEX(Data!$C73:$U73,MATCH($G136,Data!$B73:$B73,0),MATCH($H$16,Data!$C$1:$U$1,0)),"") -> 0.645 | I136: =IFERROR(INDEX(Data!$C73:$U73,MATCH($G136,Data!$B73:$B73,0),MATCH($I$16,Data!$C$1:$U$1,0)),"") -> 0.74 | J136: =IFERROR(INDEX(Data!$C73:$U73,MATCH($G136,Data!$B73:$B73,0),MATCH($J$16,Data!$C$1:$U$1,0)),"") -> 0.044 | K136: =IFERROR(INDEX(Data!$C73:$U73,MATCH($G136,Data!$B73:$B73,0),MATCH($K$16,Data!$C$1:$U$1,0)),"") -> 0.046 | L136: =IFERROR(INDEX(Data!$C73:$U73,MATCH($G136,Data!$B73:$B73,0),MATCH($L$16,Data!$C$1:$U$1,0)),"") -> 1.059 | M136: =IFERROR(INDEX(#REF!,MATCH($G136,#REF!,0),MATCH(#REF!,#REF!,0)),"") -> 
G137: CASH FLOW CYCLE
G138: Average Collection Period (Days) | H138: =IFERROR(INDEX(Data!$C92:$U92,MATCH($G138,Data!$B92:$B92,0),MATCH($H$16,Data!$C$1:$U$1,0)),"") -> 73.6 | I138: =IFERROR(INDEX(Data!$C92:$U92,MATCH($G138,Data!$B92:$B92,0),MATCH($I$16,Data!$C$1:$U$1,0)),"") -> 70.6 | J138: =IFERROR(INDEX(Data!$C92:$U92,MATCH($G138,Data!$B92:$B92,0),MATCH($J$16,Data!$C$1:$U$1,0)),"") -> 66.8 | K138: =IFERROR(INDEX(Data!$C92:$U92,MATCH($G138,Data!$B92:$B92,0),MATCH($K$16,Data!$C$1:$U$1,0)),"") -> 81 | L138: =IFERROR(INDEX(Data!$C92:$U92,MATCH($G138,Data!$B92:$B92,0),MATCH($L$16,Data!$C$1:$U$1,0)),"") -> 72.6 | M138: =IFERROR(INDEX(#REF!,MATCH($G138,#REF!,0),MATCH(#REF!,#REF!,0)),"") -> 
G139: Plus Inventory Holding Period | H139: =IFERROR(INDEX(Data!$C93:$U93,MATCH($G139,Data!$B93:$B93,0),MATCH($H$16,Data!$C$1:$U$1,0)),"") -> 56.4 | I139: =IFERROR(INDEX(Data!$C93:$U93,MATCH($G139,Data!$B93:$B93,0),MATCH($I$16,Data!$C$1:$U$1,0)),"") -> 52.2 | J139: =IFERROR(INDEX(Data!$C93:$U93,MATCH($G139,Data!$B93:$B93,0),MATCH($J$16,Data!$C$1:$U$1,0)),"") -> 71.9 | K139: =IFERROR(INDEX(Data!$C93:$U93,MATCH($G139,Data!$B93:$B93,0),MATCH($K$16,Data!$C$1:$U$1,0)),"") -> 49.1 | L139: =IFERROR(INDEX(Data!$C93:$U93,MATCH($G139,Data!$B93:$B93,0),MATCH($L$16,Data!$C$1:$U$1,0)),"") -> 37.4 | M139: =IFERROR(INDEX(#REF!,MATCH($G139,#REF!,0),MATCH(#REF!,#REF!,0)),"") -> 
G140: Gross Cash Flow | H140: =IFERROR(INDEX(Data!$C94:$U94,MATCH($G140,Data!$B94:$B94,0),MATCH($H$16,Data!$C$1:$U$1,0)),"") -> 130 | I140: =IFERROR(INDEX(Data!$C94:$U94,MATCH($G140,Data!$B94:$B94,0),MATCH($I$16,Data!$C$1:$U$1,0)),"") -> 122.8 | J140: =IFERROR(INDEX(Data!$C94:$U94,MATCH($G140,Data!$B94:$B94,0),MATCH($J$16,Data!$C$1:$U$1,0)),"") -> 138.7 | K140: =IFERROR(INDEX(Data!$C94:$U94,MATCH($G140,Data!$B94:$B94,0),MATCH($K$16,Data!$C$1:$U$1,0)),"") -> 130.1 | L140: =IFERROR(INDEX(Data!$C94:$U94,MATCH($G140,Data!$B94:$B94,0),MATCH($L$16,Data!$C$1:$U$1,0)),"") -> 110 | M140: =IFERROR(INDEX(#REF!,MATCH($G140,#REF!,0),MATCH(#REF!,#REF!,0)),"") -> 
G141: Minus A/P Payout Period | H141: =IFERROR(INDEX(Data!$C95:$U95,MATCH($G141,Data!$B95:$B95,0),MATCH($H$16,Data!$C$1:$U$1,0)),"") -> 19.1 | I141: =IFERROR(INDEX(Data!$C95:$U95,MATCH($G141,Data!$B95:$B95,0),MATCH($I$16,Data!$C$1:$U$1,0)),"") -> 19.5 | J141: =IFERROR(INDEX(Data!$C95:$U95,MATCH($G141,Data!$B95:$B95,0),MATCH($J$16,Data!$C$1:$U$1,0)),"") -> 19.9 | K141: =IFERROR(INDEX(Data!$C95:$U95,MATCH($G141,Data!$B95:$B95,0),MATCH($K$16,Data!$C$1:$U$1,0)),"") -> 28.3 | L141: =IFERROR(INDEX(Data!$C95:$U95,MATCH($G141,Data!$B95:$B95,0),MATCH($L$16,Data!$C$1:$U$1,0)),"") -> 16.1 | M141: =IFERROR(INDEX(#REF!,MATCH($G141,#REF!,0),MATCH(#REF!,#REF!,0)),"") -> 
G142: Cash Cycle | H142: =IFERROR(INDEX(Data!$C96:$U96,MATCH($G142,Data!$B96:$B96,0),MATCH($H$16,Data!$C$1:$U$1,0)),"") -> 110.9 | I142: =IFERROR(INDEX(Data!$C96:$U96,MATCH($G142,Data!$B96:$B96,0),MATCH($I$16,Data!$C$1:$U$1,0)),"") -> 103.3 | J142: =IFERROR(INDEX(Data!$C96:$U96,MATCH($G142,Data!$B96:$B96,0),MATCH($J$16,Data!$C$1:$U$1,0)),"") -> 118.8 | K142: =IFERROR(INDEX(Data!$C96:$U96,MATCH($G142,Data!$B96:$B96,0),MATCH($K$16,Data!$C$1:$U$1,0)),"") -> 101.8 | L142: =IFERROR(INDEX(Data!$C96:$U96,MATCH($G142,Data!$B96:$B96,0),MATCH($L$16,Data!$C$1:$U$1,0)),"") -> 93.9 | M142: =IFERROR(INDEX(#REF!,MATCH($G142,#REF!,0),MATCH(#REF!,#REF!,0)),"") -> 
G145: DEBT RATIOS
G146: Accounts Payable To Inventory | H146: =IFERROR(INDEX(Data!$C74:$U74,MATCH($G146,Data!$B74:$B74,0),MATCH($H$16,Data!$C$1:$U$1,0)),"") -> 0.461 | I146: =IFERROR(INDEX(Data!$C74:$U74,MATCH($G146,Data!$B74:$B74,0),MATCH($I$16,Data!$C$1:$U$1,0)),"") -> 0.554 | J146: =IFERROR(INDEX(Data!$C74:$U74,MATCH($G146,Data!$B74:$B74,0),MATCH($J$16,Data!$C$1:$U$1,0)),"") -> 0.375 | K146: =IFERROR(INDEX(Data!$C74:$U74,MATCH($G146,Data!$B74:$B74,0),MATCH($K$16,Data!$C$1:$U$1,0)),"") -> 0.464 | L146: =IFERROR(INDEX(Data!$C74:$U74,MATCH($G146,Data!$B74:$B74,0),MATCH($L$16,Data!$C$1:$U$1,0)),"") -> 0.61 | M146: =IFERROR(INDEX(#REF!,MATCH($G146,#REF!,0),MATCH(#REF!,#REF!,0)),"") -> 
G147: Accounts Payable Payout Period (Days) | H147: =IFERROR(INDEX(Data!$C75:$U75,MATCH($G147,Data!$B75:$B75,0),MATCH($H$16,Data!$C$1:$U$1,0)),"") -> 19.1 | I147: =IFERROR(INDEX(Data!$C75:$U75,MATCH($G147,Data!$B75:$B75,0),MATCH($I$16,Data!$C$1:$U$1,0)),"") -> 19.5 | J147: =IFERROR(INDEX(Data!$C75:$U75,MATCH($G147,Data!$B75:$B75,0),MATCH($J$16,Data!$C$1:$U$1,0)),"") -> 19.9 | K147: =IFERROR(INDEX(Data!$C75:$U75,MATCH($G147,Data!$B75:$B75,0),MATCH($K$16,Data!$C$1:$U$1,0)),"") -> 28.3 | L147: =IFERROR(INDEX(Data!$C75:$U75,MATCH($G147,Data!$B75:$B75,0),MATCH($L$16,Data!$C$1:$U$1,0)),"") -> 16.1 | M147: =IFERROR(INDEX(#REF!,MATCH($G147,#REF!,0),MATCH(#REF!,#REF!,0)),"") -> 
G148: Debt to Equity | H148: =IFERROR(INDEX(Data!$C76:$U76,MATCH($G148,Data!$B76:$B76,0),MATCH($H$16,Data!$C$1:$U$1,0)),"") -> 0.4 | I148: =IFERROR(INDEX(Data!$C76:$U76,MATCH($G148,Data!$B76:$B76,0),MATCH($I$16,Data!$C$1:$U$1,0)),"") -> 0.3 | J148: =IFERROR(INDEX(Data!$C76:$U76,MATCH($G148,Data!$B76:$B76,0),MATCH($J$16,Data!$C$1:$U$1,0)),"") -> 0.5 | K148: =IFERROR(INDEX(Data!$C76:$U76,MATCH($G148,Data!$B76:$B76,0),MATCH($K$16,Data!$C$1:$U$1,0)),"") -> 0.8 | L148: =IFERROR(INDEX(Data!$C76:$U76,MATCH($G148,Data!$B76:$B76,0),MATCH($L$16,Data!$C$1:$U$1,0)),"") -> 0.4 | M148: =IFERROR(INDEX(#REF!,MATCH($G148,#REF!,0),MATCH(#REF!,#REF!,0)),"") -> 
G149: EBIT | H149: =IFERROR(INDEX(Data!$C77:$U77,MATCH($G149,Data!$B77:$B77,0),MATCH($H$16,Data!$C$1:$U$1,0)),"") -> 0.053 | I149: =IFERROR(INDEX(Data!$C77:$U77,MATCH($G149,Data!$B77:$B77,0),MATCH($I$16,Data!$C$1:$U$1,0)),"") -> 0.104 | J149: =IFERROR(INDEX(Data!$C77:$U77,MATCH($G149,Data!$B77:$B77,0),MATCH($J$16,Data!$C$1:$U$1,0)),"") -> 0.061 | K149: =IFERROR(INDEX(Data!$C77:$U77,MATCH($G149,Data!$B77:$B77,0),MATCH($K$16,Data!$C$1:$U$1,0)),"") -> 0.048 | L149: =IFERROR(INDEX(Data!$C77:$U77,MATCH($G149,Data!$B77:$B77,0),MATCH($L$16,Data!$C$1:$U$1,0)),"") -> 0.038 | M149: =IFERROR(INDEX(#REF!,MATCH($G149,#REF!,0),MATCH(#REF!,#REF!,0)),"") -> 
G150: EBIT To Total Assets | H150: =IFERROR(INDEX(Data!$C78:$U78,MATCH($G150,Data!$B78:$B78,0),MATCH($H$16,Data!$C$1:$U$1,0)),"") -> 0.101 | I150: =IFERROR(INDEX(Data!$C78:$U78,MATCH($G150,Data!$B78:$B78,0),MATCH($I$16,Data!$C$1:$U$1,0)),"") -> 0.275 | J150: =IFERROR(INDEX(Data!$C78:$U78,MATCH($G150,Data!$B78:$B78,0),MATCH($J$16,Data!$C$1:$U$1,0)),"") -> 0.162 | K150: =IFERROR(INDEX(Data!$C78:$U78,MATCH($G150,Data!$B78:$B78,0),MATCH($K$16,Data!$C$1:$U$1,0)),"") -> 0.102 | L150: =IFERROR(INDEX(Data!$C78:$U78,MATCH($G150,Data!$B78:$B78,0),MATCH($L$16,Data!$C$1:$U$1,0)),"") -> 0.069 | M150: =IFERROR(INDEX(#REF!,MATCH($G150,#REF!,0),MATCH(#REF!,#REF!,0)),"") -> 
G151: Times Interest Earned | H151: =IFERROR(INDEX(Data!$C79:$U79,MATCH($G151,Data!$B79:$B79,0),MATCH($H$16,Data!$C$1:$U$1,0)),"") -> 11 | I151: =IFERROR(INDEX(Data!$C79:$U79,MATCH($G151,Data!$B79:$B79,0),MATCH($I$16,Data!$C$1:$U$1,0)),"") -> 46.1 | J151: =IFERROR(INDEX(Data!$C79:$U79,MATCH($G151,Data!$B79:$B79,0),MATCH($J$16,Data!$C$1:$U$1,0)),"") -> 11.5 | K151: =IFERROR(INDEX(Data!$C79:$U79,MATCH($G151,Data!$B79:$B79,0),MATCH($K$16,Data!$C$1:$U$1,0)),"") -> 7.5 | L151: =IFERROR(INDEX(Data!$C79:$U79,MATCH($G151,Data!$B79:$B79,0),MATCH($L$16,Data!$C$1:$U$1,0)),"") -> 15.5 | M151: =IFERROR(INDEX(#REF!,MATCH($G151,#REF!,0),MATCH(#REF!,#REF!,0)),"") -> 
G154: ASSET PRODUCTIVITY RATIOS
G155: Average Collection Period (Days) | H155: =IFERROR(INDEX(Data!$C92:$U92,MATCH($G155,Data!$B92:$B92,0),MATCH($H$16,Data!$C$1:$U$1,0)),"") -> 73.6 | I155: =IFERROR(INDEX(Data!$C92:$U92,MATCH($G155,Data!$B92:$B92,0),MATCH($I$16,Data!$C$1:$U$1,0)),"") -> 70.6 | J155: =IFERROR(INDEX(Data!$C92:$U92,MATCH($G155,Data!$B92:$B92,0),MATCH($J$16,Data!$C$1:$U$1,0)),"") -> 66.8 | K155: =IFERROR(INDEX(Data!$C92:$U92,MATCH($G155,Data!$B92:$B92,0),MATCH($K$16,Data!$C$1:$U$1,0)),"") -> 81 | L155: =IFERROR(INDEX(Data!$C92:$U92,MATCH($G155,Data!$B92:$B92,0),MATCH($L$16,Data!$C$1:$U$1,0)),"") -> 72.6 | M155: =IFERROR(INDEX(#REF!,MATCH($G155,#REF!,0),MATCH(#REF!,#REF!,0)),"") -> 
G156: Inventory Turnover | H156: =IFERROR(INDEX(Data!$C82:$U82,MATCH($G156,Data!$B82:$B82,0),MATCH($H$16,Data!$C$1:$U$1,0)),"") -> 6.5 | I156: =IFERROR(INDEX(Data!$C82:$U82,MATCH($G156,Data!$B82:$B82,0),MATCH($I$16,Data!$C$1:$U$1,0)),"") -> 7.1 | J156: =IFERROR(INDEX(Data!$C82:$U82,MATCH($G156,Data!$B82:$B82,0),MATCH($J$16,Data!$C$1:$U$1,0)),"") -> 5.1 | K156: =IFERROR(INDEX(Data!$C82:$U82,MATCH($G156,Data!$B82:$B82,0),MATCH($K$16,Data!$C$1:$U$1,0)),"") -> 7.4 | L156: =IFERROR(INDEX(Data!$C82:$U82,MATCH($G156,Data!$B82:$B82,0),MATCH($L$16,Data!$C$1:$U$1,0)),"") -> 10.2 | M156: =IFERROR(INDEX(#REF!,MATCH($G156,#REF!,0),MATCH(#REF!,#REF!,0)),"") -> 
G157: Inventory Holding Period (Days) | H157: =IFERROR(INDEX(Data!$C83:$U83,MATCH($G157,Data!$B83:$B83,0),MATCH($H$16,Data!$C$1:$U$1,0)),"") -> 56.4 | I157: =IFERROR(INDEX(Data!$C83:$U83,MATCH($G157,Data!$B83:$B83,0),MATCH($I$16,Data!$C$1:$U$1,0)),"") -> 52.2 | J157: =IFERROR(INDEX(Data!$C83:$U83,MATCH($G157,Data!$B83:$B83,0),MATCH($J$16,Data!$C$1:$U$1,0)),"") -> 71.9 | K157: =IFERROR(INDEX(Data!$C83:$U83,MATCH($G157,Data!$B83:$B83,0),MATCH($K$16,Data!$C$1:$U$1,0)),"") -> 49.1 | L157: =IFERROR(INDEX(Data!$C83:$U83,MATCH($G157,Data!$B83:$B83,0),MATCH($L$16,Data!$C$1:$U$1,0)),"") -> 37.4 | M157: =IFERROR(INDEX(#REF!,MATCH($G157,#REF!,0),MATCH(#REF!,#REF!,0)),"") -> 
G158: Sales To Inventory Ratio | H158: =IFERROR(INDEX(Data!$C84:$U84,MATCH($G158,Data!$B84:$B84,0),MATCH($H$16,Data!$C$1:$U$1,0)),"") -> 10 | I158: =IFERROR(INDEX(Data!$C84:$U84,MATCH($G158,Data!$B84:$B84,0),MATCH($I$16,Data!$C$1:$U$1,0)),"") -> 10.6 | J158: =IFERROR(INDEX(Data!$C84:$U84,MATCH($G158,Data!$B84:$B84,0),MATCH($J$16,Data!$C$1:$U$1,0)),"") -> 7.8 | K158: =IFERROR(INDEX(Data!$C84:$U84,MATCH($G158,Data!$B84:$B84,0),MATCH($K$16,Data!$C$1:$U$1,0)),"") -> 11.1 | L158: =IFERROR(INDEX(Data!$C84:$U84,MATCH($G158,Data!$B84:$B84,0),MATCH($L$16,Data!$C$1:$U$1,0)),"") -> 14.3 | M158: =IFERROR(INDEX(#REF!,MATCH($G158,#REF!,0),MATCH(#REF!,#REF!,0)),"") -> 
G159: Gross Margin Return On Inventory | H159: =IFERROR(INDEX(Data!$C85:$U85,MATCH($G159,Data!$B85:$B85,0),MATCH($H$16,Data!$C$1:$U$1,0)),"") -> 3.149 | I159: =IFERROR(INDEX(Data!$C85:$U85,MATCH($G159,Data!$B85:$B85,0),MATCH($I$16,Data!$C$1:$U$1,0)),"") -> 3.48 | J159: =IFERROR(INDEX(Data!$C85:$U85,MATCH($G159,Data!$B85:$B85,0),MATCH($J$16,Data!$C$1:$U$1,0)),"") -> 2.526 | K159: =IFERROR(INDEX(Data!$C85:$U85,MATCH($G159,Data!$B85:$B85,0),MATCH($K$16,Data!$C$1:$U$1,0)),"") -> 2.921 | L159: =IFERROR(INDEX(Data!$C85:$U85,MATCH($G159,Data!$B85:$B85,0),MATCH($L$16,Data!$C$1:$U$1,0)),"") -> 4.345 | M159: =IFERROR(INDEX(#REF!,MATCH($G159,#REF!,0),MATCH(#REF!,#REF!,0)),"") -> 
G160: Sales To Working Capital | H160: =IFERROR(INDEX(Data!$C89:$U89,MATCH($G160,Data!$B89:$B89,0),MATCH($H$16,Data!$C$1:$U$1,0)),"") -> 4 | I160: =IFERROR(INDEX(Data!$C89:$U89,MATCH($G160,Data!$B89:$B89,0),MATCH($I$16,Data!$C$1:$U$1,0)),"") -> 4.2 | J160: =IFERROR(INDEX(Data!$C89:$U89,MATCH($G160,Data!$B89:$B89,0),MATCH($J$16,Data!$C$1:$U$1,0)),"") -> 4.2 | K160: =IFERROR(INDEX(Data!$C89:$U89,MATCH($G160,Data!$B89:$B89,0),MATCH($K$16,Data!$C$1:$U$1,0)),"") -> 5.6 | L160: =IFERROR(INDEX(Data!$C89:$U89,MATCH($G160,Data!$B89:$B89,0),MATCH($L$16,Data!$C$1:$U$1,0)),"") -> 3.5 | M160: =IFERROR(INDEX(#REF!,MATCH($G160,#REF!,0),MATCH(#REF!,#REF!,0)),"") -> 
H161: =IFERROR(INDEX(Data!$C74:$U74,MATCH($G161,Data!$B74:$B74,0),MATCH($H$16,Data!$C$1:$U$1,0)),"") ->  | I161: =IFERROR(INDEX(Data!$C74:$U74,MATCH($G161,Data!$B74:$B74,0),MATCH($I$16,Data!$C$1:$U$1,0)),"") ->  | J161: =IFERROR(INDEX(Data!$C74:$U74,MATCH($G161,Data!$B74:$B74,0),MATCH($J$16,Data!$C$1:$U$1,0)),"") ->  | K161: =IFERROR(INDEX(Data!$C74:$U74,MATCH($G161,Data!$B74:$B74,0),MATCH($K$16,Data!$C$1:$U$1,0)),"") ->  | L161: =IFERROR(INDEX(Data!$C74:$U74,MATCH($G161,Data!$B74:$B74,0),MATCH($L$16,Data!$C$1:$U$1,0)),"") ->  | M161: =IFERROR(INDEX(#REF!,MATCH($G161,#REF!,0),MATCH(#REF!,#REF!,0)),"") -> 
H162: =IFERROR(INDEX(Data!$C75:$U75,MATCH($G162,Data!$B75:$B75,0),MATCH($H$16,Data!$C$1:$U$1,0)),"") ->  | I162: =IFERROR(INDEX(Data!$C75:$U75,MATCH($G162,Data!$B75:$B75,0),MATCH($I$16,Data!$C$1:$U$1,0)),"") ->  | J162: =IFERROR(INDEX(Data!$C75:$U75,MATCH($G162,Data!$B75:$B75,0),MATCH($J$16,Data!$C$1:$U$1,0)),"") ->  | K162: =IFERROR(INDEX(Data!$C75:$U75,MATCH($G162,Data!$B75:$B75,0),MATCH($K$16,Data!$C$1:$U$1,0)),"") ->  | L162: =IFERROR(INDEX(Data!$C75:$U75,MATCH($G162,Data!$B75:$B75,0),MATCH($L$16,Data!$C$1:$U$1,0)),"") ->  | M162: =IFERROR(INDEX(#REF!,MATCH($G162,#REF!,0),MATCH(#REF!,#REF!,0)),"") -> 
H163: =IFERROR(INDEX(Data!$C76:$U76,MATCH($G163,Data!$B76:$B76,0),MATCH($H$16,Data!$C$1:$U$1,0)),"") ->  | I163: =IFERROR(INDEX(Data!$C76:$U76,MATCH($G163,Data!$B76:$B76,0),MATCH($I$16,Data!$C$1:$U$1,0)),"") ->  | J163: =IFERROR(INDEX(Data!$C76:$U76,MATCH($G163,Data!$B76:$B76,0),MATCH($J$16,Data!$C$1:$U$1,0)),"") ->  | K163: =IFERROR(INDEX(Data!$C76:$U76,MATCH($G163,Data!$B76:$B76,0),MATCH($K$16,Data!$C$1:$U$1,0)),"") ->  | L163: =IFERROR(INDEX(Data!$C76:$U76,MATCH($G163,Data!$B76:$B76,0),MATCH($L$16,Data!$C$1:$U$1,0)),"") ->  | M163: =IFERROR(INDEX(#REF!,MATCH($G163,#REF!,0),MATCH(#REF!,#REF!,0)),"") -> 
H165: =IFERROR(INDEX(Data!$C91:$U91,MATCH($G165,Data!$B91:$B91,0),MATCH($H$16,Data!$C$1:$U$1,0)),"") ->  | I165: =IFERROR(INDEX(Data!$C91:$U91,MATCH($G165,Data!$B91:$B91,0),MATCH($I$16,Data!$C$1:$U$1,0)),"") ->  | J165: =IFERROR(INDEX(Data!$C91:$U91,MATCH($G165,Data!$B91:$B91,0),MATCH($J$16,Data!$C$1:$U$1,0)),"") ->  | K165: =IFERROR(INDEX(Data!$C91:$U91,MATCH($G165,Data!$B91:$B91,0),MATCH($K$16,Data!$C$1:$U$1,0)),"") ->  | L165: =IFERROR(INDEX(Data!$C91:$U91,MATCH($G165,Data!$B91:$B91,0),MATCH($L$16,Data!$C$1:$U$1,0)),"") ->  | M165: =IFERROR(INDEX(#REF!,MATCH($G165,#REF!,0),MATCH(#REF!,#REF!,0)),"") -> 
G167: Employee Productivity Ratios
M168: =M8 -> Your Company
H169: =IF($H$8=0,"",$H$8) -> Typical DHI Distributor | I169: =IF($I$8=0,"",$I$8) -> High Profit DHI Distributor | J169: =IF($J$8=0,"",$J$8) -> Under 70% Contract Jobs | K169: =IF($K$8=0,"",$K$8) -> 70% - 80% Contract Jobs | L169: =IF($L$8=0,"",$L$8) -> Over 80% Contract Jobs
G172: Employee Productivity
G173: Sales Per Employee | H173: =IFERROR(INDEX(Data!$C98:$U98,MATCH($G173,Data!$B98:$B98,0),MATCH($H$16,Data!$C$1:$U$1,0)),"") -> 355701 | I173: =IFERROR(INDEX(Data!$C98:$U98,MATCH($G173,Data!$B98:$B98,0),MATCH($I$16,Data!$C$1:$U$1,0)),"") -> 381552 | J173: =IFERROR(INDEX(Data!$C98:$U98,MATCH($G173,Data!$B98:$B98,0),MATCH($J$16,Data!$C$1:$U$1,0)),"") -> 342062 | K173: =IFERROR(INDEX(Data!$C98:$U98,MATCH($G173,Data!$B98:$B98,0),MATCH($K$16,Data!$C$1:$U$1,0)),"") -> 361346 | L173: =IFERROR(INDEX(Data!$C98:$U98,MATCH($G173,Data!$B98:$B98,0),MATCH($L$16,Data!$C$1:$U$1,0)),"") -> 391246 | M173: =IFERROR(INDEX(#REF!,MATCH($G173,#REF!,0),MATCH(#REF!,#REF!,0)),"") -> 
G174: Gross Profit Per Employee | H174: =IFERROR(INDEX(Data!$C99:$U99,MATCH($G174,Data!$B99:$B99,0),MATCH($H$16,Data!$C$1:$U$1,0)),"") -> 113933 | I174: =IFERROR(INDEX(Data!$C99:$U99,MATCH($G174,Data!$B99:$B99,0),MATCH($I$16,Data!$C$1:$U$1,0)),"") -> 124546 | J174: =IFERROR(INDEX(Data!$C99:$U99,MATCH($G174,Data!$B99:$B99,0),MATCH($J$16,Data!$C$1:$U$1,0)),"") -> 113484 | K174: =IFERROR(INDEX(Data!$C99:$U99,MATCH($G174,Data!$B99:$B99,0),MATCH($K$16,Data!$C$1:$U$1,0)),"") -> 108767 | L174: =IFERROR(INDEX(Data!$C99:$U99,MATCH($G174,Data!$B99:$B99,0),MATCH($L$16,Data!$C$1:$U$1,0)),"") -> 122139 | M174: =IFERROR(INDEX(#REF!,MATCH($G174,#REF!,0),MATCH(#REF!,#REF!,0)),"") -> 
G175: Salary Per Employee | H175: =IFERROR(INDEX(Data!$C100:$U100,MATCH($G175,Data!$B100:$B100,0),MATCH($H$16,Data!$C$1:$U$1,0)),"") -> 59357 | I175: =IFERROR(INDEX(Data!$C100:$U100,MATCH($G175,Data!$B100:$B100,0),MATCH($I$16,Data!$C$1:$U$1,0)),"") -> 58962 | J175: =IFERROR(INDEX(Data!$C100:$U100,MATCH($G175,Data!$B100:$B100,0),MATCH($J$16,Data!$C$1:$U$1,0)),"") -> 58375 | K175: =IFERROR(INDEX(Data!$C100:$U100,MATCH($G175,Data!$B100:$B100,0),MATCH($K$16,Data!$C$1:$U$1,0)),"") -> 59760 | L175: =IFERROR(INDEX(Data!$C100:$U100,MATCH($G175,Data!$B100:$B100,0),MATCH($L$16,Data!$C$1:$U$1,0)),"") -> 65794 | M175: =IFERROR(INDEX(#REF!,MATCH($G175,#REF!,0),MATCH(#REF!,#REF!,0)),"") -> 
G176: Payroll, including benefits Per Employee | H176: =IFERROR(INDEX(Data!$C101:$U101,MATCH($G176,Data!$B101:$B101,0),MATCH($H$16,Data!$C$1:$U$1,0)),"") -> 74630 | I176: =IFERROR(INDEX(Data!$C101:$U101,MATCH($G176,Data!$B101:$B101,0),MATCH($I$16,Data!$C$1:$U$1,0)),"") -> 71638 | J176: =IFERROR(INDEX(Data!$C101:$U101,MATCH($G176,Data!$B101:$B101,0),MATCH($J$16,Data!$C$1:$U$1,0)),"") -> 72785 | K176: =IFERROR(INDEX(Data!$C101:$U101,MATCH($G176,Data!$B101:$B101,0),MATCH($K$16,Data!$C$1:$U$1,0)),"") -> 72862 | L176: =IFERROR(INDEX(Data!$C101:$U101,MATCH($G176,Data!$B101:$B101,0),MATCH($L$16,Data!$C$1:$U$1,0)),"") -> 77218 | M176: =IFERROR(INDEX(#REF!,MATCH($G176,#REF!,0),MATCH(#REF!,#REF!,0)),"") -> 
G177: Personnel Productivity Ratio | H177: =IFERROR(INDEX(Data!$C102:$U102,MATCH($G177,Data!$B102:$B102,0),MATCH($H$16,Data!$C$1:$U$1,0)),"") -> 0.649 | I177: =IFERROR(INDEX(Data!$C102:$U102,MATCH($G177,Data!$B102:$B102,0),MATCH($I$16,Data!$C$1:$U$1,0)),"") -> 0.548 | J177: =IFERROR(INDEX(Data!$C102:$U102,MATCH($G177,Data!$B102:$B102,0),MATCH($J$16,Data!$C$1:$U$1,0)),"") -> 0.616 | K177: =IFERROR(INDEX(Data!$C102:$U102,MATCH($G177,Data!$B102:$B102,0),MATCH($K$16,Data!$C$1:$U$1,0)),"") -> 0.652 | L177: =IFERROR(INDEX(Data!$C102:$U102,MATCH($G177,Data!$B102:$B102,0),MATCH($L$16,Data!$C$1:$U$1,0)),"") -> 0.763 | M177: =IFERROR(INDEX(#REF!,MATCH($G177,#REF!,0),MATCH(#REF!,#REF!,0)),"") -> 
G178: Average Number of Employees | H178: =IFERROR(INDEX(Data!$C103:$U103,MATCH($G178,Data!$B103:$B103,0),MATCH($H$16,Data!$C$1:$U$1,0)),"") -> 59 | I178: =IFERROR(INDEX(Data!$C103:$U103,MATCH($G178,Data!$B103:$B103,0),MATCH($I$16,Data!$C$1:$U$1,0)),"") -> 61 | J178: =IFERROR(INDEX(Data!$C103:$U103,MATCH($G178,Data!$B103:$B103,0),MATCH($J$16,Data!$C$1:$U$1,0)),"") -> 123 | K178: =IFERROR(INDEX(Data!$C103:$U103,MATCH($G178,Data!$B103:$B103,0),MATCH($K$16,Data!$C$1:$U$1,0)),"") -> 68 | L178: =IFERROR(INDEX(Data!$C103:$U103,MATCH($G178,Data!$B103:$B103,0),MATCH($L$16,Data!$C$1:$U$1,0)),"") -> 48 | M178: =IFERROR(INDEX(#REF!,MATCH($G178,#REF!,0),MATCH(#REF!,#REF!,0)),"") -> 

Sheet Data Graphs
J8: Typical DHI Distributor | K8: High Profit DHI Distributor | L8: Under 70% Contract Jobs | M8: 70% - 80% Contract Jobs | N8: Over 80% Contract Jobs | O8: Your Company
J17: =J8 -> Typical DHI Distributor | K17: High Profit DHI Distributor | L17: Under 70% Contract Jobs | M17: 70% - 80% Contract Jobs | N17: Over 80% Contract Jobs | O17: ='Graph Ref'!V1 -> 
J18: =IFERROR(INDEX('Graph Ref'!$B$3:$T$25,MATCH('Data Graphs'!$G$19,'Graph Ref'!$A$3:$A$25,0),MATCH('Data Graphs'!J$8,'Graph Ref'!$B$1:$T$1,0)),"") -> 5 | K18: =IFERROR(INDEX('Graph Ref'!$B$3:$T$25,MATCH('Data Graphs'!$G$19,'Graph Ref'!$A$3:$A$25,0),MATCH('Data Graphs'!K$8,'Graph Ref'!$B$1:$T$1,0)),"") -> 10.2 | L18: =IFERROR(INDEX('Graph Ref'!$B$3:$T$25,MATCH('Data Graphs'!$G$19,'Graph Ref'!$A$3:$A$25,0),MATCH('Data Graphs'!L$8,'Graph Ref'!$B$1:$T$1,0)),"") -> 5.5 | M18: =IFERROR(INDEX('Graph Ref'!$B$3:$T$25,MATCH('Data Graphs'!$G$19,'Graph Ref'!$A$3:$A$25,0),MATCH('Data Graphs'!M$8,'Graph Ref'!$B$1:$T$1,0)),"") -> 4.8 | N18: =IFERROR(INDEX('Graph Ref'!$B$3:$T$25,MATCH('Data Graphs'!$G$19,'Graph Ref'!$A$3:$A$25,0),MATCH('Data Graphs'!N$8,'Graph Ref'!$B$1:$T$1,0)),"") -> 3.8 | O18: =IFERROR(INDEX('Graph Ref'!$V$3:$V$25,MATCH('Data Graphs'!$G$19,'Graph Ref'!$A$3:$A$25,0),MATCH('Data Graphs'!O$17,'Graph Ref'!$V$1:$V$1,0)),"") -> 
G19: Profit Margin (%)
J40: =J8 -> Typical DHI Distributor | K40: High Profit DHI Distributor | L40: Under 70% Contract Jobs | M40: 70% - 80% Contract Jobs | N40: Over 80% Contract Jobs | O40: ='Graph Ref'!V1 -> 
J41: =IFERROR(INDEX('Graph Ref'!$B$27:$T$52,MATCH('Data Graphs'!$G$42,'Graph Ref'!$A$27:$A$52,0),MATCH('Data Graphs'!J$8,'Graph Ref'!$B$1:$T$1,0))/100,"") -> 0.683 | K41: =IFERROR(INDEX('Graph Ref'!$B$27:$T$52,MATCH('Data Graphs'!$G$42,'Graph Ref'!$A$27:$A$52,0),MATCH('Data Graphs'!K$8,'Graph Ref'!$B$1:$T$1,0))/100,"") -> 0.667 | L41: =IFERROR(INDEX('Graph Ref'!$B$27:$T$52,MATCH('Data Graphs'!$G$42,'Graph Ref'!$A$27:$A$52,0),MATCH('Data Graphs'!L$8,'Graph Ref'!$B$1:$T$1,0))/100,"") -> 0.661 | M41: =IFERROR(INDEX('Graph Ref'!$B$27:$T$52,MATCH('Data Graphs'!$G$42,'Graph Ref'!$A$27:$A$52,0),MATCH('Data Graphs'!M$8,'Graph Ref'!$B$1:$T$1,0))/100,"") -> 0.699 | N41: =IFERROR(INDEX('Graph Ref'!$B$27:$T$52,MATCH('Data Graphs'!$G$42,'Graph Ref'!$A$27:$A$52,0),MATCH('Data Graphs'!N$8,'Graph Ref'!$B$1:$T$1,0))/100,"") -> 0.664 | O41: =IFERROR(INDEX('Graph Ref'!$V$27:$V$52,MATCH('Data Graphs'!$G$42,'Graph Ref'!$A$27:$A$52,0),MATCH('Data Graphs'!O$40,'Graph Ref'!$V$1:$V$1,0))/100,"") -> 
G42: Cost Of Goods Sold
J63: =J8 -> Typical DHI Distributor | K63: High Profit DHI Distributor | L63: Under 70% Contract Jobs | M63: 70% - 80% Contract Jobs | N63: Over 80% Contract Jobs | O63: ='Graph Ref'!V1 -> 
J64: =IFERROR(INDEX('Graph Ref'!$B$54:$T$65,MATCH('Data Graphs'!$G$65,'Graph Ref'!$A$54:$A$65,0),MATCH('Data Graphs'!J$8,'Graph Ref'!$B$1:$T$1,0))/100,"") -> 0.071 | K64: =IFERROR(INDEX('Graph Ref'!$B$54:$T$65,MATCH('Data Graphs'!$G$65,'Graph Ref'!$A$54:$A$65,0),MATCH('Data Graphs'!K$8,'Graph Ref'!$B$1:$T$1,0))/100,"") -> 0.151 | L64: =IFERROR(INDEX('Graph Ref'!$B$54:$T$65,MATCH('Data Graphs'!$G$65,'Graph Ref'!$A$54:$A$65,0),MATCH('Data Graphs'!L$8,'Graph Ref'!$B$1:$T$1,0))/100,"") -> 0.012 | M64: =IFERROR(INDEX('Graph Ref'!$B$54:$T$65,MATCH('Data Graphs'!$G$65,'Graph Ref'!$A$54:$A$65,0),MATCH('Data Graphs'!M$8,'Graph Ref'!$B$1:$T$1,0))/100,"") -> 0.009 | N64: =IFERROR(INDEX('Graph Ref'!$B$54:$T$65,MATCH('Data Graphs'!$G$65,'Graph Ref'!$A$54:$A$65,0),MATCH('Data Graphs'!N$8,'Graph Ref'!$B$1:$T$1,0))/100,"") -> 0.231 | O64: =IFERROR(INDEX('Graph Ref'!$V$54:$V$65,MATCH('Data Graphs'!$G$65,'Graph Ref'!$A$54:$A$65,0),MATCH('Data Graphs'!O$63,'Graph Ref'!$V$1:$V$1,0))/100,"") -> 
G65: Cash & Marketable Securities

Sheet Trends
G14: Trends: Return On Investment / Product Mix
H15: =I15-1 -> 2016 | I15: 2017 | J15: 2018 | K15: =L15-1 -> 2019 | L15: 2020
G16: Number of Firms Reporting | H16: =Data!AD3 -> 45 | I16: =Data!AE3 -> 38 | J16: =Data!AF3 -> 34 | K16: =Data!AG3 -> 25 | L16: =Data!AH3 -> 31
G17: Typical Sales Volume | H17: =Data!AD4 -> 19.6 | I17: =Data!AE4 -> 18.7 | J17: =Data!AF4 -> 16.6 | K17: =Data!AG4 -> 23.6 | L17: =Data!AH4 -> 23.2
G18: Sales Growth | H18: =Data!AD5 -> 0.049 | I18: =Data!AE5 -> 0.057 | J18: =Data!AF5 -> 0.124 | K18: =Data!AG5 -> 0.058 | L18: =Data!AH5 -> -0.054
G19: Contract Sales Revenue | H19: =Data!AD6 -> 0.68 | I19: =Data!AE6 -> 0.705 | J19: =Data!AF6 -> 0.725 | K19: =Data!AG6 -> 0.7 | L19: =Data!AH6 -> 0.75
G20: Sales by Product Category
G21: Builders Hardware | H21: =Data!AD8 -> 0.451 | I21: =Data!AE8 -> 0.445 | J21: =Data!AF8 -> 0.435 | K21: =Data!AG8 -> 0.438 | L21: =Data!AH8 -> 0.421
G22: Electronic Hardware | H22: =Data!AD9 -> 6.2 | I22: =Data!AE9 -> 6.7 | J22: =Data!AF9 -> 6.3 | K22: =Data!AG9 -> 5.4 | L22: =Data!AH9 -> 6.4
G23: Metal Doors & Related Products | H23: =Data!AD10 -> 20 | I23: =Data!AE10 -> 19.8 | J23: =Data!AF10 -> 19.5 | K23: =Data!AG10 -> 19.4 | L23: =Data!AH10 -> 20.7
G24: Wood Doors & Frames | H24: =Data!AD11 -> 16.3 | I24: =Data!AE11 -> 15.6 | J24: =Data!AF11 -> 17.1 | K24: =Data!AG11 -> 16.8 | L24: =Data!AH11 -> 17.7
G25: Toilet Accessories & Partitions | H25: =Data!AD12 -> 4.4 | I25: =Data!AE12 -> 3.8 | J25: =Data!AF12 -> 3.2 | K25: =Data!AG12 -> 4.5 | L25: =Data!AH12 -> 4.9
G26: All Other Products | H26: =Data!AD13 -> 8 | I26: =Data!AE13 -> 9.6 | J26: =Data!AF13 -> 10.4 | K26: =Data!AG13 -> 10.1 | L26: =Data!AH13 -> 8.2
G27: Total Sales | H27: =Data!AD14 -> 1 | I27: =Data!AE14 -> 1 | J27: =Data!AF14 -> 1 | K27: =Data!AG14 -> 1 | L27: =Data!AH14 -> 1
G28: STRATEGIC PROFIT MODEL RATIOS
G29: Profit Margin (Pre-tax) | H29: =Data!AD16 -> 0.05 | I29: =Data!AE16 -> 0.04 | J29: =Data!AF16 -> 0.043 | K29: =Data!AG16 -> 0.055 | L29: =Data!AH16 -> 0.05
G30: Asset Turnover | H30: =Data!AD17 -> 2.8 | I30: =Data!AE17 -> 2.7 | J30: =Data!AF17 -> 2.7 | K30: =Data!AG17 -> 2.5 | L30: =Data!AH17 -> 2.4
G31: Return On Assets (Pre-tax) | H31: =Data!AD18 -> 0.14 | I31: =Data!AE18 -> 0.108 | J31: =Data!AF18 -> 0.116 | K31: =Data!AG18 -> 0.138 | L31: =Data!AH18 -> 0.12
G32: Financial Leverage | H32: =Data!AD19 -> 1.6 | I32: =Data!AE19 -> 1.6 | J32: =Data!AF19 -> 1.6 | K32: =Data!AG19 -> 1.5 | L32: =Data!AH19 -> 1.4
G33: Return On Net Worth (Pre-tax) | H33: =Data!AD20 -> 0.224 | I33: =Data!AE20 -> 0.173 | J33: =Data!AF20 -> 0.186 | K33: =Data!AG20 -> 0.207 | L33: =Data!AH20 -> 0.168
G40: Trends: Income Statement
H41: =H$15 -> 2016 | I41: =I$15 -> 2017 | J41: =J$15 -> 2018 | K41: =K$15 -> 2019 | L41: =L$15 -> 2020
G42: Net Sales | H42: =Data!AD22 -> 1 | I42: =Data!AE22 -> 1 | J42: =Data!AF22 -> 1 | K42: =Data!AG22 -> 1 | L42: =Data!AH22 -> 1
G43: Cost Of Goods Sold | H43: =Data!AD23 -> 67.7 | I43: =Data!AE23 -> 68.6 | J43: =Data!AF23 -> 67.1 | K43: =Data!AG23 -> 67.6 | L43: =Data!AH23 -> 68.3
G44: Gross Margin | H44: =Data!AD24 -> 32.3 | I44: =Data!AE24 -> 31.4 | J44: =Data!AF24 -> 32.9 | K44: =Data!AG24 -> 32.4 | L44: =Data!AH24 -> 31.7
G45: Operating Expenses
G46: Salaries, Wages, Commissions & Bonuses | H46: =Data!AD26 -> 17 | I46: =Data!AE26 -> 17.1 | J46: =Data!AF26 -> 18.5 | K46: =Data!AG26 -> 16.9 | L46: =Data!AH26 -> 17.8
G47: Payroll Taxes | H47: =Data!AD27 -> 1.4 | I47: =Data!AE27 -> 1.4 | J47: =Data!AF27 -> 1.4 | K47: =Data!AG27 -> 1.3 | L47: =Data!AH27 -> 1.4
G48: Employee Benefits | H48: =Data!AD28 -> 2.2 | I48: =Data!AE28 -> 1.8 | J48: =Data!AF28 -> 1.9 | K48: =Data!AG28 -> 1.6 | L48: =Data!AH28 -> 1.8
G49: Total Payroll Expenses | H49: =Data!AD29 -> 20.6 | I49: =Data!AE29 -> 20.3 | J49: =Data!AF29 -> 21.8 | K49: =Data!AG29 -> 19.8 | L49: =Data!AH29 -> 21
G50: Occupancy Expenses | H50: =Data!AD30 -> 2.2 | I50: =Data!AE30 -> 2.3 | J50: =Data!AF30 -> 2.4 | K50: =Data!AG30 -> 2.2 | L50: =Data!AH30 -> 2.3
G51: All Other Operating Expenses | H51: =Data!AD31 -> 4.2 | I51: =Data!AE31 -> 4.5 | J51: =Data!AF31 -> 4.7 | K51: =Data!AG31 -> 4.3 | L51: =Data!AH31 -> 4.5
G52: Total Operating Expenses | H52: =Data!AD32 -> 27 | I52: =Data!AE32 -> 27.1 | J52: =Data!AF32 -> 28.9 | K52: =Data!AG32 -> 26.3 | L52: =Data!AH32 -> 27.8
G53: Operating Profit | H53: =Data!AD33 -> 5.3 | I53: =Data!AE33 -> 4.3 | J53: =Data!AF33 -> 4 | K53: =Data!AG33 -> 6.1 | L53: =Data!AH33 -> 3.9
G54: Other Income | H54: =Data!AD34 -> 0 | I54: =Data!AE34 -> 0.1 | J54: =Data!AF34 -> 0.5 | K54: =Data!AG34 -> 0.1 | L54: =Data!AH34 -> 1.3
G55: Interest Expense | H55: =Data!AD35 -> 0.3 | I55: =Data!AE35 -> 0.2 | J55: =Data!AF35 -> 0.2 | K55: =Data!AG35 -> 0.3 | L55: =Data!AH35 -> 0.2
G56: Other Non-Operating Expenses | H56: =Data!AD36 -> 0 | I56: =Data!AE36 -> 0.2 | J56: =Data!AF36 -> 0 | K56: =Data!AG36 -> 0.4 | L56: =Data!AH36 -> 0
G57: Profit Before Taxes | H57: =Data!AD37 -> 0.05 | I57: =Data!AE37 -> 0.04 | J57: =Data!AF37 -> 0.043 | K57: =Data!AG37 -> 0.055 | L57: =Data!AH37 -> 0.05
G64: Trends: Balance Sheet
H65: =H$15 -> 2016 | I65: =I$15 -> 2017 | J65: =J$15 -> 2018 | K65: =K$15 -> 2019 | L65: =L$15 -> 2020
G66: Assets
G67: Cash & Marketable Securities | H67: =Data!AD55 -> 0.041 | I67: =Data!AE55 -> 0.014 | J67: =Data!AF55 -> 0.073 | K67: =Data!AG55 -> 0.067 | L67: =Data!AH55 -> 0.071
G68: Accounts Receivable | H68: =Data!AD56 -> 55.6 | I68: =Data!AE56 -> 60.8 | J68: =Data!AF56 -> 55.4 | K68: =Data!AG56 -> 53.7 | L68: =Data!AH56 -> 55.9
G69: Inventory | H69: =Data!AD57 -> 28.7 | I69: =Data!AE57 -> 26.3 | J69: =Data!AF57 -> 22.9 | K69: =Data!AG57 -> 24.1 | L69: =Data!AH57 -> 22.8
G70: Other Current Assets | H70: =Data!AD58 -> 1.7 | I70: =Data!AE58 -> 1.5 | J70: =Data!AF58 -> 1.7 | K70: =Data!AG58 -> 2.5 | L70: =Data!AH58 -> 2
G71: Total Current Assets | H71: =Data!AD59 -> 90.1 | I71: =Data!AE59 -> 90 | J71: =Data!AF59 -> 87.3 | K71: =Data!AG59 -> 87 | L71: =Data!AH59 -> 87.8
G72: Fixed Assets & Noncurrent Assets | H72: =Data!AD60 -> 9.9 | I72: =Data!AE60 -> 10 | J72: =Data!AF60 -> 12.7 | K72: =Data!AG60 -> 13 | L72: =Data!AH60 -> 12.2
G73: Total Assets | H73: =Data!AD61 -> 1 | I73: =Data!AE61 -> 1 | J73: =Data!AF61 -> 1 | K73: =Data!AG61 -> 1 | L73: =Data!AH61 -> 1
G75: Liabilities and Net Worth
G76: Accounts Payable | H76: =Data!AD63 -> 0.133 | I76: =Data!AE63 -> 0.126 | J76: =Data!AF63 -> 0.11 | K76: =Data!AG63 -> 0.105 | L76: =Data!AH63 -> 0.08
G77: Notes Payable | H77: =Data!AD64 -> 8.7 | I77: =Data!AE64 -> 5.9 | J77: =Data!AF64 -> 2.4 | K77: =Data!AG64 -> 12.9 | L77: =Data!AH64 -> 2.3
G78: Other Current Liabilities | H78: =Data!AD65 -> 9.5 | I78: =Data!AE65 -> 8.2 | J78: =Data!AF65 -> 17.7 | K78: =Data!AG65 -> 5.8 | L78: =Data!AH65 -> 8.5
G79: Total Current Liabilities | H79: =Data!AD66 -> 31.5 | I79: =Data!AE66 -> 26.7 | J79: =Data!AF66 -> 31.1 | K79: =Data!AG66 -> 29.2 | L79: =Data!AH66 -> 18.8
G80: Long Term Liabilities | H80: =Data!AD67 -> 4.8 | I80: =Data!AE67 -> 1.8 | J80: =Data!AF67 -> 2.1 | K80: =Data!AG67 -> 4.6 | L80: =Data!AH67 -> 5.7
G81: Net Worth or Owner Equity | H81: =Data!AD68 -> 63.7 | I81: =Data!AE68 -> 71.5 | J81: =Data!AF68 -> 66.8 | K81: =Data!AG68 -> 66.2 | L81: =Data!AH68 -> 75.5
G82: Total Liabilities and Net Worth | H82: =Data!AD69 -> 1 | I82: =Data!AE69 -> 1 | J82: =Data!AF69 -> 1 | K82: =Data!AG69 -> 1 | L82: =Data!AH69 -> 1
G89: Trends: Liquidity, Debt, & Asset Productivity Ratios
H90: =H$15 -> 2016 | I90: =I$15 -> 2017 | J90: =J$15 -> 2018 | K90: =K$15 -> 2019 | L90: =L$15 -> 2020
G91: LIQUIDITY RATIOS
G92: Current Ratio | H92: =Data!AD71 -> 3.1 | I92: =Data!AE71 -> 2.9 | J92: =Data!AF71 -> 3.1 | K92: =Data!AG71 -> 2.9 | L92: =Data!AH71 -> 3.3
G93: Quick Ratio | H93: =Data!AD72 -> 2.1 | I93: =Data!AE72 -> 1.7 | J93: =Data!AF72 -> 2 | K93: =Data!AG72 -> 1.9 | L93: =Data!AH72 -> 2.6
G94: Cash To Current Liabilities | H94: =Data!AD73 -> 0.111 | I94: =Data!AE73 -> 0.101 | J94: =Data!AF73 -> 0.292 | K94: =Data!AG73 -> 0.339 | L94: =Data!AH73 -> 0.645
G95: CASH FLOW CYCLE
G96: Average Collection Period (Days) | H96: =Data!AD92 -> 66.5 | I96: =Data!AE92 -> 69.5 | J96: =Data!AF92 -> 68.3 | K96: =Data!AG92 -> 66.4 | L96: =Data!AH92 -> 73.6
G97: Plus Inventory Holding Period | H97: =Data!AD93 -> 54.2 | I97: =Data!AE93 -> 53.9 | J97: =Data!AF93 -> 46.4 | K97: =Data!AG93 -> 56.6 | L97: =Data!AH93 -> 56.4
G98: Gross Cash Flow | H98: =Data!AD94 -> 120.7 | I98: =Data!AE94 -> 123.4 | J98: =Data!AF94 -> 114.7 | K98: =Data!AG94 -> 123 | L98: =Data!AH94 -> 130
G99: Minus A/P Payout Period | H99: =Data!AD95 -> 17.9 | I99: =Data!AE95 -> 22.9 | J99: =Data!AF95 -> 20.6 | K99: =Data!AG95 -> 20.5 | L99: =Data!AH95 -> 19.1
G100: Cash Cycle | H100: =Data!AD96 -> 102.8 | I100: =Data!AE96 -> 100.5 | J100: =Data!AF96 -> 94.1 | K100: =Data!AG96 -> 102.5 | L100: =Data!AH96 -> 110.9
G101: DEBT RATIOS
G102: Accounts Payable To Inventory | H102: =Data!AD74 -> 0.397 | I102: =Data!AE74 -> 0.454 | J102: =Data!AF74 -> 0.465 | K102: =Data!AG74 -> 0.459 | L102: =Data!AH74 -> 0.461
G103: Accounts Payable Payout Period (Days) | H103: =Data!AD75 -> 17.9 | I103: =Data!AE75 -> 22.9 | J103: =Data!AF75 -> 20.6 | K103: =Data!AG75 -> 20.5 | L103: =Data!AH75 -> 19.1
G104: Debt to Equity | H104: =Data!AD76 -> 0.6 | I104: =Data!AE76 -> 0.7 | J104: =Data!AF76 -> 0.6 | K104: =Data!AG76 -> 0.5 | L104: =Data!AH76 -> 0.4
G105: EBIT | H105: =Data!AD77 -> N/A | I105: =Data!AE77 -> 0.045 | J105: =Data!AF77 -> 0.045 | K105: =Data!AG77 -> 0.056 | L105: =Data!AH77 -> 0.053
G106: EBIT To Total Assets | H106: =Data!AD78 -> 0.128 | I106: =Data!AE78 -> 0.118 | J106: =Data!AF78 -> 0.12 | K106: =Data!AG78 -> 0.13 | L106: =Data!AH78 -> 0.101
G107: Times Interest Earned | H107: =Data!AD79 -> 15 | I107: =Data!AE79 -> 7.8 | J107: =Data!AF79 -> 11.7 | K107: =Data!AG79 -> 13.5 | L107: =Data!AH79 -> 11
G108: ASSET PRODUCTIVITY RATIOS
G109: Average Collection Period (Days) | H109: =H96 -> 66.5 | I109: 69.5 | J109: 68.3 | K109: 66.4 | L109: =L96 -> 73.6
G110: Inventory Turnover | H110: =Data!AD82 -> 6.7 | I110: =Data!AE82 -> 6.8 | J110: =Data!AF82 -> 7.9 | K110: =Data!AG82 -> 6.4 | L110: =Data!AH82 -> 6.5
G111: Inventory Holding Period (Days) | H111: =Data!AD83 -> 54.2 | I111: =Data!AE83 -> 53.9 | J111: =Data!AF83 -> 46.4 | K111: =Data!AG83 -> 56.6 | L111: =Data!AH83 -> 56.4
G112: Sales To Inventory Ratio | H112: =Data!AD84 -> 9.6 | I112: =Data!AE84 -> 9.9 | J112: =Data!AF84 -> 11.5 | K112: =Data!AG84 -> 10 | L112: =Data!AH84 -> 10
G113: Gross Margin Return On Inventory | H113: =Data!AD85 -> 3.207 | I113: =Data!AE85 -> 3.183 | J113: =Data!AF85 -> 4.26 | K113: =Data!AG85 -> 3.215 | L113: =Data!AH85 -> 3.149
G114: Sales To Working Capital | H114: =Data!AD89 -> 4.9 | I114: =Data!AE89 -> 4.9 | J114: =Data!AF89 -> 4.8 | K114: =Data!AG89 -> 4.5 | L114: =Data!AH89 -> 4
G121: Trends: Employee Productivity
H122: =H$15 -> 2016 | I122: =I$15 -> 2017 | J122: =J$15 -> 2018 | K122: =K$15 -> 2019 | L122: =L$15 -> 2020
G123: Sales Per Employee | H123: =Data!AD98 -> 333914 | I123: =Data!AE98 -> 331567 | J123: =Data!AF98 -> 323781 | K123: =Data!AG98 -> 385752 | L123: =Data!AH98 -> 355701
G124: Gross Profit Per Employee | H124: =Data!AD99 -> 106343 | I124: =Data!AE99 -> 103260 | J124: =Data!AF99 -> 107249 | K124: =Data!AG99 -> 114305 | L124: =Data!AH99 -> 113933
G125: Salary Per Employee | H125: =Data!AD100 -> 67753 | I125: =Data!AE100 -> 56064 | J125: =Data!AF100 -> 58716 | K125: =Data!AG100 -> 60478 | L125: =Data!AH100 -> 59357
G126: Payroll, including benefits Per Employee | H126: =Data!AD101 -> 78949 | I126: =Data!AE101 -> 70573 | J126: =Data!AF101 -> 70869 | K126: =Data!AG101 -> 71526 | L126: =Data!AH101 -> 74630
G127: Personnel Productivity Ratio | H127: =Data!AD102 -> 0.638 | I127: =Data!AE102 -> 0.655 | J127: =Data!AF102 -> 0.655 | K127: =Data!AG102 -> 0.599 | L127: =Data!AH102 -> 0.649

Sheet Definitions
G8: Definitions: Return On Investment
G10: Return On Net Worth (RONW) and Return On Assets (ROA) are two of the most important measures
G11: for evaluating how effectively a company’s management team is managing the capital that owners or
G12: shareholders entrust to it.
G14: Return On Net Worth is affected by three things: operating efficiency, which is measured by profit margin;
G15: asset use efficiency, which is measured by total asset turnover; and financial leverage, which is measured
G16: by an equity multiplier.
G18: Element 1: | I18: Element 2: | K18: Return On | M18: Element 3: | O18: Return On
G19: Profit Margin | I19: Asset Turnover | K19: Assets | M19: Financial Leverage | O19: Net Worth
G21: =Data!C16 -> 0.05 | H21: X | I21: =Data!C17 -> 2.4 | J21: = | K21: =Data!C18 -> 0.12 | L21: X | M21: =Data!C19 -> 1.4 | N21: = | O21: =Data!C20 -> 0.168
G24: Profit Margin = Profit Before Taxes ÷ Net Sales x 100—Profit margin is an indicator of a company's
G25: pricing strategies and how well it controls costs. In the example above, a profit margin of 5.0 percent means
G26: that for every $1.00 of sales the company was able to produce 5.0¢ in profit.
G28: Asset Turnover = Net Sales ÷ Total Assets—Asset turnover measures the efficiency of a company's use
G29: of its assets in generating sales revenue. The ratio of 2.4 means that the firm is able to generate $2.40 in
G30: sales for every $1.00 in assets. If your assets; cash, accounts receivable, inventory, property, equipment and
G31: and all other assets, can be used as efficiently as possible, then maximum amount of sales can be generated
G32: from a given asset investment.
G34: Return On Assets = Profit Before Taxes ÷ Total Assets x 100—ROA is an indicator of how profitable a
G35: company is relative to its total assets. The ROA figure gives investors an idea of how effectively the company
G36: is converting the money it has to invest into profit. Profit is derived from the income statement. The assets
G37: are read from the balance sheet. The higher the ROA, the better the management. The pre‑tax ROA ratio
G38: should at least equal the cost of capital. For the example above, ROA is 12.0 percent.
G40: Financial Leverage = Total Assets ÷ Net Worth—Financial leverage measures the use of debt to acquire
G41: assets. Generally the cost of borrowed money is much less than the cost of obtaining additional stockholders'
G42: equity. As a result, it is usually wise for a corporation to use some debt and leverage. However, the higher
G43: the ratio, the more your firm relies on outside financing. The ratio of 1.4 times suggests that for every $1.00 in
G44: owners' equity, the company had $1.40 in total assets. The owners put up $1.00 and outsiders put up $0.40.
G46: Return On Net Worth = Profit Before Taxes ÷ Net Worth x 100—RONW breaks down the returns that
G47: investors receive into three distinct elements: Profit Margin or operating efficiency, Asset Turnover or
G48: asset productivity, and financial leverage which indicates the use of debt or equity to purchase assets.
G49: This analysis enables business owners to understand the source of superior (or inferior) return by comparison
G50: with companies in similar industries. If RONW is unsatisfactory, this analysis helps locate the part of the
G51: business that is underperforming; Profit Margin, Asset Turnover, or Financial Leverage. In the example above,
G52: the company has a RONW of 16.8%; that is, for every $1.00 of net worth, the firm produced 16.8¢ of profit.
G54: Companies must earn an adequate return on investment to satisfy the owners’ needs. You should strive for
G55: a RONW at least exceeding the return available on risk-free investments plus an incremental rate that
G56: offsets both inflation and risk. It should also provide for the growth of the business.
G59: Definitions: Product Mix
G61: Product mix, or product assortment, refers to the total number of product lines that a company offers.
G62: Planning your product mix is essential to the success of your business for a number of reasons:
G64: Customer Needs — Carrying the proper product line provides you the best opportunity of meeting your
G65: customers' needs. The customer comes to rely on you as their primary resource, which means they may
G66: be less likely to shop with your competitors.
G68: Inventory Management — As a business owner, you face limitations regarding the number of products
G69: you are able to offer. By focusing on providing the optimum product mix for your customers, you'll be able
G70: to weed out slow sellers.
G72: Business Image — Your product mix is important in determining the image of your business & brand.
G73: It helps you to maintain consistency in the eyes of your target market. Focusing your product mix helps
G74: you stay attentive to your core business.
G77: Definitions: Income Statement
G79: Profit Margin Analysis
G81: In the income statement, there are multiple levels of profit or profit margins: gross profit, operating profit,
G82: and profit before taxes. The term "margin" applies to a given profit level as a percentage of net sales.
G83: Profit margin analysis uses the percentage calculation to provide a comprehensive measure of a
G84: company's profitability over a period of time and in comparison industry benchmarks.
G86: The objective of margin analysis is to detect positive or negative trends in a company's earnings.
G88: The operating portion of the income statement discloses information about revenues and expenses that
G89: are a direct result of regular business operations.
G91: Gross Margin — Gross Profit dollars = Net Sales – Cost Of Goods Sold
G92: Gross Margin is the Gross Profit $ as a percent of the sales generated. The gross margin percentage
G93: represents the number of pennies that are being generated from each dollar of sales. A typical distributor
G94: generated 25¢ in gross profit for each $1.00 in sales. The gross margin is used to analyze how effectively
G95: a company is pricing and purchasing its products.
G97: Operating Profit Margin — Operating Profit dollars = Gross Profit $ – Total Operating Expenses
G98: Operating expenses are needed to manage the business; including salaries, commissions, bonuses,
G99: payroll taxes, health insurance, utilities, rent, office supplies, etc. Management has more control over
G100: operating expenses than its COGS outlays. Thus, positive or negative results in operating margin
G101: are directly attributable to management decisions.
G103: The non-operating section of the income statement discloses revenue and expense information about
G104: activities that are not directly tied to a company's regular operations, like the sale of capital assets or
G105: interest on a loan to finance the company.
G107: Profit Margin = Profit Before Taxes ÷ Net Sales x 100—Profit margin, the so-called bottom line is
G108: an important metric that owners can easily see for a complete benchmarking analysis.
G111: Definitions: Operating Expenses in Relationship to Gross Profit
G113: Operating expenses as a percentage of gross profits tells the operational efficiency of the company.
G114: It is calculated by dividing the operating expenses by gross profit, rather than Net Sales used in the
G115: Income Statement.
G117: Gross profit pays for all Cost Of Goods expenditures. Whatever is left after deducting operating expenses
G118: from gross profit becomes net profit. Each operating expense item gets a share of gross profit, and the
G119: bigger each expense, the less that is left for net profits.
G121: Payroll is usually one of the biggest expenses in a business, which is why it must be monitored and
G122: controlled constantly to maximize profitability. Accountants and financial managers usually compute
G123: the payroll to gross profit ratio so you can benchmark the efficiency of your company's workers with the
G124: the workers of peer companies, competitors and your own historical records. The lower your payroll
G125: is as a percentage of gross margin, the more efficiently you are using your labor force. A percentage
G126: lower than the industry benchmarks would mean that your workers are more efficient that your
G127: competitors workers.
G130: Definitions: Balance Sheet
G132: The balance sheet reflects the financial stability of the firm. As such it indicates how much money is invested
G133: in the business and where those investments are centered, and how much money is owed to various
G134: creditors and the value to the owners.
G136: Assets
G137: The asset portion of the balance sheet represents the total investment made in the company.
G139: Cash & Marketable Securities — The amount of money that your company has in completely liquid assets.
G140: It includes cash in the bank and short-term marketable securities (such as certificates of deposit).
G142: Accounts Receivable—or uncollected credit sales, are dollars currently unavailable to meet cash
G143: obligations. Offering credit terms to customers is essentially a tool to facilitate sales. The resulting accounts
G144: receivable, however, should be viewed as loans to customers.
G146: Inventory- represents the firm's investment in merchandise on hand. Excessive inventory is expensive.
G147: Inventory carrying costs may include interest, personal property taxes, markdowns, and shrinkage. However,
G148: inventory shortages may hinder sales productivity if out-of-stock items become lost sales.
G150: Total Current Assets — The total amount of your firm's investment in assets that can be converted to cash
G151: in less than one year. Current Assets includes cash, accounts receivable, inventory and other current assets.
G153: Fixed Assets — Cash flow could improve with tighter management of fixed assets, especially when it comes
G154: to selling surplus or idle assets. In order to improve earnings managers must efficiently deploy idle/surplus
G155: assets internally or dispose of them. If the utilization of fixed assets are not tracked, through mechanisms
G156: such as service & repair records of equipment, the company could face future write-offs, thereby
G157: damaging profitability.
G159: Liabilities and Net Worth
G160: Liabilities and net worth are sources of capital that finance company assets.
G162: Liabilities — Liabilities reflect financing by outside creditors. Such funds may be provided by suppliers who
G163: have sold merchandise to the firm on credit (accounts payable), as well as individuals or financial institutions
G164: that have loaned the company money (short or long term notes payable).
G166: Net Worth = Assets – Liabilities — Where as liabilities are funds provided from outside the firm, net worth
G167: represents funds provided from inside the company. Net worth is the sum of the owners' paid-in capital, plus
G168: loans from owners, plus all earnings retained in the business over the years. Net worth is the only money
G169: financing the business which carries no stated return. As such, the owners' investment carries 100% risk; it
G170: is totally dependent on the financial performance of the firm. Therefore, the rate of return on net worth or
G171: owners' equity should be a rate that justifies the risk being taken in the business.
G174: Definitions: Liquidity Ratios
G176: By itself, a ratio is not very useful, but when compared to other companies in the same economic sector
G177: then ratios become a powerful tool for creditors and suppliers of capital to the businesss, the investors.
G179: A company’s liquidity is its ability to meet its short-term financial obligations. Liquidity ratios attempt to
G180: measure a company's ability to pay off its short-term debt obligations. This is done by comparing a
G181: company's most liquid assets, those that can be easily converted to cash, with its short-term liabilities.
G183: During hard times for the business or the economy, a company with insufficient liquidity might be forced to
G184: make tough choices to meet their obligations. These could include liquidating productive assets or selling
G185: inventory. These moves could prove detrimental to both the company’s short-term viability and their
G186: long-term financial health.
G188: Current Ratio = Current Assets ÷ Current Liabilities — The current ratio measures the ability of a
G189: company to cover its short-term liabilities with its current assets; cash, accounts receiveable and inventory.
G190: As a general rule, the current ratio should be 2.0 or higher.
G192: Quick Ratio = (Cash + Accounts Receivable) ÷ Current Liabilities — The quick ratio is a liquidity ratio
G193: that further refines the current ratio by measuring the level of the most liquid current assets to cover
G194: current liabliities. The quick ratio is more conservative than the current ratio because it excludes inventory
G195: and other current assets, which generally are more difficult to turn into cash. A higher quick ratio means a
G196: a more liquid current position. A guideline for the quick ratio is 1.0.
G198: Cash Ratio = Cash ÷ Current Liabilities x 100 — ratio that shows the level of the firm’s cash and
G199: near-cash investments relative to their current liabilities. This ratio tells creditors the value of current assets
G200: that could beturned into cash, and what percentage of the company’s current liabilities these cash and
G201: near-cash assets could cover.
G203: Cash Cycle = Average Collection Period + Inventory Holding Period - Accounts Payable Payout Period
G204: The cash cycle is vital for two reasons. First, it's an indicator of the company's efficiency in managing
G205: its important working capital assets; second, it provides a clear view of a company's ability to pay off
G206: its current liabilities.
G208: The cash conversion cycle looks at how quickly the company turns its inventory into sales, and its sales
G209: into cash, which is then used to pay its suppliers. If inventory is held longer, or it takes longer to collect
G210: accounts receivable, it will reduce a company's available cash.
G213: Definitions: Debt Ratios
G215: Debt ratios can be used to determine the overall level of financial risk a company and its owners face.
G216: The greater the amount of debt, the greater the potential level of financial risk your company could face.
G218: Debt is a form of financial leverage. The more levered a company is the greater the level of financial risk.
G219: On the other hand, a certain amount of leverage can contribute to a company’s growth. Well-run companies
G220: seek an optimal amount of financial leverage for their situation.
G222: Accounts Payable To Inventory = Average Accounts Payable ÷ Average Inventory x 100
G223: For a business to manage its financial position effectively, it must pay close attention to the levels of
G224: accounts payable and inventory on its balance sheet. Making sure that you pay suppliers on time could
G225: help you to acquire supplier credit to purchase additional inventory. Keeping track of inventory turnover
G226: ensures that the business does not run into a credit crisis.
G228: Accounts Payable Payout Period = Average Accounts Payable ÷ (Total Annual Purchases/365 Days)
G229: The accounts payable payout period measures how long it takes a company to pay its suppliers. Companies
G230: must strike a delicate balance with the payout period. The longer they take to pay their creditors, the more
G231: money the company has on hand, which is good for working capital. But if a company takes too long to pay
G232: its suppliers, creditors will be unhappy. They may refuse to extend credit in the future, or they may offer less
G233: favorable terms. Also, if creditors give companies a discount for timely payments, the company may be
G234: paying more than it needs to for its merchandise.
G236: Debt to Equity = Total Liabilities ÷ Net Worth — The debt-equity ratio is leverage ratio that compares
G237: a company's total liabilities to its total shareholders' equity. This is a measurement of the proportion of the
G238: company’s balance sheet that is financed by suppliers, lenders, creditors and obligors versus what the
G239: owners or shareholders have committed.
G241: Earnings Before Interest & Taxes (EBIT) = (Profit Before Taxes + Interest) ÷ Net Sales x 100
G242: Earnings Before Interest and Taxes (EBIT) measures the profit a company generates from its operations.
G243: By ignoring tax and interest expenses, it focuses solely on a company's ability to generate earnings from
G244: operations, ignoring variables such as the tax burden and capital structure.
G246: Times Interest Earned = (EBIT) ÷ Interest — The times interest earned ratio measures how many times
G247: over a company could pay its outstanding debts using its earnings. The ability to service its debt obligations
G248: is a key factor in determining a company’s solvency and is an important statistic for owners. Owners want
G249: to be sure that the company can pay its bills, including its interest expense. They don’t want the company's
G250: growth derailed by these types of financial issues. When a company's interest coverage ratio is only 1.5 or
G251: or lower, its ability to meet interest expenses may be questionable.
G253: EBIT to Total Assets = Earnings Before Interest & Taxes ÷ Total Assets x 100 — The return on
G254: total assets (ROTA) measures a company's EBIT to total assets. The ratio is an indicator of how effectively
G255: a company is using its assets to generate earnings before interest obligations must be paid. This allows you
G256: to see the relationship between the company's resources and its income, and it can provide a point of
G257: comparison to determine if your company is using its assets more or less effectively than its peers. If debt
G258: was used to buy an asset, the ROTA can be adjusted to reflect the asset's functional value while accounting
G259: for the interest rate currently being paid to a financial institution.
G262: Definitions: Asset Productivity Ratios
G264: Asset productivity ratios describe how effectively business assets are deployed. These ratios typically look
G265: at sales dollars generated per unit of resource. Resources can include accounts receivable, inventory,
G266: and fixed assets.
G268: Average Collection Period = Accounts Receivable ÷ (Credit Sales ÷ 365 Days) — The average
G269: collection period is the average number of days between 1) the date that a credit sale is made, and
G270: 2) the date that the money is received from the customer. The average collection period is also referred to
G271: as the days' sales in accounts receivable.
G273: If a company offers credit terms of net 30 days, the company may find that its average collection period
G274: is actually 45 days or more. Monitoring the average collection period is important for a company's cash
G275: flow and its ability to meet its obligations when they come due.
G277: Inventory Turnover = Warehouse Cost Of Goods Sold ÷ Average Inventory — Inventory turnover
... 166 more rows

Sheet Print Full Report
E8: 2021 DHI Financial Benchmarking Report
E9: Figures based on 2020 financial data
E11: Prepared by Mackay Research Group
A13: Table Of Contents | I13: Page
A14: Executive Summary | I14: 1
A16: Detailed Results
A17: Return On Investment | I17: 2
A18: Product Mix | I18: 3
A19: Income Statement | I19: 4
A20: Operating Expenses in Relation to Gross Margin | I20: 5
A21: Balance Sheet | I21: 6
A22: Liquidity Ratios | I22: 7
A23: Debt Ratios | I23: 8
A24: Asset Productivity Ratios | I24: 9
A25: Employee Productivity Ratios | I25: 10
A26: Industry Trend Analysis | I26: 11
A27: Appendix | I27: 13
A30: The Financial Benchmarking Survey is a profitability study of DHI members designed to obtain,
A31: understand and analyze “best practices” for DHI distributor companies. More importantly,
A32: Financial Benchmarking Report is designed to help DHI members improve their financial performance.
A34: In 2021, 31 DHI distributors provided income statement, balance sheet, and operating data for this
A35: benchmarking study. Results of that survey are profiled in this report. This management tool is designed to
A36: provide the resources that enable DHI members to evaluate, plan, and better manage their businesses.
A38: Explanation of Statistics
A39: Almost all of the figures provided in this report are medians. The median for a particular variable or
A40: calculation is the middle number of all values reported arranged from lowest to highest. The median
A41: represents the typical company's results. The median is not influenced by any extremely high or low
A42: values reported. An average or mean value, on the other hand, may be influenced by extreme values.
A43: Thus, the median is the preferred statistic for this analysis.
A45: To determine the group of high profit firms, all participating firms are ranked on the basis of pre-tax return
A46: on assets (ROA). The high profit category includes the top twenty-five percent of the firms based on ROA.
A47: The figures reported for the high profit firms represent a median for this group.
A51: Prepared By: | X51: =Summary!I8 -> Typical DHI Distributor | Y51: =Summary!J8 -> High Profit DHI Distributor | Z51: =Summary!K8 -> Under 70% Contract Jobs | AA51: =Summary!L8 -> 70% - 80% Contract Jobs | AB51: =Summary!M8 -> Over 80% Contract Jobs
A52: Mackay Research Group
A53: 4494 Coolidge Place | X53: =Data!B105 -> Typical DHI Distributor | Y53: Typical | Z53: DHI | AA53: Dist.
A54: Boulder, CO 80306 | X54: =Data!B106 -> High Profit DHI Distributor | Y54: High | Z54: Profit | AA54: DHI
A55: Phone: 720-890-4255 | X55: =Data!B107 -> Under 70% Contract Jobs | Y55: Under 70% | Z55: Contract | AA55: Jobs
A56: Fax: 720-890-8719 | X56: =Data!B108 -> 70% - 80% Contract Jobs | Y56: 70% - 80% | Z56: Contract | AA56: Jobs
A57: www.mackayresearchgroup.com | X57: =Data!B109 -> Over 80% Contract Jobs | Y57: Over 80% | Z57: Contract | AA57: Jobs
A58: Ó | B58: 2021 Mackay Research Group, Inc. | X58: =Data!B110 -> Sales Under $15 Million | Y58: Sales | Z58: Under $15 | AA58: Million
A59: Executive Summary | X59: =Data!B111 -> Sales $15-$30 Million | Y59: Sales | Z59: $15-$30 | AA59: Million
Y60: Sales | Z60: Over $30 | AA60: Million
E61: =IFERROR(VLOOKUP($X$51,$X$53:$AA$131,2,FALSE),"") -> Typical | F61: =IFERROR(VLOOKUP($Y$51,$X$53:$AA$131,2,FALSE),"") -> High | G61: =IFERROR(VLOOKUP($Z$51,$X$53:$AA$131,2,FALSE),"") -> Under 70% | H61: =IFERROR(VLOOKUP($AA$51,$X$53:$AA$131,2,FALSE),"") -> 70% - 80% | I61: =IFERROR(VLOOKUP($AB$51,$X$53:$AA$131,2,FALSE),"") -> Over 80% | X61: =Data!B112 -> Sales Over $30 Million | Y61: Sales | Z61: Over $30 | AA61: Million
E62: =IFERROR(VLOOKUP($X$51,$X$53:$AA$131,3,FALSE),"") -> DHI | F62: =IFERROR(VLOOKUP($Y$51,$X$53:$AA$131,3,FALSE),"") -> Profit | G62: =IFERROR(VLOOKUP($Z$51,$X$53:$AA$131,3,FALSE),"") -> Contract | H62: =IFERROR(VLOOKUP($AA$51,$X$53:$AA$131,3,FALSE),"") -> Contract | I62: =IFERROR(VLOOKUP($AB$51,$X$53:$AA$131,3,FALSE),"") -> Contract | X62: =Data!B113 -> Southeastern Region | Y62: South- | Z62: eastern | AA62: Region
E63: =IFERROR(VLOOKUP($X$51,$X$53:$AA$131,4,FALSE),"") -> Dist. | F63: =IFERROR(VLOOKUP($Y$51,$X$53:$AA$131,4,FALSE),"") -> DHI | G63: =IFERROR(VLOOKUP($Z$51,$X$53:$AA$131,4,FALSE),"") -> Jobs | H63: =IFERROR(VLOOKUP($AA$51,$X$53:$AA$131,4,FALSE),"") -> Jobs | I63: =IFERROR(VLOOKUP($AB$51,$X$53:$AA$131,4,FALSE),"") -> Jobs | X63: =Data!B114 -> North Central Region | Y63: North | Z63: Central | AA63: Region
X64: =Data!#REF! ->  | Y64: =IF($X$71=0,"","") ->  | Z64: South | AA64: eastern
A65: Number of Firms Reporting | E65: =Summary!I21 -> 31 | F65: =Summary!J21 -> 8 | G65: =Summary!K21 -> 10 | H65: =Summary!L21 -> 9 | I65: =Summary!M21 -> 12 | X65: =Data!#REF! ->  | Z65: North | AA65: Central
A66: Typical Sales Volume | E66: =Summary!I22 -> 23.2 | F66: =Summary!J22 -> 26.4 | G66: =Summary!K22 -> 39 | H66: =Summary!L22 -> 21 | I66: =Summary!M22 -> 21.7 | X66: =Data!B115 -> Lower Quartile | Z66: Lower | AA66: Quartile
A67: Sales Growth | E67: =Summary!I23 -> -0.054 | F67: =Summary!J23 -> 0.013 | G67: =Summary!K23 -> 0.013 | H67: =Summary!L23 -> -0.11 | I67: =Summary!M23 -> -0.048 | X67: =Data!B116 -> Upper Quartile | Z67: Upper | AA67: Quartile
X68: =IF($X$71=0,"","") ->  | Z68: =IF($X$71=0,"","") -> 
X69: =IF($X$71=0,"","") -> 
A70: RETURN ON INVESTMENT | X70: =IF($X$71=0,"","") -> 
A71: Profit Margin (Pre-tax) | E71: =Summary!I27 -> 0.05 | F71: =Summary!J27 -> 0.102 | G71: =Summary!K27 -> 0.055 | H71: =Summary!L27 -> 0.048 | I71: =Summary!M27 -> 0.038 | X71: 0
A72: Asset Turnover | E72: =Summary!I28 -> 2.4 | F72: =Summary!J28 -> 2.7 | G72: =Summary!K28 -> 2.5 | H72: =Summary!L28 -> 2.3 | I72: =Summary!M28 -> 2.4
A73: Return On Assets (Pre-tax) | E73: =Summary!I29 -> 0.12 | F73: =Summary!J29 -> 0.275 | G73: =Summary!K29 -> 0.138 | H73: =Summary!L29 -> 0.11 | I73: =Summary!M29 -> 0.091
A74: Financial Leverage | E74: =Summary!I30 -> 1.4 | F74: =Summary!J30 -> 1.3 | G74: =Summary!K30 -> 1.5 | H74: =Summary!L30 -> 1.8 | I74: =Summary!M30 -> 1.4
A75: Return On Net Worth (Pre-tax) | E75: =Summary!I31 -> 0.168 | F75: =Summary!J31 -> 0.358 | G75: =Summary!K31 -> 0.207 | H75: =Summary!L31 -> 0.198 | I75: =Summary!M31 -> 0.127
A78: INCOME STATEMENT
A79: Net Sales | E79: =Summary!I35 -> 1 | F79: =Summary!J35 -> 1 | G79: =Summary!K35 -> 1 | H79: =Summary!L35 -> 1 | I79: =Summary!M35 -> 1
A80: Cost Of Goods Sold | E80: =Summary!I36 -> 68.3 | F80: =Summary!J36 -> 66.7 | G80: =Summary!K36 -> 66.1 | H80: =Summary!L36 -> 69.9 | I80: =Summary!M36 -> 66.4
A81: Gross Margin | E81: =Summary!I37 -> 31.7 | F81: =Summary!J37 -> 33.3 | G81: =Summary!K37 -> 33.9 | H81: =Summary!L37 -> 30.1 | I81: =Summary!M37 -> 33.6
A82: Operating Expenses
A83: Salaries, Wages, Commissions & Bonuses | E83: =Summary!I39 -> 17.8 | F83: =Summary!J39 -> 15.8 | G83: =Summary!K39 -> 17.3 | H83: =Summary!L39 -> 17 | I83: =Summary!M39 -> 21.7
A84: Payroll Taxes | E84: =Summary!I40 -> 1.4 | F84: =Summary!J40 -> 1.3 | G84: =Summary!K40 -> 1.3 | H84: =Summary!L40 -> 1.2 | I84: =Summary!M40 -> 1.8
A85: Employee Benefits | E85: =Summary!I41 -> 1.8 | F85: =Summary!J41 -> 1.6 | G85: =Summary!K41 -> 2.1 | H85: =Summary!L41 -> 2.3 | I85: =Summary!M41 -> 2.1
A86: Total Payroll Expenses | E86: =Summary!I42 -> 21 | F86: =Summary!J42 -> 18.7 | G86: =Summary!K42 -> 20.7 | H86: =Summary!L42 -> 20.5 | I86: =Summary!M42 -> 25.6
A87: Occupancy Expenses | E87: =Summary!I43 -> 2.3 | F87: =Summary!J43 -> 2.5 | G87: =Summary!K43 -> 2.9 | H87: =Summary!L43 -> 2.3 | I87: =Summary!M43 -> 2
A88: All Other Operating Expenses | E88: =Summary!I44 -> 4.5 | F88: =Summary!J44 -> 2.8 | G88: =Summary!K44 -> 4.5 | H88: =Summary!L44 -> 4.3 | I88: =Summary!M44 -> 2.4
A89: Total Operating Expenses | E89: =Summary!I45 -> 27.8 | F89: =Summary!J45 -> 24 | G89: =Summary!K45 -> 28.1 | H89: =Summary!L45 -> 27.1 | I89: =Summary!M45 -> 30
A90: Operating Profit | E90: =Summary!I46 -> 3.9 | F90: =Summary!J46 -> 9.3 | G90: =Summary!K46 -> 5.8 | H90: =Summary!L46 -> 3 | I90: =Summary!M46 -> 3.6
A91: Other Income | E91: =Summary!I47 -> 1.3 | F91: =Summary!J47 -> 1.1 | G91: =Summary!K47 -> 0.2 | H91: =Summary!L47 -> 2.2 | I91: =Summary!M47 -> 0.3
A92: Interest Expense | E92: =Summary!I48 -> 0.2 | F92: =Summary!J48 -> 0.2 | G92: =Summary!K48 -> 0.5 | H92: =Summary!L48 -> 0.4 | I92: =Summary!M48 -> 0.1
A93: Other Non-Operating Expenses | E93: =Summary!I49 -> 0 | F93: =Summary!J49 -> 0 | G93: =Summary!K49 -> 0 | H93: =Summary!L49 -> 0 | I93: =Summary!M49 -> 0
A94: Profit Before Taxes | E94: =Summary!I50 -> 0.05 | F94: =Summary!J50 -> 0.102 | G94: =Summary!K50 -> 0.055 | H94: =Summary!L50 -> 0.048 | I94: =Summary!M50 -> 0.038
A97: Current Ratio | E97: =Summary!I54 -> 3.3 | F97: =Summary!J54 -> 4.4 | G97: =Summary!K54 -> 3.3 | H97: =Summary!L54 -> 1.8 | I97: =Summary!M54 -> 4.4
A98: Quick Ratio | E98: =Summary!I55 -> 2.6 | F98: =Summary!J55 -> 3.6 | G98: =Summary!K55 -> 2 | H98: =Summary!L55 -> 1.3 | I98: =Summary!M55 -> 3.5
A99: Cash To Current Liabilities | E99: =Summary!I56 -> 0.645 | F99: =Summary!J56 -> 0.74 | G99: =Summary!K56 -> 0.044 | H99: =Summary!L56 -> 0.046 | I99: =Summary!M56 -> 1.059
A100: Accounts Payable To Inventory | E100: =Summary!I57 -> 0.461 | F100: =Summary!J57 -> 0.554 | G100: =Summary!K57 -> 0.375 | H100: =Summary!L57 -> 0.464 | I100: =Summary!M57 -> 0.61
A101: Accounts Payable Payout Period (Days) | E101: =Summary!I58 -> 19.1 | F101: =Summary!J58 -> 19.5 | G101: =Summary!K58 -> 19.9 | H101: =Summary!L58 -> 28.3 | I101: =Summary!M58 -> 16.1
A102: Debt to Equity | E102: =Summary!I59 -> 0.4 | F102: =Summary!J59 -> 0.3 | G102: =Summary!K59 -> 0.5 | H102: =Summary!L59 -> 0.8 | I102: =Summary!M59 -> 0.4
A103: EBIT | E103: =Summary!I60 -> 0.053 | F103: =Summary!J60 -> 0.104 | G103: =Summary!K60 -> 0.061 | H103: =Summary!L60 -> 0.048 | I103: =Summary!M60 -> 0.038
A104: EBIT To Total Assets | E104: =Summary!I61 -> 0.101 | F104: =Summary!J61 -> 0.275 | G104: =Summary!K61 -> 0.162 | H104: =Summary!L61 -> 0.102 | I104: =Summary!M61 -> 0.069
A105: Times Interest Earned | E105: =Summary!I62 -> 11 | F105: =Summary!J62 -> 46.1 | G105: =Summary!K62 -> 11.5 | H105: =Summary!L62 -> 7.5 | I105: =Summary!M62 -> 15.5
A108: Average Collection Period (Days) | E108: =Summary!I66 -> 73.6 | F108: =Summary!J66 -> 70.6 | G108: =Summary!K66 -> 66.8 | H108: =Summary!L66 -> 81 | I108: =Summary!M66 -> 72.6
A109: Inventory Turnover | E109: =Summary!I67 -> 6.5 | F109: =Summary!J67 -> 7.1 | G109: =Summary!K67 -> 5.1 | H109: =Summary!L67 -> 7.4 | I109: =Summary!M67 -> 10.2
A110: Inventory Holding Period (Days) | E110: =Summary!I68 -> 56.4 | F110: =Summary!J68 -> 52.2 | G110: =Summary!K68 -> 71.9 | H110: =Summary!L68 -> 49.1 | I110: =Summary!M68 -> 37.4
A111: Gross Margin Return On Inventory | E111: =Summary!I69 -> 3.149 | F111: =Summary!J69 -> 3.48 | G111: =Summary!K69 -> 2.526 | H111: =Summary!L69 -> 2.921 | I111: =Summary!M69 -> 4.345
A114: Sales Per Employee | E114: =Summary!I73 -> 355701 | F114: =Summary!J73 -> 381552 | G114: =Summary!K73 -> 342062 | H114: =Summary!L73 -> 361346 | I114: =Summary!M73 -> 391246
A115: Gross Profit Per Employee | E115: =Summary!I74 -> 113933 | F115: =Summary!J74 -> 124546 | G115: =Summary!K74 -> 113484 | H115: =Summary!L74 -> 108767 | I115: =Summary!M74 -> 122139
A116: Salary Per Employee | E116: =Summary!I75 -> 59357 | F116: =Summary!J75 -> 58962 | G116: =Summary!K75 -> 58375 | H116: =Summary!L75 -> 59760 | I116: =Summary!M75 -> 65794
A117: Payroll, including benefits Per Employee | E117: =Summary!I76 -> 74630 | F117: =Summary!J76 -> 71638 | G117: =Summary!K76 -> 72785 | H117: =Summary!L76 -> 72862 | I117: =Summary!M76 -> 77218
A118: Personnel Productivity Ratio | E118: =Summary!I77 -> 0.649 | F118: =Summary!J77 -> 0.548 | G118: =Summary!K77 -> 0.616 | H118: =Summary!L77 -> 0.652 | I118: =Summary!M77 -> 0.763
A119: Return On Investment | X119: =Data!B129 -> 0 | Y119: Vinyl | Z119: Flooring | AA119: Emphasis
X120: =Data!B130 -> 0 | Y120: Multi-line | Z120: Flooring | AA120: Distributor
A121: Return On Net Worth (RONW) and Return On Assets (ROA) are two of the most important measures | X121: =Data!B131 -> 0 | Y121: Major | Z121: Urban | AA121: Markets
A122: for evaluating how effectively a company’s management team is managing the capital that owners or | X122: =Data!B132 -> 0 | Y122: Secondary | Z122: Metro | AA122: Areas
A123: shareholders entrust to it. | X123: =Data!B133 -> 0 | Y123: Rural | Z123: Market | AA123: Areas
X124: =Data!B134 -> 0 | Y124: =IF($Y$132=0,"","") ->  | Z124: Southeast | AA124: Region
A125: Return On Net Worth is affected by three things: operating efficiency, which is measured by profit margin; | X125: =Data!B135 -> 0 | Y125: =IF($Y$132=0,"","") ->  | Z125: Midwest | AA125: Region
A126: asset use efficiency, which is measured by total asset turnover; and financial leverage, which is measured | X126: =Data!B136 -> 0 | Y126: Under 15% | Z126: Imported | AA126: Products
A127: by an equity multiplier. | X127: =Data!B137 -> 0 | Y127: 15% - 30% | Z127: Imported | AA127: Products
X128: =Data!B138 -> 0 | Y128: Over 30% | Z128: Imported | AA128: Products
A129: Element 1: | C129: Element 2: | E129: Return On | G129: Element 3: | I129: Return On | X129: =Data!B139 -> 0 | Y129: =IF($Y$132=0,"","") ->  | Z129: Lower | AA129: Quartile
A130: Profit Margin | C130: Asset Turnover | E130: Assets | G130: Financial Leverage | I130: Net Worth | X130: =Data!B140 -> 0 | Y130: =IF($Y$132=0,"","") ->  | Z130: Upper | AA130: Quartile
X131: =IF($Y$132=0,"","") ->  | Y131: =IF($Y$132=0,"","") -> 
A132: =E71 -> 0.05 | B132: X | C132: =E72 -> 2.4 | D132: = | E132: =E73 -> 0.12 | F132: X | G132: =E74 -> 1.4 | H132: = | I132: =E75 -> 0.168 | X132: =IF($Y$132=0,"","") ->  | Y132: 0
A135: Profit Margin = Profit Before Taxes ÷ Net Sales x 100—Profit margin is an indicator of a company's | X135: ='Detailed Results'!H8 -> Typical DHI Distributor | Y135: ='Detailed Results'!I8 -> High Profit DHI Distributor | Z135: ='Detailed Results'!J8 -> Under 70% Contract Jobs | AA135: ='Detailed Results'!K8 -> 70% - 80% Contract Jobs | AB135: ='Detailed Results'!L8 -> Over 80% Contract Jobs
A136: pricing strategies and how well it controls costs. In the example above, a profit margin of 5.0 percent means
A137: that for every $1.00 of sales the company was able to produce 5.0¢ in profit.
A139: Asset Turnover = Net Sales ÷ Total Assets—Asset turnover measures the efficiency of a company's use
A140: of its assets in generating sales revenue. The ratio of 2.4 means that the firm is able to generate $2.40 in
A141: sales for every $1.00 in assets. If your assets; cash, accounts receivable, inventory, property, equipment and
A142: and all other assets, can be used as efficiently as possible, then maximum amount of sales can be generated
A143: from a given asset investment.
A145: Return On Assets = Profit Before Taxes ÷ Total Assets x 100—ROA is an indicator of how profitable a
A146: company is relative to its total assets. The ROA figure gives investors an idea of how effectively the company
A147: is converting the money it has to invest into profit. Profit is derived from the income statement. The assets
A148: are read from the balance sheet. The higher the ROA, the better the management. The pre‑tax ROA ratio
A149: should at least equal the cost of capital. For the example above, ROA is 12.0 percent.
A151: Financial Leverage = Total Assets ÷ Net Worth—Financial leverage measures the use of debt to acquire
A152: assets. Generally the cost of borrowed money is much less than the cost of obtaining additional stockholders'
A153: equity. As a result, it is usually wise for a corporation to use some debt and leverage. However, the higher
A154: the ratio, the more your firm relies on outside financing. The ratio of 1.4 times suggests that for every $1.00 in
A155: owners' equity, the company had $1.40 in total assets. The owners put up $1.00 and outsiders put up $0.40.
A157: Return On Net Worth = Profit Before Taxes ÷ Net Worth x 100—RONW breaks down the returns that
A158: investors receive into three distinct elements: Profit Margin or operating efficiency, Asset Turnover or
A159: asset productivity, and financial leverage which indicates the use of debt or equity to purchase assets.
A160: This analysis enables business owners to understand the source of superior (or inferior) return by comparison
A161: with companies in similar industries. If RONW is unsatisfactory, this analysis helps locate the part of the
A162: business that is underperforming; Profit Margin, Asset Turnover, or Financial Leverage. In the example above,
A163: the company has a RONW of 16.8%; that is, for every $1.00 of net worth, the firm produced 16.8¢ of profit.
A165: Companies must earn an adequate return on investment to satisfy the owners’ needs. You should strive for
A166: a RONW at least exceeding the return available on risk-free investments plus an incremental rate that
A167: offsets both inflation and risk. It should also provide for the growth of the business.
E170: =IFERROR(VLOOKUP($X$135,$X$53:$AA$131,2,FALSE),"") -> Typical | F170: =IFERROR(VLOOKUP($Y$135,$X$53:$AA$131,2,FALSE),"") -> High | G170: =IFERROR(VLOOKUP($Z$135,$X$53:$AA$131,2,FALSE),"") -> Under 70% | H170: =IFERROR(VLOOKUP($AA$135,$X$53:$AA$131,2,FALSE),"") -> 70% - 80% | I170: =IFERROR(VLOOKUP($AB$135,$X$53:$AA$131,2,FALSE),"") -> Over 80%
E171: =IFERROR(VLOOKUP($X$135,$X$53:$AA$131,3,FALSE),"") -> DHI | F171: =IFERROR(VLOOKUP($Y$135,$X$53:$AA$131,3,FALSE),"") -> Profit | G171: =IFERROR(VLOOKUP($Z$135,$X$53:$AA$131,3,FALSE),"") -> Contract | H171: =IFERROR(VLOOKUP($AA$135,$X$53:$AA$131,3,FALSE),"") -> Contract | I171: =IFERROR(VLOOKUP($AB$135,$X$53:$AA$131,3,FALSE),"") -> Contract
E172: =IFERROR(VLOOKUP($X$135,$X$53:$AA$131,4,FALSE),"") -> Dist. | F172: =IFERROR(VLOOKUP($Y$135,$X$53:$AA$131,4,FALSE),"") -> DHI | G172: =IFERROR(VLOOKUP($Z$135,$X$53:$AA$131,4,FALSE),"") -> Jobs | H172: =IFERROR(VLOOKUP($AA$135,$X$53:$AA$131,4,FALSE),"") -> Jobs | I172: =IFERROR(VLOOKUP($AB$135,$X$53:$AA$131,4,FALSE),"") -> Jobs
A173: Strategic Profit Model Ratios
A174: Profit Margin (Pre-tax) | E174: ='Detailed Results'!H26 -> 0.05 | F174: ='Detailed Results'!I26 -> 0.102 | G174: ='Detailed Results'!J26 -> 0.055 | H174: ='Detailed Results'!K26 -> 0.048 | I174: ='Detailed Results'!L26 -> 0.038
A175: Asset Turnover | E175: ='Detailed Results'!H27 -> 2.4 | F175: ='Detailed Results'!I27 -> 2.7 | G175: ='Detailed Results'!J27 -> 2.5 | H175: ='Detailed Results'!K27 -> 2.3 | I175: ='Detailed Results'!L27 -> 2.4
A176: Return On Assets (Pre-tax) | E176: ='Detailed Results'!H28 -> 0.12 | F176: ='Detailed Results'!I28 -> 0.275 | G176: ='Detailed Results'!J28 -> 0.138 | H176: ='Detailed Results'!K28 -> 0.11 | I176: ='Detailed Results'!L28 -> 0.091
A177: Financial Leverage | E177: ='Detailed Results'!H29 -> 1.4 | F177: ='Detailed Results'!I29 -> 1.3 | G177: ='Detailed Results'!J29 -> 1.5 | H177: ='Detailed Results'!K29 -> 1.8 | I177: ='Detailed Results'!L29 -> 1.4
A178: Return On Net Worth (Pre-tax) | E178: ='Detailed Results'!H30 -> 0.168 | F178: ='Detailed Results'!I30 -> 0.358 | G178: ='Detailed Results'!J30 -> 0.207 | H178: ='Detailed Results'!K30 -> 0.198 | I178: ='Detailed Results'!L30 -> 0.127
A179: Product Mix
A181: Product mix, or product assortment, refers to the total number of product lines that a company offers.
A182: Planning your product mix is essential to the success of your business for a number of reasons:
A184: Customer Needs — Carrying the proper product line provides you the best opportunity of meeting your
A185: customers' needs. The customer comes to rely on you as their primary resource, which means they may
A186: be less likely to shop with your competitors.
A188: Inventory Management — As a business owner, you face limitations regarding the number of products
A189: you are able to offer. By focusing on providing the optimum product mix for your customers, you'll be able
A190: to weed out slow sellers.
A192: Business Image — Your product mix is important in determining the image of your business & brand.
A193: It helps you to maintain consistency in the eyes of your target market. Focusing your product mix helps
A194: you stay attentive to your core business.
E197: =IFERROR(VLOOKUP($X$135,$X$53:$AA$131,2,FALSE),"") -> Typical | F197: =IFERROR(VLOOKUP($Y$135,$X$53:$AA$131,2,FALSE),"") -> High | G197: =IFERROR(VLOOKUP($Z$135,$X$53:$AA$131,2,FALSE),"") -> Under 70% | H197: =IFERROR(VLOOKUP($AA$135,$X$53:$AA$131,2,FALSE),"") -> 70% - 80% | I197: =IFERROR(VLOOKUP($AB$135,$X$53:$AA$131,2,FALSE),"") -> Over 80%
E198: =IFERROR(VLOOKUP($X$135,$X$53:$AA$131,3,FALSE),"") -> DHI | F198: =IFERROR(VLOOKUP($Y$135,$X$53:$AA$131,3,FALSE),"") -> Profit | G198: =IFERROR(VLOOKUP($Z$135,$X$53:$AA$131,3,FALSE),"") -> Contract | H198: =IFERROR(VLOOKUP($AA$135,$X$53:$AA$131,3,FALSE),"") -> Contract | I198: =IFERROR(VLOOKUP($AB$135,$X$53:$AA$131,3,FALSE),"") -> Contract
E199: =IFERROR(VLOOKUP($X$135,$X$53:$AA$131,4,FALSE),"") -> Dist. | F199: =IFERROR(VLOOKUP($Y$135,$X$53:$AA$131,4,FALSE),"") -> DHI | G199: =IFERROR(VLOOKUP($Z$135,$X$53:$AA$131,4,FALSE),"") -> Jobs | H199: =IFERROR(VLOOKUP($AA$135,$X$53:$AA$131,4,FALSE),"") -> Jobs | I199: =IFERROR(VLOOKUP($AB$135,$X$53:$AA$131,4,FALSE),"") -> Jobs
A201: Number Of Firms Reporting | E201: ='Detailed Results'!H19 -> 31 | F201: ='Detailed Results'!I19 -> 8 | G201: ='Detailed Results'!J19 -> 10 | H201: ='Detailed Results'!K19 -> 9 | I201: ='Detailed Results'!L19 -> 12
A202: Typical Sales Volume (Millions) | E202: ='Detailed Results'!H20 -> 23.2 | F202: ='Detailed Results'!I20 -> 26.4 | G202: ='Detailed Results'!J20 -> 39 | H202: ='Detailed Results'!K20 -> 21 | I202: ='Detailed Results'!L20 -> 21.7
A203: Sales Growth (2020 vs. 2019) | E203: ='Detailed Results'!H21 -> -0.054 | F203: ='Detailed Results'!I21 -> 0.013 | G203: ='Detailed Results'!J21 -> 0.013 | H203: ='Detailed Results'!K21 -> -0.11 | I203: ='Detailed Results'!L21 -> -0.048
A204: Contract Sales Revenue | E204: ='Detailed Results'!H22 -> 0.75 | F204: ='Detailed Results'!I22 -> 0.74 | G204: ='Detailed Results'!J22 -> 0.66 | H204: ='Detailed Results'!K22 -> 0.75 | I204: ='Detailed Results'!L22 -> 0.93
A207: Sales by Product Category
A208: Builders Hardware | E208: ='Detailed Results'!H34 -> 0.421 | F208: ='Detailed Results'!I34 -> 0.374 | G208: ='Detailed Results'!J34 -> 0.402 | H208: ='Detailed Results'!K34 -> 0.507 | I208: ='Detailed Results'!L34 -> 0.373
A209: Electronic Hardware | E209: ='Detailed Results'!H35 -> 6.4 | F209: ='Detailed Results'!I35 -> 9.5 | G209: ='Detailed Results'!J35 -> 4.9 | H209: ='Detailed Results'!K35 -> 4.8 | I209: ='Detailed Results'!L35 -> 9
A210: Metal Doors & Related Products | E210: ='Detailed Results'!H36 -> 20.7 | F210: ='Detailed Results'!I36 -> 23.5 | G210: ='Detailed Results'!J36 -> 20.6 | H210: ='Detailed Results'!K36 -> 19.6 | I210: ='Detailed Results'!L36 -> 21.7
A211: Wood Doors & Frames | E211: ='Detailed Results'!H37 -> 17.7 | F211: ='Detailed Results'!I37 -> 18.1 | G211: ='Detailed Results'!J37 -> 16.8 | H211: ='Detailed Results'!K37 -> 14.7 | I211: ='Detailed Results'!L37 -> 20.8
A212: Toilet Accessories & Partitions | E212: ='Detailed Results'!H38 -> 4.9 | F212: ='Detailed Results'!I38 -> 4.5 | G212: ='Detailed Results'!J38 -> 6.7 | H212: ='Detailed Results'!K38 -> 3.8 | I212: ='Detailed Results'!L38 -> 4.1
A213: All Other Products | E213: ='Detailed Results'!H39 -> 8.2 | F213: ='Detailed Results'!I39 -> 7 | G213: ='Detailed Results'!J39 -> 10.8 | H213: ='Detailed Results'!K39 -> 6.4 | I213: ='Detailed Results'!L39 -> 7.1
A214: Total Sales | E214: ='Detailed Results'!H40 -> 1 | F214: ='Detailed Results'!I40 -> 1 | G214: ='Detailed Results'!J40 -> 1 | H214: ='Detailed Results'!K40 -> 1 | I214: ='Detailed Results'!L40 -> 1
A236: Income Statement
A238: Profit Margin Analysis
A240: In the income statement, there are multiple levels of profit or profit margins: gross profit, operating profit,
A241: and profit before taxes. The term "margin" applies to a given profit level as a percentage of net sales.
A242: Profit margin analysis uses the percentage calculation to provide a comprehensive measure of a
A243: company's profitability over a period of time and in comparison industry benchmarks.
A245: The objective of margin analysis is to detect positive or negative trends in a company's earnings.
A247: The operating portion of the income statement discloses information about revenues and expenses that
A248: are a direct result of regular business operations.
A250: Gross Margin — Gross Profit dollars = Net Sales – Cost Of Goods Sold
A251: Gross Margin is the Gross Profit $ as a percent of the sales generated. The gross margin percentage
A252: represents the number of pennies that are being generated from each dollar of sales. A typical distributor
A253: generated 25¢ in gross profit for each $1.00 in sales. The gross margin is used to analyze how effectively
A254: a company is pricing and purchasing its products.
A256: Operating Profit Margin — Operating Profit dollars = Gross Profit $ – Total Operating Expenses
A257: Operating expenses are needed to manage the business; including salaries, commissions, bonuses,
A258: payroll taxes, health insurance, utilities, rent, office supplies, etc. Management has more control over
A259: operating expenses than its COGS outlays. Thus, positive or negative results in operating margin
A260: are directly attributable to management decisions.
A262: The non-operating section of the income statement discloses revenue and expense information about
A263: activities that are not directly tied to a company's regular operations, like the sale of capital assets or
A264: interest on a loan to finance the company.
A266: Profit Margin = Profit Before Taxes ÷ Net Sales x 100—Profit margin, the so-called bottom line is
A267: an important metric that owners can easily see for a complete benchmarking analysis.
E270: =IFERROR(VLOOKUP($X$135,$X$53:$AA$131,2,FALSE),"") -> Typical | F270: =IFERROR(VLOOKUP($Y$135,$X$53:$AA$131,2,FALSE),"") -> High | G270: =IFERROR(VLOOKUP($Z$135,$X$53:$AA$131,2,FALSE),"") -> Under 70% | H270: =IFERROR(VLOOKUP($AA$135,$X$53:$AA$131,2,FALSE),"") -> 70% - 80% | I270: =IFERROR(VLOOKUP($AB$135,$X$53:$AA$131,2,FALSE),"") -> Over 80%
E271: =IFERROR(VLOOKUP($X$135,$X$53:$AA$131,3,FALSE),"") -> DHI | F271: =IFERROR(VLOOKUP($Y$135,$X$53:$AA$131,3,FALSE),"") -> Profit | G271: =IFERROR(VLOOKUP($Z$135,$X$53:$AA$131,3,FALSE),"") -> Contract | H271: =IFERROR(VLOOKUP($AA$135,$X$53:$AA$131,3,FALSE),"") -> Contract | I271: =IFERROR(VLOOKUP($AB$135,$X$53:$AA$131,3,FALSE),"") -> Contract
E272: =IFERROR(VLOOKUP($X$135,$X$53:$AA$131,4,FALSE),"") -> Dist. | F272: =IFERROR(VLOOKUP($Y$135,$X$53:$AA$131,4,FALSE),"") -> DHI | G272: =IFERROR(VLOOKUP($Z$135,$X$53:$AA$131,4,FALSE),"") -> Jobs | H272: =IFERROR(VLOOKUP($AA$135,$X$53:$AA$131,4,FALSE),"") -> Jobs | I272: =IFERROR(VLOOKUP($AB$135,$X$53:$AA$131,4,FALSE),"") -> Jobs
A274: Number Of Firms Reporting | E274: ='Detailed Results'!H19 -> 31 | F274: ='Detailed Results'!I19 -> 8 | G274: ='Detailed Results'!J19 -> 10 | H274: ='Detailed Results'!K19 -> 9 | I274: ='Detailed Results'!L19 -> 12
A275: Typical Sales Volume (Millions) | E275: ='Detailed Results'!H20 -> 23.2 | F275: ='Detailed Results'!I20 -> 26.4 | G275: ='Detailed Results'!J20 -> 39 | H275: ='Detailed Results'!K20 -> 21 | I275: ='Detailed Results'!L20 -> 21.7
A276: Sales Growth (2020 vs. 2019) | E276: ='Detailed Results'!H21 -> -0.054 | F276: ='Detailed Results'!I21 -> 0.013 | G276: ='Detailed Results'!J21 -> 0.013 | H276: ='Detailed Results'!K21 -> -0.11 | I276: ='Detailed Results'!L21 -> -0.048
... 404 more rows
